Workbook

Sheet Guidelines
D2: Supplier Guidelines for Conducting Assessments
A7: The Supplier Assessment is to be a process assessment and should accurately reflect the Supplier's actual manufacturing and quality processes, as evidenced on the manufacturing floor. The Assessment should validate that the day-to-day operations comply with the requirements detailed in the Assessment. It is insufficient for a Supplier to have documented procedures only. A detailed quality assessment should always be completed prior to award of new business, substantial increase of existing business or in response to poor supplier performance and/or elevated risk.
A14: For each audit section, the required evidence/documentation is described on the Assessment Form. The Assessor should also use the "Observations & Notes" field to help clarify and explain their findings. A "High", "Medium" or "Low" Risk status will automatically be generated by the score assigned to each element. The Summary Score for each particular element of the Operational/Quality portion, will have to entered under each section on the Audit Cover Page. The Audit results will be generated along with the High Risk Elements, the Status and the Sourcing Eligibility.
A21: All areas assessed as High Risk must have a defined Corrective Action Plan detailed, as well as dates defined for completion, prior to award of any new business. Aside from the "High" risk elements, corrective action shall be at the discretion of the Assessor. The goal of Corrective Action is to eliminate all "High" risk elements in addition to attaining an overall score of minimum 485. Regardless of the overall score attained, if any of the critical items (*) are scored as "0" or "1" the overall assessment result will be considered red. The "Corrective Action Plan" (PDCA Tracker) contained within the Assessment file, shall be used to track all corrective action activity.
A29: If an item it is not applicable please enter na, the formula automatically will consider the maximum points.
A30: If VW it is a Customer please enter X in the respective (Yes) cell (P41) on the Cover Sheet.
A31: If VW it is not a Customer please enter X in the respective (No) cell (S41) on the Cover Sheet.
A32: Subsequent follow-up activity, and subsequent Assessments to validate implementation of Corrective Action, shall be the responsibility of the originating MatcorMatsu Assessor and Supplier Quality / Development Engineer, and must be initiated with the award of business, at the latest.
A35: It is at the discretion of the particular MatcorMatsu to base sourcing decisions on the final score attained. The aim of an Assessment is not simply the generation of a score. The ultimate aim is to identify and address areas of systemic failure driving undue risk to our Group, and therefore proper resolution and closure of "High" risk items, is critical.
A39: Assessment results are for site-specific manufacturing facilities. If a supplier has two or more manufacturing locations, each location requires a separate Assessment.
A41: The audit status will be considered "FAIL" if any "Process(s) it is rated "High/Red".
A42: For the Sustainability Assessment, enter in column "Score", "0" or "1" based on the answer to the question: "0" = No = High Risk or "1" = Yes = Low Risk. Enter any comments in column "Notes/Comments".
A45: Revision: F
A46: 2024-03-04

Sheet Supplier Status
A7: Assessment Results | B7: Status | D7: Sourcing Eligibility | E7: Follow up Activity
A8: VW Supplier | B8: Green | D8: Existing supplier > OK to source | E8: Develop supplier to eliminate high risk elements (PDCA tracker)
A9: Overall score >355 & <=576 | D9: New supplier > OK to source | E9: Develop supplier to eliminate high risk elements (PDCA tracker)
A10: No VW Supplier
A11: Overall score >141 & <=255
A12: Maximum 2 high risk elements
A13: No critical items (*) scoring "0" or "1"
A14: VW Supplier | B14: Yellow | D14: Existing supplier > Source with caution | E14: Address all high risk elements & develop to green status (PDCA tracker)
A15: Overall score >195 & <=355 | D15: New supplier > Source only if development | E15: Address all high risk elements & develop to green status (PDCA tracker)
A16: No VW Supplier | D16: plan in place
A17: Overall score >85 & <=141
A18: Maximum of 5 high risk elements
A19: No critical items (*) scoring "0" or "1"
A20: VW Supplier | B20: Red | D20: Existing supplier > Do not source - develop | E20: Address all high risk elements & develop to green status (PDCA tracker)
A21: Overall score <=195 | D21: New supplier > Do not source until green plan in place | E21: Do not source - Consider alternate sources
A22: No VW Supplier | E22: Address all high risk elements & develop to green status (PDCA tracker)
A23: Overall score <=85
A24: Number of high risk elements >5
A25: (If high risk elements >5, supplier is red regardless of overall score)
A26: Any critical items (*) scoring "0" or "1"
A28: Sustainability Results | B28: Status | D28: Sourcing Eligibility | E28: Follow up Activity
A29: Total Score > 180 | B29: Pass | D29: Existing supplier > OK to source | E29: Develop supplier to eliminate high risk elements (PDCA tracker)
D30: New supplier > OK to source | E30: Develop supplier to eliminate high risk elements (PDCA tracker)
A31: Total Score <=180 & >=120 | B31: Improvements Needed | D31: Existing supplier > Source with caution | E31: Address all high risk elements & develop to green status (PDCA tracker)
D32: New supplier > Source only if development | E32: Address all high risk elements & develop to green status (PDCA tracker)
A33: Total Score < 120 | B33: Fail | D33: Existing supplier > Do not source - develop | E33: Address all high risk elements & develop to green status (PDCA tracker)
D34: New supplier > Do not source until green | E34: Do not source - Consider alternate sources
A36: Final Results Results | B36: Status
A37: Any Green combination | B37: Pass
A39: Any Green & Yellow combination | B39: Conditional Pass (Improvements Needed)
A41: Any Red | B41: Fail

Sheet Glossary of Terms
A1: Glossary of Terms
B3: APQP | D3: Advance Product Quality Planning
B4: ASN | D4: Advanced Shipping Notice
B5: CQI | D5: Continuous Quality Improvement
B6: C-TPAT | D6: Customs and Trading Partners Against Terrorism
B7: DOT | D7: Department of Transport
B8: FIFO | D8: First-in First-out
B9: FMEA | D9: Failure Modes and Effects Analysis
B10: FMVSS | D10: Federal Motor Vehicle Safety Standard
B11: KPC | D11: Key Product Characteristics
B12: KPI | D12: Key Performance Indicators
B13: LPA | D13: Layered Process Audit
B14: NAFTA | D14: North American Free Trade Agreement
B15: PCP | D15: Process Control Plan
B16: PDCA | D16: Plan–Do–Check–Act
B17: PFD | D17: Process Flow Diagram
B18: PIP | D18: Partners in Protection
B19: PPAP | D19: Production Part Approval Process
B20: RPN | D20: Risk Priority Number
B21: TPM | D21: Total Productive Maintenance
B22: VDA | D22: Verband der Automobilindustrie (Quality Management in the Automotive Industry)
B23: CSR | D23: Corporate Social Responsibility
B24: GHG | D24: Greenhouse Gase
B25: CDP | D25: Carbon Disclosure Project
B26: CMRT | D26: Conflict Minerals Reporting Template
B27: URL | D27: Uniform Resource Locator - the address of a given unique resource on the Web
B28: 3TG | D28: Conflict Minerals

Sheet Cover Sheet
J1: SUPPLIER ASSESSMENT
V2: DATE OF AUDIT:
B4: SUPPLIER NAME: | P4: Supplier Contact Name:
B5: ADDRESS / CITY / STATE | P5: Supplier Contact Position: Supplier Contact Phone:
B6: FAX NUMBER: | P6: E-Mail Address
B8: REASON FOR/TYPE AUDIT: | J8: Operational Issues/Concerns | Q8: Potential/New Business
B9: Supplier Audit - IATF | J9: IATF/ISO Compliance Assessment | Q9: Other (Describe):
C11: CURRENT OPEN ISSUES AT MATCORMATSU PLANT(S): | K11: YES | N11: NO | Q11: #
C12: AUTOMOTIVE SALES AS % OF OVERALL SALES:
C14: Union Facility | O14: YES | P14: If Yes, Contract Expire:
O15: NO | P15: Location DUNS
B17: IATF16949 Certification | F17: CERTIFICATION EXPIRY DATE | J17: ISO 9001 Certification | M17: CERTIFICATION EXPIRY DATE | Q17: VDA/Other Certificate | U17: CERTIFICATION EXPIRY DATE | Y17: ISO14001 Certification | AB17: CERTIFICATION EXPIRY DATE
D19: YES | L19: YES | R19: YES | AA19: Yes
D21: NO | L21: NO | R21: NO | AA21: NO
C23: Has Certification ever been revoked? | L23: YES | O23: NO | P23: If Yes, State Reason:
P25: Product liability insurance? | Z25: YES | AB25: NO
C26: CQI Compliant? | H26: N/A | K26: Yes | N26: No | P26: CQI #: | V26: Last Assessment:
P27: CQI #: | V27: Last Assessment:
B28: PRODUCT FOCUS FOR ASSESSMENT (Commodity or Product Group)
B29: MATCORMATSU AUTOMOTIVE GROUP PLANTS SUPPLIED:
B30: SUPPLIER ASSESSMENT RESULTS
B31: PROCESSES | I31: Score | O31: Risk
B32: Quality Management System | I32: ='Supplier Assessment '!H23 -> 39 | O32: =IF(I32="NA","",IF(I32>26,"Low",IF(AND(I32>=13,I32<=26),"Med","High"))) -> Low | U32: Major Strengths of Organization:
B33: Advance Product Quality Planning | I33: ='Supplier Assessment '!H44 -> 48 | O33: =IF(I33="NA","",IF(I33>32,"Low",IF(AND(I33>=16,I33<=32),"Med","High"))) -> Low | U33: 1) | AE33: 32 | AF33: 16
B34: Quality | I34: ='Supplier Assessment '!H71 -> 66 | O34: =IF(I34="NA","",IF(I34>44,"Low",IF(AND(I34>=22,I34<=44),"Med","High"))) -> Low | U34: 2) | AE34: 44 | AF34: 22
B35: Materials / Logistics | I35: ='Supplier Assessment '!H86 -> 30 | O35: =IF(I35="NA","",IF(I35>20,"Low",IF(AND(I35>=10,I35<=20),"Med","High"))) -> Low | U35: 3) | AE35: 20 | AF35: 10
B36: Equipment / Tooling | I36: ='Supplier Assessment '!H98 -> 21 | O36: =IF(I36="NA","",IF(I36>14,"Low",IF(AND(I36>=7,I36<=14),"Med","High"))) -> Low | AE36: 14 | AF36: 7
B37: Purchasing | I37: ='Supplier Assessment '!H110 -> 21 | O37: =IF(I37="NA","",IF(I37>14,"Low",IF(AND(I37>=7,I37<=14),"Med","High"))) -> Low | U37: Major Concerns of Organization: | AE37: 14 | AF37: 7
B38: Operations | I38: ='Supplier Assessment '!H122 -> 21 | O38: =IF(I38="NA","",IF(I38>14,"Low",IF(AND(I38>=7,I38<=14),"Med","High"))) -> Low | U38: 1) | AE38: 14 | AF38: 7
B39: Engineering | I39: ='Supplier Assessment '!H130 -> 9 | O39: =IF(I39="NA","",IF(I39>6,"Low",IF(AND(I39>=3,I39<=6),"Med","High"))) -> Low | U39: 2) | AE39: 6 | AF39: 3
B40: TOTAL | I40: =SUM(I32:N39) -> 255 | U40: 3)
B41: VW ASSESSMENT SUPPLIERS ONLY | I41: VW SUPPLIER | Q41: YES | T41: NO
B42: PROCESSES | I42: Score | U42: (Optional Comments)
B43: P2. VDA 6.3-Project Management | I43: ='Assessment VW Suppliers only'!H18 -> 21 | O43: =IF(I43="NA","",IF(I43>14,"Low",IF(AND(I43>=7,I43<=14),"Med","High"))) -> Low | U43: 1) | AE43: 14 | AF43: 7
B44: P3. VDA 6.3-Planning the product and process development | I44: ='Assessment VW Suppliers only'!H26 -> 15 | O44: =IF(I44="NA","",IF(I44>10,"Low",IF(AND(I44>=5,I44<=10),"Med","High"))) -> Low | U44: 2) | AE44: 10 | AF44: 5
B45: P4. VDA 6.3-Implementation of the product and process development | I45: ='Assessment VW Suppliers only'!H36 -> 21 | O45: =IF(I45="NA","",IF(I45>14,"Low",IF(AND(I45>=7,I45<=14),"Med","High"))) -> Low | U45: 3) | AE45: 14 | AF45: 7
B46: P5. VDA 6.3-Supplier Management | I46: ='Assessment VW Suppliers only'!H49 -> 21 | O46: =IF(I46="NA","",IF(I46>14,"Low",IF(AND(I46>=7,I46<=14),"Med","High"))) -> Low | U46: 4) | AE46: 14 | AF46: 7
B47: P.6.-6.1. VDA 6.3-What goes into the process? Process input | I47: ='Assessment VW Suppliers only'!H61 -> 15 | O47: =IF(I47="NA","",IF(I47>10,"Low",IF(AND(I47>=5,I47<=10),"Med","High"))) -> Low | U47: 5) | AE47: 10 | AF47: 5
B48: 6.2. VDA 6.3-Are all production processes controlled? (process management) | I48: ='Assessment VW Suppliers only'!H69 -> 15 | O48: =IF(I48="NA","",IF(I48>10,"Low",IF(AND(I48>=5,I48<=10),"Med","High"))) -> Low | U48: 6) | AE48: 10 | AF48: 5
B49: 6.3. VDA 6.3-What functions support the process? (personnel resources) | I49: ='Assessment VW Suppliers only'!H75 -> 9 | O49: =IF(I49="NA","",IF(I49>6,"Low",IF(AND(I49>=3,I49<=6),"Med","High"))) -> Low | AE49: 6 | AF49: 3
B50: 6.4. VDA 6.3-What means are used to implement the process? (material resources) | I50: ='Assessment VW Suppliers only'!H83 -> 15 | O50: =IF(I50="NA","",IF(I50>10,"Low",IF(AND(I50>=5,I50<=10),"Med","High"))) -> Low | U50: Assessment Completed By: | AE50: 10 | AF50: 5
B51: 6.5. VDA 6.3-How effective is the process being carried out? (VW Suppliers only) | I51: ='Assessment VW Suppliers only'!H90 -> 12 | O51: =IF(I51="NA","",IF(I51>8,"Low",IF(AND(I51>=4,I51<=8),"Med","High"))) -> Low | U51: Name: | AE51: 8 | AF51: 4
B52: 6.6. VDA 6.3-What should the process produce? (process result / output) | I52: ='Assessment VW Suppliers only'!H97 -> 12 | O52: =IF(I52="NA","",IF(I52>8,"Low",IF(AND(I52>=4,I52<=8),"Med","High"))) -> Low | U52: Group: | AE52: 8 | AF52: 4
B53: P7. VDA 6.3-Customer care / customer satisfaction / service | I53: ='Assessment VW Suppliers only'!H105 -> 15 | O53: =IF(I53="NA","",IF(I53>10,"Low",IF(AND(I53>=5,I53<=10),"Med","High"))) -> Low | U53: E-Mail: | AE53: 10 | AF53: 5
B54: 8.0 Process Audit Services - 8.1 Overview Questionnaire for Services | O54: Risk | U54: Phone:
B55: D2. Project Management | I55: ='Assessment VW Suppliers only'!H122 -> 21 | O55: =IF(I55="NA","",IF(I55>14,"Low",IF(AND(I55>=7,I55<=14),"Med","High"))) -> Low | U55: AUDIT RESULTS | AE55: 14 | AF55: 7
B56: D3. Planning service development | I56: ='Assessment VW Suppliers only'!H132 -> 12 | O56: =IF(I56="NA","",IF(I56>8,"Low",IF(AND(I56>=4,I56<=8),"Med","High"))) -> Low | U56: SUPPLIER ASSESSMENT RESULTS | AB56: =I40+('Supplier Assessment '!K130*3) -> 255 | AE56: 8 | AF56: 4
B57: D4. Implementation of the service / service development | I57: ='Assessment VW Suppliers only'!H145 -> 21 | O57: =IF(I57="NA","",IF(I57>14,"Low",IF(AND(I57>=7,I57<=14),"Med","High"))) -> Low | U57: VW SUPPLIER ASSESSMENT RESULTS | AB57: =SUM(I43:N53)+('Assessment VW Suppliers only'!K105*3) -> 171 | AE57: 14 | AF57: 7
B58: D5. Supplier Management | I58: ='Assessment VW Suppliers only'!H157 -> 18 | O58: =IF(I58="NA","",IF(I58>12,"Low",IF(AND(I58>=6,I58<=12),"Med","High"))) -> Low | U58: VW SUPPLIER SERVICE ASSESSMENT RESULTS | AB58: =I66+('Assessment VW Suppliers only'!K225*3) -> 150 | AE58: 12 | AF58: 6
B59: D6.1. Providing the service/6.1 What goes into the process? Process input | I59: ='Assessment VW Suppliers only'!H167 -> 12 | O59: =IF(I59="NA","",IF(I59>8,"Low",IF(AND(I59>=4,I59<=8),"Med","High"))) -> Low | U59: GRAND TOTAL | AB59: =IF(P41="X",SUM(AB56:AC58),AB56) -> 255 | AE59: 8 | AF59: 4
B60: D6.2. Providing the service / 6.2 Are all processes necessary to provide the service determined? | I60: ='Assessment VW Suppliers only'!H176 -> 9 | O60: =IF(I60="NA","",IF(I60>6,"Low",IF(AND(I60>=3,I60<=6),"Med","High"))) -> Low | U60: STATUS | AE60: 6 | AF60: 3
B61: D6.3 What functions support the provision of the service? (personnel resources) | I61: ='Assessment VW Suppliers only'!H185 -> 9 | O61: =IF(I61="NA","",IF(I61>6,"Low",IF(AND(I61>=3,I61<=6),"Med","High"))) -> Low | U61: =IF(OR(AE72>0,AF79>=1),"FAIL",IF(P41="X",IF(AB59="NA","",IF(AB59>384,"Low",IF(AND(AB59<=384,AB59>=192),"Med","High"))),IF(AB59="NA","",IF(AB59>170,"Low",IF(AND(AB59<=170,AB59>=85),"Med","High"))))) -> Low | AE61: 6 | AF61: 3
B62: D6.4. Providing the service / 6.4 What means are used to provide the service? (material resources) | I62: ='Assessment VW Suppliers only'!H196 -> 15 | O62: =IF(I62="NA","",IF(I62>10,"Low",IF(AND(I62>=5,I62<=10),"Med","High"))) -> Low | AE62: 10 | AF62: 5
B63: D6.5. Providing the service / 6.5 How effective is the process for the provision of the service being carried out? Effectiveness, efficiency, waste avoidance | I63: ='Assessment VW Suppliers only'!H206 -> 12 | O63: =IF(I63="NA","",IF(I63>8,"Low",IF(AND(I63>=4,I63<=8),"Med","High"))) -> Low | U63: SOURCING ELIGIBILITY | AE63: 8 | AF63: 4
B64: D6.6. Providing the service / 6.6 What should the process produce? Process result (output) | I64: ='Assessment VW Suppliers only'!H214 -> 6 | O64: =IF(I64="NA","",IF(I64>4,"Low",IF(AND(I64>=2,I64<=4),"Med","High"))) -> Low | U64: =IF(AE72>0,"Existing supplier Do not source, develop / New supplier Do not source until Green",IF(P41="X",IF(AB59="NA","",IF(AB59>384,"Existing supplier, New supplier OK to source",IF(AND(AB59<=384,AB59>=192),"Existing supplier Source with Caution / New supplier Source only if development plan in place","Existing supplier Do not source, develop / New supplier Do not source until Green"))),IF(AB59="NA","",IF(AB59>170,"Existing supplier, New supplier OK to source",IF(AND(AB59<=170,AB59>=85),"Existing supplier Source with Caution / New supplier Source only if development plan in place","Existing supplier Do not source, develop / New supplier Do not source until Green"))))) -> Existing supplier, New supplier OK to source | AE64: 4 | AF64: 2
B65: D7 Customer care / customer satisfaction / service | I65: ='Assessment VW Suppliers only'!H225 -> 15 | O65: =IF(I65="NA","",IF(I65>10,"Low",IF(AND(I65>=5,I65<=10),"Med","High"))) -> Low | AE65: 10 | AF65: 5
B66: TOTAL SERVICE | I66: =SUM(I55:N65) -> 150
B67: GRAND TOTAL VW SUPPLIER | I67: =SUM(I43:N53)+I66 -> 321 | AE67: ='Supplier Assessment '!L131 -> 0 | AF67: ='Assessment VW Suppliers only'!Q226 -> 0
B68: MATCORMATSU APPROVALS
B69: SUPPLIER ASSESSMENT EVALUATION | F69: Green
B70: SUSTAINABILITY EVALUATION | F70: Green
B71: AUDIT EVALUATION | F71: Green
AE72: =AE67+AF67 -> 0
H73: Quality | O73: Purchasing | V73: Management
E74: Name:
E75: Title:
E76: Signature: | AF76: =COUNTIF(O32:T39,"High") -> 0
AF77: =COUNTIF(O43:T53,"High") -> 0
AF78: =COUNTIF(O55:T65,"High") -> 0
AF79: =SUM(AF76:AF78) -> 0

Sheet Supplier Assessment
A1: SUPPLIER ASSESSMENT FORM | D1: NOTES:
D2: 1. If a particular element is currently not applicable, enter NA into the comments section and "3" into Score Column. The Risk section will be adjusted accordingly.
D3: 2. * Indicates a critical or high risk element.
D4: 3. If any high risk element scores a "0" or "1", the overall assessment is "Red" regardless of final score.
D5: 4. All Red and Yellow items must be added on the PDCA Tracker.
AC6: Overall | AD6: Quality Management System | AE6: Advance Product Quality Planning | AF6: Quality | AG6: Material & Logistics | AH6: Equipment / Tooling | AI6: Purchasing | AJ6: Operations | AK6: Engineering
A7: No. | B7: Critical | C7: Quality Management System | D7: Score | H7: Score | I7: Risk | J7: Notes/Comments | AC7: =SUM(AD7*0.1)+(AE7*0.2)+(AF7*0.2)+(AG7*0.15)+(AH7*0.1)+(AI7*0.05)+(AJ7*0.15)+(AK7*0.05) -> 117.6111111 | AD7: =SUM(H10:H22)/(27-AD11)*100 -> 144.4444444 | AE7: =SUM(H28:H43)/(45-AE11)*100 -> 106.6666667 | AF7: =SUM(H49:H70)/(45-AF11)*100 -> 146.6666667 | AG7: =SUM(H76:H85)/(30-AG11)*100 -> 100 | AH7: =SUM(H91:H97)/(21-AH11)*100 -> 100 | AI7: =SUM(H103:H109)/(21-AI11)*100 -> 100 | AJ7: =SUM(H115:H121)/(18-AJ11)*100 -> 116.6666667 | AK7: =SUM(H127:H129)/(9-AK11)*100 -> 100
D8: High Risk | E8: Medium to High Risk | F8: Low to Medium Risk | G8: Negligible to No Risk
C9: ITEM | D9: 0 | E9: 1 | F9: 2 | G9: 3 | AC9: High Risk | AD9: High Risk | AE9: High Risk | AF9: High Risk | AG9: High Risk | AH9: High Risk | AI9: High Risk | AJ9: High Risk | AK9: High Risk
A10: 1 | C10: Is the Management structure and Resource allocation sufficient to support all necessary disciplines | D10: No formal organization chart. Critical functions open. | E10: Organization chart in place. Some functions open - critical positions filled | F10: Organization chart in place. Some functions open - critical positions filled Plans to secure additional resources | G10: Organization chart in place and is current All functions filled Succession planning in place & reviewed regularly Leadership training/development plan in place | H10: 3 | I10: =IF(H10="NA","",IF(H10>2,"Low",IF(H10>0,"Med","High"))) -> Low | K10: =IF(H10="NA",1,0) -> 0 | L10: =IF(AND(B10="*", OR(H10=1, H10=0)), "Fail", "") ->  | AC10: =SUM(AD10:AK10) -> 0 | AD10: =I24 -> 0 | AE10: =I45 -> 0 | AF10: =I72 -> 0 | AG10: =I87 -> 0 | AH10: =I99 -> 0 | AI10: =I111 -> 0 | AJ10: =I123 -> 0 | AK10: =I131 -> 0
A11: 2 | C11: Management commitment to customer satisfaction/customer performance, including flawless launches, corrective action/preventative action implementation and continuous improvement. (3.1 / 9.1.2.1) (8.1 / 6.1.2.2) | D11: Senior management is fundamentally unaware of performance levels or issues at customer locations | E11: Senior management is aware of customer performance data/customer satisfaction, and most issues, however there is no formal process of review | F11: Senior management is aware of customer performance data/customer satisfaction and conducts regular reviews of issues, corrective/preventative actions | G11: Senior management is aware of customer performance data/customer satisfaction and conducts regular reviews of issues, corrective & preventative actions Senior management plays key role in establishing improvement targets for customer performance/customer satisfaction. | H11: 3 | I11: =IF(H11="NA","",IF(H11>2,"Low",IF(H11>0,"Med","High"))) -> Low | K11: 0 | L11: =IF(AND(B11="*", OR(H11=1, H11=0)), "Fail", "") ->  | AD11: =COUNTIF(H10:H22,"NA")*3 -> 0 | AE11: =COUNTIF(H28:H43,"NA")*3 -> 0 | AF11: =COUNTIF(H49:H70,"NA")*3 -> 0 | AG11: =COUNTIF(H76:H85,"NA")*3 -> 0 | AH11: =COUNTIF(H91:H97,"NA")*3 -> 0 | AI11: =COUNTIF(H103:H109,"NA")*3 -> 0 | AJ11: =COUNTIF(H115:H121,"NA")*3 -> 0 | AK11: =COUNTIF(H127:H129,"NA")*3 -> 0
A12: 3 | B12: * | C12: Management defines quality and performance objectives that promote Continuous Improvement. Key metrics should include all elements of the business and establish target values. (7.2/6.2.1 & 6.2.2.1) | D12: No formal continuous improvement program Lack of key performance metrics | E12: Evidence of continuous improvement program Key operational metrics identified | F12: Evidence of continuous improvement program Key operational metrics identified Evidence of regular management reviews | G12: Evidence of continuous improvement program Goals defined in Business Plan Key operational metrics identified Evidence of regular management reviews Evidence of Cost of Quality analysis & tracking Corrective action plans in place for missed targets | H12: 3 | I12: =IF(H12="NA","",IF(H12>2,"Low",IF(H12=2,"Med","High"))) -> Low | K12: 0
A13: 4 | C13: Process Application: The organization shall define its product realization system. Each process and subprocess shall be defined. Each defined process shall be implemented and controlled including the interactions and linkages between processes. The processes shall be monitored for effectiveness & efficiency. Note – Suppliers may refer to ISO 9001:2015 Section 0.3 for further guidance on the process approach. (2.1) (7.1/5.1.1.2) | D13: No formal process approach in place, No KPIs in place for process effectiveness | E13: Process approach in place, the linkages between the processes are not identified. Some process KPI in place for process effectiveness. | F13: Process approach in place, The linkages between the processes are identified. Process effectiveness KPI in place | G13: Evidence of Process approach, Evidence of the linkages between the processes as per process interaction map Evidence of Process KPI | H13: 3 | I13: =IF(H13="NA","",IF(H13>2,"Low",IF(H13>0,"Med","High"))) -> Low | K13: 0
A14: 5 | C14: Does Management regularly communicate key operational and performance information to all employees. | D14: No evidence of communication to employees No formal suggestion program in place | E14: Some evidence of communication to employees Evidence of customer requirements communicated to employees. | F14: Consistent evidence of communication Key Customer performance indicators reviewed regularly Employee suggestion program in place | G14: Consistent evidence of communication Key Customer and internal performance indicators reviewed regularly Employee suggestion program in place | H14: 3 | I14: Low | K14: 0
A15: 6 | C15: Does Top Management endured the Responsibility and Authority for Product Requirements & Corrective Actions is implemented and followed? Is there a Customer Representative appointed in the organization? (7.3/5.3.1/5.3.2) | D15: No evidence of communication to responsible managers. No evidence of an appointed Customer Representative in the organization. | E15: Some evidence of communication to management Evidence of customer requirements communicated to management Customer Representative appointed in the organization. | F15: Consistent evidence of communication Key Customer performance indicators reviewed regularly Employee suggestion program in place Procedure, work instructions in place and followed. Customer Representative appointed in the organization. | G15: Consistent evidence of communication Key Customer and internal performance indicators reviewed regularly Employee suggestion program in place Procedure, work instructions in place and followed. Customer Representative appointed in the organization. | H15: 3 | I15: Low | K15: 0
A16: 7 | B16: * | C16: Workplace Health and Safety practices are in place. The Organization is focused on safety. Work place is safe. Safety rules are addressed in work instructions, including PPE. Systems are in place to reduce safety risks and communicate/address safety concerns. Safety issues/concerns are tracked, reviewed, and addressed. | D16: No formal health & safety program in effect Lack of guarding and other safeties Lack of cleanliness and organization | E16: Safety program in place Inconsistent application of health & safety rules Lack of cleanliness and organization | F16: Safety program in place Generally consistent application of health & safety rules Plant is generally clean and organized | G16: Health & Safety policy established and posted Evidence of strong health & safety program in place, including regular safety audits Consistent application of health & safety rules | H16: 3 | I16: =IF(H16="NA","",IF(H16>2,"Low",IF(H16=2,"Med","High"))) -> Low | K16: 0
A17: 8 | C17: Management has sufficient resources to effectively manage Customer Requirements. Planning includes sufficient resources that are trained and qualified and meet planning requirements? Notification to all MatcorMatsu plants in event of actual or potential supply interruption. | D17: No awareness of customer requirements No evidence of training Lack of resources to support customer | E17: Aware of customer requirements Some level of support in place to support No formal requirement to notify all MatcorMatsu plants regarding potential or actual supply interruptions | F17: Aware of customer requirements Knowledge of various web sites needed to support MatcorMatsu business (eRFX, Supplier Portal) Customer support available in language of Customer and available for 24 hrs. as needed Information not always updated in required MatcorMatsu web sites | G17: Awareness of MatcorMatsu Supplier Quality Manual requirements and knows where to obtain most recent revision Customer support available in language of customer and available for 24 hrs., as needed Key customer contact person, with authority to make decisions, identified All information and required certifications are up to date on required web sites Procedure ensures notification to all MatcorMatsu plants in event of actual or potential supply interruption | H17: 3 | I17: Low | K17: 0
A18: 9 | C18: Are the Layered Audits in place to assess compliance to standardized processes, identify opportunities for continuous improvement , and provides coaching opportunities? Is the Layered audit process owned by Management? Does the audit plan shall include multiple levels of Management that ensure compliance to Customer requirements? ? Are the audits tracked and their results recorded? Are the follow up in place to address non compliance? | D18: No formal LPA process | E18: No formal process Some evidence of layered audits | F18: Formal process in place Evidence of audits completed | G18: Formal process in place Evidence of audits completed Evidence of corrective action implemented Evidence of continuous improvement via LPA | H18: 3 | I18: Low | K18: =IF(H18="NA",1,0) -> 0
A19: 10 | B19: * | C19: Does the supplier have a business continuity and contingency planning process in place to ensure continuity of supply in the event of natural disaster or supply interruption? (8.2/6.1.2.3) | D19: No formal plan in place | E19: Plan in place but accounts only for loss of manufacturing capability due to events at manufacturing site No analysis of risk due to supply chain No annual review | F19: Plan in place Plan provides for loss of manufacturing capability and interruption of supply Plan not reviewed on an annual basis | G19: Detailed business continuity and contingency planning in place Alternate sources of supply identified Supply chain risk identified and understood Plan is reviewed annually, at minimum | H19: 3 | I19: =IF(H19="NA","",IF(H19>2,"Low",IF(H19=2,"Med","High"))) -> Low | K19: 0
A20: 11 | C20: Is the Risk Management considered for the Quality Management System? Is the risk evaluated and managed? Are action plans in place for the risk elements? (8.1/6.1.2.1) | D20: No formal process in place. | E20: Some evidence of Risk evaluation. | F20: Formal process in place Evidence of Risk Analysis completed for some processes. | G20: Formal process in place Evidence of Risk Analysis completed Evidence of Risk Analysis action plans & corrective action implemented Evidence of opportunities via Risk Analysis. | H20: 3 | I20: Low | K20: 0
A21: 12 | C21: Is there evidence of the Management Review being conducted at least annually in the Organization? Is there evidence in the Management Review minutes of the Management Review Inputs & Management Review Outputs 97.5/9.3.1.1) | D21: No formal Management Review process in place. No formal evidence for Management Review inputs. No formal evidence for Management Review outputs. | E21: Some evidence of Management Review activities but not formalized. Some evidence of Management Review inputs but not formalized. Some evidence of Management Review outputs but not formalized. | F21: Formal Management Review process in place Evidence of Management Review conducted at least annually. Management Review minutes of the meeting contains inputs & outputs. | G21: Formal Management Review process in place Evidence of Management Review being conducted at least annually. Management Review minutes of the meeting contains inputs & outputs. | H21: 3 | I21: Low | K21: 0
A22: 13 | C22: Corporate Sustainability policies to ensure compliance in the areas of business ethics and practices, human rights and social responsibilities and environmental standards. Are the Corporate responsibilities including at a minimum an anti-bribery policy, an employee code of conduct and an ethics escalation policy (whistle-blowing policy) included in the above or into the Code of Conduct? (7.8/5.1.1.1) | D22: Supplier is unaware of Corporate Sustainability requirements. No Code of Conduct in place. | E22: Aware of sustainability requirements Code of conduct elements in place but not all. Some policies or programs in place but not all elements covered No process in placed to cascade down to sub-tier suppliers | F22: Formal policies and procedures / Code of Conduct in place to ensure compliance in areas of: - business ethics & integrity of business practices - environmental standards - human rights and global working conditions No formal process to cascade to sub-tier suppliers | G22: Formal policies and procedures in place to ensure compliance in all three areas of business ethics, environmental standards and human rights and global working conditions. Code of Conduct in place , implemented and followed. Formal and documented process in place to cascade sustainability requirements to sub-tier suppliers. | H22: 3 | I22: Low | K22: 0
A23: Total | H23: =SUMIF(H10:H22,"<>#NA") -> 39 | K23: 0
A24: Total High Risk elements for Quality Management System = | I24: =COUNTIF(I10:I22,"High") -> 0 | K24: 0
A25: No. | B25: Critical | C25: Advance Product Quality Planning | D25: Score | H25: Score | I25: Risk | J25: Notes/Comments | K25: 0
D26: High Risk | E26: Moderate to High Risk | F26: Low to Moderate Risk | G26: Negligible to No Risk | K26: 0
C27: ITEM | D27: 0 | E27: 1 | F27: 2 | G27: 3 | K27: 0
A28: 1 | B28: * | C28: Does the Supplier have a process for managing Advance Quality activity and sufficient resources to manage activity? Process includes formal gate reviews tracking key internal and customer deliverables. | D28: No formal or documented system in place Evidence of sporadic reviews No design or manufacturing feasibility studies | E28: Documented system in place Evidence of systemic reviews Proper feasibilities completed | F28: Documented system in place Evidence of systemic reviews Proper feasibilities completed Evidence of cross functional teams | G28: Documented system in place Evidence of systemic reviews Proper feasibilities completed Evidence of cross functional teams Evidence of regular, scheduled reviews Key or open issues are tracked and process ensures appropriate resources allocated to ensure that issues are addressed | H28: 3 | I28: =IF(H28="NA","",IF(H28>2,"Low",IF(H28=2,"Med","High"))) -> Low | K28: 0
A29: 2 | C29: Process to ensure detailed Contract Review, including Design and Capability review. Awareness and review of all division specific requirements. | D29: No formal process in place | E29: No formal process Some evidence of design or contract reviews | F29: Formal process in place Evidence of contract reviews Evidence of review & understanding of Key/Critical characteristics | G29: Formal process in place Evidence of contract reviews Evidence of review & understanding of Key/Critical characteristics Evidence of Cross-functional teams Evidence that division specific requirements are understood and complied with | H29: 3 | I29: =IF(H29="NA","",IF(H29>2,"Low",IF(H29>0,"Med","High"))) -> Low | K29: 0
A30: 3 | C30: Does this Suppliers Planning process / system include the review of the customers packaging requirements? | D30: No system or process to review packaging requirements No internal resources responsible | E30: No review of packaging unless driven by the customer Limited or no internal knowledge/resources | F30: Process to ensure review and approval of packaging Sufficient internal knowledge/resources | G30: Process to ensure review and approval of packaging Internal resources with sufficient knowledge Customer approval obtained | H30: 3 | I30: =IF(H30="NA","",IF(H30>2,"Low",IF(H30>0,"Med","High"))) -> Low | K30: 0
A31: 4 | C31: Does the Supplier conduct verification of job set-ups? (1.3 / 8.5.1.3) Equipment validation and performs run at rate in preparation for production? | D31: No verification of job set-ups No system or process to validate equipment No evidence of run at rate studies | E31: Evidence of verification of job set-ups, equipment validation prior to start of production No evidence or limited evidence of run at rate studies to verify meeting capacity requirements | F31: Evidence of verification of job set-ups, equipment validation prior to start of production Evidence suggests run at rate conducted in most situations, but lack of formal process | G31: Process to ensure verification of job set-ups Process to ensure equipment validation Records verify completion of run at rate studies Evidence of customer sign-off/approvals | H31: 3 | I31: Low | K31: 0
A32: 5 | C32: Does the supplier have Process Flow Diagram, Control Plan, PFMEA for all processes/products at the location? (1.1 / 8.5.1.1) | D32: No Process Flow Diagram, Control Plan, PFMEA used. | E32: Process Flow Diagram, Control Plan, PFMEA available for some of the processes/products. | F32: Process Flow Diagram, Control Plan, PFMEA fully implemented and used for all processes/products. | G32: Process Flow Diagram, Control Plan, PFMEA | H32: 3 | I32: Low | K32: 0
A33: 6 | C33: Does the Supplier have a documented 'Safe-Launch' plan? Does it include pre-first-shipment containment and verification before any product is shipped? | D33: No system to ensure verification of material at start of program launch | E33: Evidence of some containment in place, but only on a limited basis Supplier only implements containment when directed by the Customer | F33: Product containment plan is defined as part of program launch process Production control plans used - no pre-launch plans | G33: Product containment plan is defined as part of program launch process Pre-launch control plans in place Failure modes analyzed and corrective action implemented | H33: 3 | I33: Low | K33: 0
A34: 7 | C34: Mistake-proofing and error-proofing used to control critical characteristics and ensure product integrity? Is prevention methodology driven by all appropriate data, including part history, LPA results, IATF/ISO results and FMEA? All Error Proofing Devices are checked for function (failure or simulated failure) at the beginning of the shift. Otherwise according to the process control plan. Error Proofing Masters/Challenge parts (when used) are clearly identified. Records of verification are available. Reaction plan is standardized and understood in case of error proofing devices malfunction. When applicable the rabbits part are calibrated. (10.2.4) | D34: No focus on mistake proofing or error prevention Focus is on detection and reliance on operators | E34: Heavy reliance on operators, but some focus on automated error detection. Error Proofing Devices are not checked for function (failure or simulated failure) at the beginning of the shift or as according to the process control plan. | F34: Significant focus on error prevention High use of mistake proofing in manufacturing process. Error Proofing Devices are checked for function (failure or simulated failure) at the beginning of the shift or as according to the process control plan but not documentation available for function evaluation. | G34: Significant focus on error prevention High use of mistake proofing in manufacturing process Mistake proofing driven by FMEA/RPN reduction, and all appropriate sources of data, including audit results and similar part(s) history. Error Proofing Devices are checked for function (failure or simulated failure) at the beginning of the shift or as according to the process control plan, evidence available for review for function evaluation. | H34: 3 | I34: Low | K34: 0
A35: 8 | C35: Does this Suppliers Process Flow Diagram match the actual production flow laid out for this facility? | D35: Process Flow Diagram and actual production flow do not match | E35: Process Flow and manufacturing basically match, but some out of sequence steps noted | F35: Process Flow and manufacturing process match but inspection points out of sequence | G35: Process Flow Diagram matches actual production flow of materials and manufacturing process, including all inspection points | H35: 3 | I35: Low | K35: 0
A36: 9 | C36: Does this Suppliers FMEA's and Control Plan's match the Process Flow Diagram? | D36: No linkage between FMEA's, Control Plans and Process Flows | E36: Process Flow and Process Control Plan match, but no obvious link to FMEA's | F36: Process Flow and Process Control Plan match and evident match to FMEA's | G36: Process Flow and Process Control Plan match and evident match to FMEA's Evidence of periodic reviews | H36: 3 | I36: Low | K36: 0
A37: 10 | C37: Does the FMEA include critical and/or significant characteristics as well as all supplier identified Key Characteristics? Are Customer critical points addressed, to prevent pass-through issues? | D37: No tracking of critical and special characteristics | E37: Critical characteristics are tracked Control is focused on product only, not process | F37: Critical/Special characteristics tracked consistently on FMEA, PCP, PFD, Instructions etc. Required statistical controls in place | G37: Critical/Special characteristics tracked consistently on FMEA, PCP, PFD, Instructions etc. Required statistical controls in place Control is on both product and process Customer critical points identified and controls in place to prevent pass-through issues | H37: 3 | I37: Low | K37: 0
A38: 11 | C38: Are Supplier FMEA's risk numbers for severity, occurrence, and detection based on historical / statistical data? | D38: Total or significant lack of risk numbers on FMEA's | E38: Risk numbers assigned on FMEA's, but no evident linkage to customer requirements | F38: Risk numbers assigned on FMEA's Risk numbers linked to customer requirements | G38: Risk numbers assigned on FMEA's Risk numbers linked to customer requirements Evidence that risk numbers are revised, based on historical or statistical data, or issues | H38: 3 | I38: Low | K38: 0
A39: 12 | C39: Are the mistake proofing opportunities initiated to reduce high RPN numbers noted on the control Plan? Reverse FMEA process in place to identify new potential failure modes on the shop floor. | D39: No linkage between RPN's and mistake proofing | E39: Evidence of improvements to mistake proofing, but no visible link to RPN's | F39: Evidence of link between addition of mistake proofing and reduction plan for RPN's | G39: Evidence of link between addition of mistake proofing and reduction plan for RPN's Focus on RPN reduction for both product and process. Evidence of reverse FMEA in place. | H39: 3 | I39: Low | K39: 0
A40: 13 | C40: Does the control plan identify all gauges and test equipment required for inspection? Including test frequency? | D40: No reference to gauges, test equipment or test frequency on control plans | E40: Control plans identify required gauging, test equipment and frequencies Only minor exceptions noted | F40: Control plans identify required gauging, test equipment and frequencies No visible exceptions noted | G40: Control plans identify required gauging, test equipment and frequencies No visible exceptions noted Frequencies are adjusted based on issues and historical data | H40: 3 | I40: Low | K40: 0
A41: 14 | C41: Does the supplier have a system to manage and track all sub-tier advance planning activity? | D41: No system in place to track supplier activities | E41: Supplier activities are tracked Regular review of supplier activities | F41: Supplier activities are tracked Regular review of supplier activities Supplier readiness is reviewed with internal review meetings | G41: Supplier activities are tracked Regular review of supplier activities Supplier readiness is reviewed with internal review meetings Key supplier events & timing managed with R/Y/G risk status | H41: 3 | I41: Low | K41: 0
A42: 15 | C42: Does the Supplier have a process to track PPAP performance with the Customer and from Suppliers? | D42: No tracking system in place | E42: System in place to track Customer PPAP submissions Evidence of some PPAP samples available | F42: System in place to track Customer PPAP submissions Evidence of all PPAP samples available | G42: System in place to track Customer and supplier PPAP submissions Evidence of all PPAP samples available PPAP issues properly addressed All MatcorMatsu PPAPs have full approval or have a signed, authorized interim with a valid expiry | H42: 3 | I42: Low | K42: 0
A43: 16 | C43: Does this Supplier have a process / system in place to ensure that all design requirements / engineering specifications are communicated to their supply base? | D43: No documented system of communication in place | E43: Process in place to communicate design requirements and engineering specifications to suppliers Minor exceptions noted | F43: Process in place to communicate design requirements and engineering specifications to suppliers No exceptions noted | G43: Process in place to communicate design requirements and engineering specifications to suppliers Suppliers sign off/acknowledge requirements No exceptions noted | H43: 3 | I43: =IF(H43="NA","",IF(H43>2,"Low",IF(H43>0,"Med","High"))) -> Low | K43: 0
A44: Total | H44: =SUMIF(H28:H43,"<>#NA") -> 48 | K44: 0
A45: Total High Risk elements for Planning = | I45: =COUNTIF(I28:I43,"High") -> 0 | K45: 0
A46: No. | B46: Critical | C46: Quality | D46: Score | H46: Score | I46: Risk | J46: Notes/Comments | K46: 0
D47: High Risk | E47: Moderate to High Risk | F47: Low to Moderate Risk | G47: Negligible to No Risk | K47: 0
C48: ITEM | D48: 0 | E48: 1 | F48: 2 | G48: 3 | K48: 0
A49: 1 | C49: Is this Supplier IATF or ISO registered ? Are they current with their surveillance audit schedule? Procedure to notify MatcorMatsu of certification suspension or revocation. | D49: Supplier has no certifications at present | E49: Supplier has minimum of ISO certification Lacks IATF/VDA certification | F49: Supplier has all applicable certifications, including ISO, IATF, VDA, CQI - as applicable No documented requirement to notify MatcorMatsu in event of certification suspension or revocation | G49: All required certifications are current, including ISO, IATF, VDA, CQI etc. No current open corrective actions from last audit. Procedure ensures notification to MatcorMatsu of any certification suspension or revocation. | H49: 3 | I49: =IF(H49="NA","",IF(H49>2,"Low",IF(H49>0,"Med","High"))) -> Low | K49: 0
A50: 2 | C50: Does the supplier has an Internal Audit Programme? Is the supplier current to their internal audit schedule, including corrective actions for all findings? (4.4 / 9.2.2.1) | D50: No formal internal audit schedule or review | E50: No formal internal audit schedule or review. Some evidence of completed internal audits. | F50: Formal internal audit schedule or review over 12 month period. Evidence of audits completed on schedule. | G50: Formal internal audit schedule based on 3 years period over 12 month period. Evidence of internal audits completed on schedule. Evidence of all corrective actions completed on time. | H50: 3 | I50: Low | K50: 0
A51: 3 | C51: Does the supplier has a Quality Management System Audit in place? Are the requirements of MAQMSR 2nd Edition taken into account for the internal audit process? (4.1 / 9.2.2.2) | D51: No Quality Management System Audit in place. | E51: Quality Management System Audit not fully implemented. Some evidence of completed internal audits. | F51: Quality Management System Audit in place Evidence of internal audit schedule or review. Evidence of audits completed on schedule. | G51: Quality management System internal audit schedule based on 3 years period over 12 month period. Evidence of internal audits completed on schedule. Evidence of all corrective actions completed on time. Evidence of Internal Audit Measurable / effectiveness of the process. | H51: 3 | I51: =IF(H51="NA","",IF(H51>2,"Low",IF(H51>0,"Med","High"))) -> Low | K51: 0
A52: 4 | C52: Does the supplier has a Manufacturing Process Audit process in place? (4.2 / 9.2.2.3) | D52: No Manufacturing Process Audit procedure / work instruction / audits in place. | E52: Manufacturing Process audit not fully implemented. Some evidence of completed internal audits. | F52: Manufacturing Process Audit Procedure / Work Instruction in place. Manufacturing Process Audit process in place. Evidence of manufacturing process audit schedule or review. Evidence of manufacturing process audits completed on schedule. | G52: Manufacturing Process Audit schedule up to date and available for review. Evidence of manufacturing process audits completed on schedule. Evidence of all corrective actions for non-conformities identified during the manufacturing process audit completed on time. | H52: 3 | I52: Low | K52: 0
A53: 5 | C53: Does the supplier has a Product Audit process in place? (4.3 / 9.2.2.4) | D53: No Product Audit procedure / work instruction / audits in place. | E53: Product audit not fully implemented. Some evidence of completed internal audits. | F53: Product Audit Procedure / Work Instruction in place. Product Audit process in place. Evidence of Product audit schedule or review. Evidence of Product audits completed on schedule. | G53: Product Audit schedule up to date and available for review. Evidence of Product audits completed on schedule. Evidence of all corrective actions for non-conformities identified during the product audit process completed on time. | H53: 3 | I53: Low | K53: 0
A54: 6 | C54: Are the internal auditors qualifies as per ISO9001:2015 requirements? Is the scope of the internal auditors competency limited to ISO9001: 2015 and MAQMSR? (4.5 / 7.2.3) | D54: The associates performing the internal audits does not have a format internal auditor training as per ISO 9001:2015 requirements. | E54: The associates performing the internal audits does have a format internal auditor training as per ISO 9001:2015 requirements but the training did not include MAQMSR requirements.. | F54: The associates performing the internal audits does have a format internal auditor training as per ISO 9001:2015 requirements including MAQMSR requirements.. | G54: Internal Auditor training certificate available for review. | H54: 3 | I54: Low | K54: 0
A55: 7 | C55: Are Work Instructions for all employees affecting product quality, including for repair and re-work operations available and posted? Are operators following latest, approved instructions. All work instructions are documented using a standard format and meets all safety, quality, element time requirements and visual standards. (8.5.1.2) | D55: No work or operator instructions posted, or significant lack of instructions | E55: Work instructions posted or available for operators No rework/repair instructions | F55: Work instructions posted or readily available Repair/rework instructions posted or available Instructions do not match level of Control Plans. Operators not following some instructions. Various formats used for work instructions. | G55: Work instructions posted or readily available Repair/rework instructions posted or available Instructions match level of Control Plans. Operators are following all instructions. Same standard format used for all work instructions. As applicable visual aids posted at work stations. | H55: 3 | I55: Low | K55: 0
A56: 8 | C56: Are controls in place to verify process start up/shutdown and job change-over? (1.6 / 8.5.1.4) | D56: No start up/shutdown procedures defines No evidence of start up/shutdown controls - such as first-piece, containment etc. | E56: Start up process defined Shutdown process defined First-off samples available at all appropriate operations - some exceptions noted | F56: Start up process defined Shutdown process defined First-off samples available at all appropriate operations - no exceptions noted | G56: Start up process defined Shutdown process defined First-off samples available at all appropriate operations Evidence of first piece approval/signature | H56: 3 | I56: Low | K56: 0
A57: 9 | C57: Does the Supplier have an effective Problem Resolution process and root cause analysis? Does the system address customer and internal issues including the customer warranty issues & customer complaints and field failure test analysis.? Does the process ensure review and necessary update of the applicable FMEA? Does the supplier exit containment only after customer approval? (3.4 / 10.2.3 / 10.2.5 / 10.2.6) | D57: Noticeable lack of formal process Focus only on external issues Multiple open issues and/or late responses No cross-functional approach | E57: Documented procedure Issues addressed in timely manner Lack cross-functional approach | F57: Documented procedure Timely response to internal & external issues Cross functional approach used Review of any MatcorMatsu plant(s) performance history and corrective action responses shows inconsistencies in response and open or late delays in closing issues out | G57: Documented, formal problem resolution process that includes: - both external (customer) and internal issues - cross-functional team approach - thorough 8D/5 Why process in place - timely response to all issues - on time response is a KPI - corrective action drives update to all related documents - Evidence of FMEA review/update for all corrective actions, or at least annually if no corrective actions issued - Evidence that customer approval obtained prior to cessation of containment activity - Evidence of Warranty Measurables including the field failures - Evidence that customer approval obtained prior to cessation of containment activity - All issues reported by MatcorMatsu plant(s) are being addressed on time and utilizing effective problem solving and corrective action disciplines | H57: 3 | I57: Low | K57: 0
A58: 10 | B58: * | C58: Does this Supplier have a process / system to identify and segregate non-conforming/suspect material at each phase of the production process? Containment method in place to ensure that an effective breakpoint is establish. Containment activities are recorded. (5.1 / 8.7.1.2 / 8.7.1.3) | D58: Non-Conforming / Suspect material not clearly identified Non-Conforming / Suspect material at production cells, with high potential for mix Lack of effective containment process | E58: Non-Conforming / Suspect material identified but not properly segregated Some evidence of containment in place Lack of or poor system to verify final disposition of all suspect / non-conforming material. No records available for the containment activities. | F58: Suspect / non-conforming material clearly identified & segregated Effective containment process internally, at suppliers and at customer(s) Evidence of signatures detailing disposition of secure containment area | G58: All suspect/defective material clearly marked Suspect / non-conforming material segregated in secure area Suspect / non-conforming material clearly accounted for, with appropriate disposition and signatures Procedures define proper containment activities internally, at suppliers and at customer(s). Records of containment activities available for review. | H58: 3 | I58: =IF(H58="NA","",IF(H58>2,"Low",IF(H58=2,"Med","High"))) -> Low | K58: 0
A59: 11 | C59: Does this Supplier have a process in place for control of reworked / repaired product. (5.2 / 8.7.1.4 / 8.7.1.5) | D59: Reworked / repaired product not clearly identified Reworked / repaired product at production cells, with high potential for mix | E59: Reworked / repaired product identified but not properly segregated Some evidence of containment in place Lack of or poor system to verify final disposition of all Reworked / repaired product. No records available for the containment activities. | F59: Reworked / repaired product clearly identified & segregated Effective containment process internally, at suppliers and at customer(s) Evidence of signatures detailing disposition of the reworked/repaired product. | G59: All Reworked / repaired product clearly marked Reworked / repaired product segregated in secure area Reworked / repaired product clearly accounted for, with appropriate disposition and signatures Procedures define proper containment activities internally, at suppliers and at customer(s). Records of containment activities available for review. | H59: 3 | I59: Low | K59: 0
A60: 12 | C60: Does this Supplier have a process in place for Customer notification for shipment of a non-conforming product? Does this Supplier have a process in place for requesting Customer authorization for usage of a product reworked/repaired? (5.3/ 5.4 / 8.7.1.6 / 8.7.1.1) | D60: No procedure in place for Customer notification for shipment non-conforming product. No procedure in place for Customer approval/authorization (usage of a repaired / reworked product). | E60: Procedure in place for Customer notification for shipment non-conforming product but not fully implement and followed. Procedure in place for Customer approval/authorization (usage of a repaired / reworked product) but not fully implement and followed. | F60: Procedure in place for Customer notification for shipment non-conforming product, fully implement and followed. Procedure in place for Customer approval/authorization (usage of a repaired / reworked product), fully implement and followed. | G60: Procedure for Customer notification for shipment non-conforming product. Procedure for Customer approval/authorization (usage of a repaired / reworked product). Evidence of training on the above two procedures. | H60: 3 | I60: Low | K60: 0
A61: 13 | C61: Is there a system to identify, qualify and control Measuring and Test Equipment? | D61: Lack of or poorly managed system Multiple fixtures/gages with outdated calibration Gages/fixtures not referenced on Control Plans | E61: Formal, but manual system in place Very few, or no fixtures/gages past due Fixtures and gages referenced on control plans | F61: Formal automated system in place System does not generates reminders of calibration due No evidence of past due calibrations Fixtures/gages referenced in control plans Evidence of effective MSA on all gages | G61: Formal automated system in place System generates reminders of calibration due Evidence of past due calibrations Fixtures/gages referenced in control plans Effective MSA system in place, MSA done for all inspection methods referenced in control plan. | H61: 3 | I61: Low | K61: 0
A62: 14 | C62: Are Operators trained and qualified for any required measurement and tests, including use of appropriate statistical techniques? Are there posted instructions detailing inspection, test, SPC, work requirements and re-work instructions at every station? | D62: Lack of instructions Lack of operator training documentation Missing, or no SPC where required | E62: Gage instructions in place, as required Evidence of some training records Some use of SPC, but possibly inconsistent | F62: Operator gage instruction in place Operator training records available and current SPC data current, where required Re-work gage instructions missing or not posted | G62: Operator gage instruction in place Operator training records available and current SPC data current, where required Adequate re-work gage instructions available at all production and re-work stations | H62: 3 | I62: Low | K62: 0
A63: 15 | C63: Are all inspection gauges and fixtures stored in a manner that protects them from environmental and / or handling / storage damage? | D63: Evidence of gages/fixtures inappropriately stored and/or susceptible to damage No designated storage | E63: Storage has been designated but is insufficient Medium to high potential for damage | F63: Adequate storage for gages/fixtures Some, but minimal opportunity for damage | G63: Dedicated storage for gages/fixtures, when not in use Storage prevents damage or abuse | H63: 3 | I63: Low | K63: 0
A64: 16 | C64: Does the supplier have sufficient internal capability and equipment to ensure customer performance and specification criteria can be met? | D64: Significant lack of internal capability High reliance on external sources | E64: Sufficient resources to monitor most dimensional and material specifications Some reliance on external sources | F64: Internal resources can support dimensional and material requirements Some performance or specialty requirements are sourced externally | G64: Internal resources can support dimensional, material and performance requirements Only specialty requirements are sourced externally | H64: 3 | I64: Low | K64: 0
A65: 17 | C65: Does the supplier have an effective method of qualifying visual inspection personnel for clarity of vision and accuracy of color, where required? Is lighting adequate in all visual inspection areas? | D65: No existing process to qualify personnel conducting visual inspections. Lighting insufficient in one or more areas of inspection | E65: Lighting is adequate in most areas of visual inspection but no formal qualifications for visual or color capability of personnel conducting inspections. | F65: Lighting is adequate in all stations requiring visual inspections. Inspection personnel undergo some form of qualification for visual acuity. | G65: Lighting is adequate in all stations requiring visual inspections. Formal system in place to quality and maintain visual and color perception of inspectors. | H65: 3 | I65: Low | K65: 0
A66: 18 | C66: Does this Supplier have a process / system to measure and track external quality performance with their customers? | D66: No formal system in place | E66: Some customer performance measures in place Some customers have no performance data | F66: System in place to track external quality All customers are tracked but, some customer performance data not current Some corrective actions not addressed in timely manner | G66: Documented system in place to measure external quality Performance data is current and includes appropriate PPM and incident data, at minimum Corrective actions in place to address under performance issues | H66: 3 | I66: Low | K66: 0
A67: 19 | C67: Does the supplier have a record retention process that ensures all necessary test, inspection and safety critical records are retained for period as defined by the Customer? (4.4.1.2) | D67: No formal document retention system | E67: Document retention system in place Records not easily retrievable No system to ensure timely destruction of documents, as per legal or customer requirements Records not protected from damage | F67: Document retention system in place Records easily retrievable No system to ensure timely destruction of documents, as per legal or customer requirements Records protected from damage | G67: Document retention system in place Documents are protected from damage and readily accessible Process ensures destruction as per schedule Records include both paper and data records | H67: 3 | I67: Low | K67: 0
A68: 20 | C68: Are the manufacturing processes and error proofing devices which can be bypassed or placed in deviation identified? Are the Risk Priority Number (RPN) for all approved Bypass / deviation processes evaluated and risks reviewed? Are Standard work instructions available for each Bypass / deviation process? Implemented Bypass is reviewed regularly and goal is reduce or eliminate bypass. (10.2.4) | D68: No formal system in place for identification and management of the mfg. process and error proofing devices that can be bypassed. | E68: Manufacturing processes and error proofing devices which can be bypassed or placed in deviation are identified. Standard work instructions available for each Bypass / deviation process. No evidence for the bypass reviewed. | F68: Manufacturing processes and error proofing devices which can be bypassed or placed in deviation are identified. The Risk Priority Number (RPN) for all approved Bypass / deviation processes are evaluated and risks reviewed. Standard work instructions are available for each Bypass / deviation process. No evidence of the bypass reviewed. | G68: Manufacturing processes and error proofing devices which can be bypassed or placed in deviation are identified. The Risk Priority Number (RPN) for all approved Bypass / deviation processes are evaluated and risks reviewed. Standard work instructions are available for each Bypass / deviation process. Implemented bypass is reviewed regularly and goal is reduce or eliminate bypass, evidence in place available for review. | H68: 3 | I68: Low | K68: 0
A69: 21 | C69: Does this Supplier have a process / system to verify, identify and segregate the incoming product & services, non-conforming material at receiving stage? (3.2 / 8.6.4) | D69: No process, system in place, or minimal control over out-sourced processes/products. | E69: Sub-tier suppliers providing documentation to state the conditions of the products/services provided. No regular inspection performed at receiving. | F69: Sub-tier suppliers evaluated prior to sourcing Performance of sub-tiers monitored regularly Product/Services inspected at receiving stage. Supplier certificate of compliance for the lot, Material certificate for raw material. | G69: Sub-tier suppliers evaluation documentation. Performance of sub-tiers monitored regularly Record of detailed review of requirements with sub-tier suppliers, prior to sourcing. Records of receiving inspection for raw materials available for review. Records of receiving inspection for product & services available for review. | H69: 3 | I69: Low | K69: 0
A70: 22 | C70: Has this Supplier identified all of the special processes that will be required? Will any of these special processes require outsourcing? Are additional controls in place to manage outsources services? | D70: No, or minimal control over out-sourced processes | E70: Sub-tier suppliers have at least partial evaluation prior to sourcing No regular performance reviews | F70: Sub-tier suppliers evaluated prior to sourcing Performance of sub-tiers monitored regularly No detailed records of review of requirements prior to sourcing | G70: Sub-tier suppliers are evaluated prior to sourcing Performance of sub-tiers monitored regularly Record of detailed review of requirements with sub-tier suppliers, prior to sourcing | H70: 3 | I70: Low | K70: 0
A71: Total | H71: =SUM(H49:H70) -> 66 | K71: 0
A72: Total High Risk elements for Quality = | I72: =COUNTIF(I49:I70,"High") -> 0 | K72: 0
A73: No. | B73: Critical | C73: Materials / Logistics | D73: Score | H73: Score | I73: Risk | J73: Notes/Comments | K73: 0
D74: High Risk | E74: Moderate to High Risk | F74: Low to Moderate Risk | G74: Negligible to No Risk | K74: =IF(H74="NA",1,0) -> 0
C75: ITEM | D75: 0 | E75: 1 | F75: 2 | G75: 3 | K75: 0 | L75: =IF(AND(B75="*", OR(H75=1, H75=0)), "Fail", "") -> 
A76: 1 | C76: Does the Supplier have a documented system to ensure receipt of Customer schedules and requirements? | D76: No formal system to ensure receipt/validity of customer releases | E76: System in place to receive customer orders, but no verified back up system No regular tracking of delivery performance | F76: System in place to receive and verify customer orders Regular monitoring of delivery performance Back up system for receiving orders but system is not tested regularly | G76: System in place to receive and verify customer orders Regular monitoring of delivery performance Back up system for receiving orders and system is tested regularly | H76: 3 | I76: =IF(H76="NA","",IF(H76>2,"Low",IF(H76>0,"Med","High"))) -> Low | K76: 0
A77: 2 | C77: Does the supplier have a formal process to plan material flow into and through the plant? A plant FIFO/material handling process is documented and practiced in all operations. Are materials and components stored, packaged and transported so as to protect them from contamination (dirt, foreign material, damage)? | D77: Poor inventory management system No apparent flow to material movement High risk of damage to materials & components | E77: Material flow sufficient, from receiving through manufacturing and shipping Evidence of some material congestion in places No apparent FIFO Potential for material damage | F77: Good material flow throughout manufacturing facility - no apparent bottlenecks Material identified at all stages of the process System in place to monitor inventory levels Lacking evidence of effective FIFO | G77: Good material flow throughout manufacturing facility - no apparent bottlenecks Material identified at all stages of the process System in place to monitor inventory levels Plans in place to reduce inventory Evidence of effective FIFO in place. Evidence of product being protected from contamination. | H77: 3 | I77: Low | K77: 0
A78: 3 | C78: Does this Supplier have a material lot identification & traceability system? Is the material shipped in the designated production container with proper label? (1.5 / 8.5.2 / 8.5.2.1) | D78: No, or very minimal identification & traceability evidence. No evidence of approved packaging. | E78: Identification & Traceability on finished product but lacking on raw materials and components. Materials shipped in customer containers. | F78: Full material identification & traceability on raw and finished materials Maximum period of traceability is >8 hours, or one shift Traceability indicated on shipping labels. Materials shipped in customer approved containers. | G78: Full material identification & traceability on raw and finished materials Maximum period of traceability is <8 hours, or one shift Traceability indicated on shipping labels. Materials shipped in customer approved containers. Procedure in place and followed. | H78: 3 | I78: Low | K78: 0
A79: 4 | C79: Does the supplier have a system / process to validate the contents, label accuracy, and quantities of all containers shipped? | D79: No verification of materials prior to shipping | E79: Validation prior to shipping is limited to verification of part number, only | F79: System in place to verify shipments, but limited to: - part number - part quantity | G79: System in place to verify each customer shipment for: - quantity - correct part - proper labelling - part damage | H79: 3 | I79: Low | K79: 0
A80: 5 | C80: Is there a process to manage the material ordering activity to ensure an adequate supply of raw material in support of production requirements? Do all regular, and contingent ordering processes for materials from sub-tier suppliers ensure complete and detailed communication of all material specifications and requirements? | D80: No apparent link between customer orders and orders/receipts of purchased materials | E80: Raw materials/components inventories tracked and ordered according to min/max values No linkage to customer orders or releases | F80: Raw materials/components tied to customer releases Storage sufficient to prevent damage or mixing System in place to provide warning for low inventories | G80: Raw materials/components tied to customer releases Storage sufficient to prevent damage or mixing System in place to provide warning for low inventories Sub-tier releases clearly communicate all material specifications and requirements Customers proactively notified of order concerns | H80: 3 | I80: Low | K80: 0
A81: 6 | C81: Does this Supplier have processes / systems in place to confirm and manage inventory levels? | D81: No evidence of min/max values set No regular cycle or inventory counts | E81: Min and max values set on inventory No inventory counts conducted on regular basis | F81: Min and max values set on inventory Inventory counts conducted on regular basis | G81: Min and max values set on inventory Inventory counts conducted on regular basis Inventory turns are at acceptable level, or as defined in the business plan | H81: 3 | I81: Low | K81: 0
A82: 7 | C82: Does the supplier utilize off-site warehouses? If so, is inventory tracked? Are cycle counts conducted? | D82: Off-site warehouses used No visible controls in place | E82: Off-site warehouses used Regular counts of inventory received, but not validated regularly | F82: No off-site warehouse used, or Warehouse used but regular inventory counts monitored Warehouse protects against damage or loss | G82: No off-site warehouse used, or Warehouse used but regular inventory counts monitored Inventory validated through periodic count Warehouse protects against damage or loss | H82: 3 | I82: Low | K82: 0
A83: 8 | C83: Is the supplier capable of meeting AIAG labeling requirements as defined in Supplier Guidelines? | D83: AIAG labelling requirements not being met | E83: AIAG standard met only when demanded by Customer | F83: Labelling meets AIAG requirements All shipped material meets AIAG standard Customer approval not obtained prior to shipping | G83: Labelling meets all AIAG requirements Labelling approved by Customer prior to first shipment All shipped material meet AIAG standard | H83: 3 | I83: Low | K83: 0
A84: 9 | C84: Does the Supplier utilize Advanced Shipping Notice's (ASN's)? Does the supplier verify the ASN to the Bill of Lading, and the customers order? | D84: Supplier does not issue ASN on regular basis, or issues in excess of 30 minutes prior to shipment | E84: Supplier almost always issues ASN but at times in excess of 30 minutes prior to shipment | F84: Supplier issues ASN for all shipments ASN issued at maximum of 30 minutes prior to shipment | G84: Supplier issues ASN for all shipments ASN issued at maximum of 30 minutes prior to shipment Process in place to verify ASN to Bill of Lading to Customer order | H84: 3 | I84: Low | K84: 0
A85: 10 | C85: C-TPAT and PIP Security Compliance Program (NAFTA region only - otherwise indicate NA) | D85: Supplier completely unaware of requirements | E85: Supplier notified of need to comply (by division) Minimal progress towards compliance MatcorMatsu C-TPAT questionnaire not completed | F85: Supplier working on compliance with division Supplier on track with timing to achieve compliance | G85: Supplier is C-TPAT/PIP certified or MatcorMatsu C-TPAT questionnaire completed & posted in Supplier Portal | H85: 3 | I85: Low | K85: 0
A86: Total | H86: =SUM(H76:H85) -> 30 | K86: 0
A87: Total High Risk elements for Materials / Logistics = | I87: =COUNTIF(I76:I85,"High") -> 0 | K87: 0
A88: No. | B88: Critical | C88: Equipment / Tooling | D88: Score | H88: Score | I88: Risk | J88: Notes/Comments | K88: 0
D89: High Risk | E89: Moderate to High Risk | F89: Low to Moderate Risk | G89: Negligible to No Risk | K89: 0
C90: ITEM | D90: 0 | E90: 1 | F90: 2 | G90: 3 | K90: 0
A91: 1 | C91: Does this supplier have a process / system to recertify a tool / equipment after repair but before production is scheduled? | D91: No formal process or procedure in place | E91: Documented system to qualify tool/fixture repairs No formal sign off procedure | F91: Documented system to qualify tool/fixture repairs System ensures sign off by qualified personnel | G91: Documented system to qualify tool/fixture repairs System ensures sign off by qualified personnel System ties in to production first-off procedure | H91: 3 | I91: =IF(H91="NA","",IF(H91>2,"Low",IF(H91>0,"Med","High"))) -> Low | K91: 0
A92: 2 | C92: Does the supplier have a tooling database to track and manage tooling? | D92: No database or formal tracking system for tools | E92: Adequate tracking system for tooling Missing asset tags on tools Tool maintenance records missing or not available at all | F92: Adequate tracking system for tooling Customer ownership validated via asset tags Tool maintenance records maintained and available for review | G92: Adequate tracking system for tooling Customer ownership validated via asset tags Proper storage location for tooling not in production Tool maintenance records maintained and available for review | H92: 3 | I92: Low | K92: 0
A93: 3 | C93: Is all Tooling being stored in a location that is protected from environmental / handling damage? | D93: Lack of designated storage for tooling | E93: Designated storage for tooling Storage allows for damage from environment or handling | F93: Designated storage for tooling Storage protects against damage from environment or handling | G93: Designated storage for tooling Storage protects against damage from environment or handling Storage in an area readily accessible | H93: 3 | I93: Low | K93: 0
A94: 4 | C94: Does the supplier conduct a Tooling inventory and compare the results against the Tooling database? | D94: No regular inventory | E94: Regular inventory completed at a prescribed frequency | F94: Regular inventory completed at a prescribed frequency Inventory matched to customer asset records | G94: Regular inventory completed at a prescribed frequency Inventory matched to customer asset records Tooling engineering levels validated annually, as required | H94: 3 | I94: Low | K94: 0
A95: 5 | C95: Is there a system to track new tooling / new equipment on order to support Customer schedules and targeted implementation dates? | D95: No formal review process in place | E95: Documented system to track tooling orders Minimal evidence of customer updates | F95: Documented system to track tooling orders Tooling tracked to implementation timeline Evidence of customer updates | G95: Documented system to track tooling orders Monitored as part of APQP Customer updated on potential issues | H95: 3 | I95: Low | K95: 0
A96: 6 | C96: Does the supplier have a formal Preventive Maintenance management system at this facility? Does it include all production equipment, Tooling and supporting fixtures? Can it track specific Tools? Is maintenance completed per schedule? The spare parts and their storage are managed? Are the critical spare parts identified? Are there any predictive maintenance in place? (1.4 / 8.5.1.5) | D96: No formal preventive maintenance plan in place | E96: Preventive maintenance in place Maintenance driven by tooling/equipment downtime Maintenance includes production tooling, equipment and fixtures | F96: Evidence of an effective preventive maintenance program in place Records validate maintenance occurs as scheduled | G96: Evidence of TPM (Total Productive Maintenance) | H96: 3 | I96: Low | K96: 0
A97: 7 | B97: * | C97: Does the Supplier have a process to monitor tooling and equipment capacities? | D97: Very little or no knowledge of capacity available | E97: Supplier has knowledge of available capacity Capacity forecast driven by high level factors such as floor space, total hours available No detail on equipment capacity | F97: Supplier has knowledge of available capacity Evidence of current capacity studies on equipment | G97: Supplier has knowledge of available capacity, based on tonnage or specialty equipment required (not just overall plant capacity) Evidence of current capacity studies on equipment OEE studies available for review Sufficient resource planning is evident | H97: 3 | I97: =IF(H97="NA","",IF(H97>2,"Low",IF(H97=2,"Med","High"))) -> Low | K97: 0
A98: Total | H98: =SUM(H91:H97) -> 21 | K98: 0
A99: Total High Risk elements for Tooling = | I99: =COUNTIF(I91:I97,"High") -> 0 | K99: 0
A100: No. | B100: Critical | C100: Purchasing | D100: Score | H100: Score | I100: Risk | J100: Notes/Comments | K100: 0
D101: High Risk | E101: Moderate to High Risk | F101: Low to Moderate Risk | G101: Negligible to No Risk | K101: 0
C102: ITEM | D102: 0 | E102: 1 | F102: 2 | G102: 3 | K102: 0
A103: 1 | C103: Supplier capability/competency for existing and quoted MatcorMatsu business. | D103: Supplier lacks internal expertise on product or process technology to support MatcorMatsu business MatcorMatsu represents >50% of supplier's overall business | E103: Supplier has full technical capability to support MatcorMatsu business MatcorMatsu represents >35% but <50% of supplier's overall business | F103: Supplier has full technical capability to support MatcorMatsu business Some secondary processing out-sourced MatcorMatsu represents >35% but <50% of supplier's overall business | G103: Supplier has full technical capability to support MatcorMatsu business No out-sourcing of secondary processing MatcorMatsu represents <35% of supplier's overall business | H103: 3 | I103: =IF(H103="NA","",IF(H103>2,"Low",IF(H103>0,"Med","High"))) -> Low | K103: 0
A104: 2 | C104: How does this Supplier communicate customer requirements (drawings, specifications, etc.) to their suppliers during the quoting process? System or process in place to communicate/manage changes at sub-tier suppliers, including changes requested by the supplier. | D104: No formal process in place Primary method of communication is verbal | E104: Formal RFQS/SOW sent to suppliers Supplier request for changes based on verbal communication only - no formal documentation process | F104: Formal RFQ/SOW sent to suppliers Suppliers asked to sign off on feasibility Formal process in place for suppliers requesting changes | G104: Formal RFQ/SOW sent to suppliers Suppliers asked to sign off on feasibility Only qualified/approved suppliers are used Documented procedures telling suppliers that notification and approval must be given prior to any changes. Includes any necessary approvals from Customer(s). | H104: 3 | I104: Low | K104: 0
A105: 3 | C105: Is this Suppliers facility unionized? If yes, what union represents the bargaining unit? When does the current contract expire? | D105: Supplier is unionized Contract expiry is in <3months No contingency planning in place at this time | E105: Supplier is unionized Contract expiry is in 3-6 months No contingency planning in place at this time | F105: Supplier is unionized Contract expiry is in 3-6 months Contingency planning in place at this time | G105: Supplier is not unionized or, Contract expiry is minimum of 12 months away Contract expiry in 6-12 months, but contingencies being planned | H105: 3 | I105: Low | K105: 0
A106: 4 | C106: Is this Supplier's facility owned or leased? Is it adequately protected from catastrophic loss due to Fire, Flood, etc.? Does the insurance coverage include customer owned goods and/or equipment? | D106: Inadequate coverage for damage or loss No coverage on customer owned tooling or equipment | E106: Facility on long-term lease Some insurance but likely inadequate to cover full loss | F106: Facility on long-term lease Proof available to verify adequate insurance Customer owned capital insured (Bailee Bond) | G106: Facility is owned Proof available to verify adequate insurance Customer owned capital insured (Bailee Bond) | H106: 3 | I106: Low | K106: 0
A107: 5 | C107: Does this Supplier have a process / procedure for the selection, qualification, approval, and management of their supply base? | D107: No formal procedure for selection of suppliers No, or minimal tracking of supplier performance | E107: Procedure defines selection of supplier Supplier performance is measured/monitored No evident signs of supplier development | F107: Procedure defines selection of supplier Supplier assessments conducted Supplier performance is measured/monitored Minimal supplier development activity | G107: Procedure defines selection of supplier Supplier assessments conducted Supplier performance is measured/monitored Adequate resources to manage supply base Evidence of supplier development activity | H107: 3 | I107: Low | K107: 0
A108: 6 | C108: Does this Supplier have a process / system in place to monitor the supplier data base performances and to disqualify their suppliers based on performance? (3.3 / 8.4.2.4) | D108: No formal system in place Supplier performance not monitored or, No reaction to poor supplier performance | E108: No formal system in place Supplier performance monitored, but no reaction to poor performance | F108: Formal system in place Supplier performance monitored Development activities evident with poor performing suppliers | G108: Formal system in place Supplier performance monitored Development activities evident with poor performing suppliers Process in place to prevent new business to poor performing suppliers | H108: 3 | I108: Low | K108: 0
A109: 7 | C109: NAFTA and Customs Compliance process (Applicable in NAFTA region only - all other regions mark as NA) | D109: No internal resources with appropriate knowledge of NAFTA | E109: NAFTA compliance manual/procedures in place Lack of adequate resources to manage NAFTA activity | F109: NAFTA compliance manual/procedures in place Adequate resources to manage NAFTA activity | G109: NAFTA compliance manual/procedures in place Adequate resources to manage NAFTA activity Alternate resources also familiar enough with NAFTA to provide back up | H109: 3 | I109: =IF(H109="NA","",IF(H109>2,"Low",IF(H109>0,"Med","High"))) -> Low | K109: 0
A110: Total | H110: =SUM(H103:H109) -> 21 | K110: 0
A111: Total High Risk elements for Purchasing = | I111: =COUNTIF(I103:I109,"High") -> 0 | K111: 0
A112: No. | B112: Critical | C112: Operations | D112: Score | H112: Score | I112: Risk | J112: Notes/Comments | K112: 0
D113: High Risk | E113: Moderate to High Risk | F113: Low to Moderate Risk | G113: Negligible to No Risk | K113: 0
C114: ITEM | D114: 0 | E114: 1 | F114: 2 | G114: 3 | K114: 0
A115: 1 | B115: * | C115: From an overall perspective, is this Suppliers facility clean, well maintained and organized both inside and outside? Is there a formal 5S and lean manufacturing process in place? | D115: Poor housekeeping practices No evidence of 5S principles in place Risk to employees health & safety | E115: Some areas of good housekeeping, but very sporadic Some risk to employees health & safety | F115: Formal 5S program and review process in place Majority of manufacturing area is clean and organized Opportunity for improvement in office areas, or shipping or warehouse areas | G115: Formal 5S program and review process in place Lean manufacturing program in place All areas clean and organized, including: - manufacturing - office areas - shipping & receiving and warehouse - maintenance and lab areas (if applicable) No obvious risk to employee health & safety | H115: 3 | I115: =IF(H115="NA","",IF(H115>2,"Low",IF(H115=2,"Med","High"))) -> Low | K115: 0
A116: 2 | C116: Does this Supplier have a process / system to track and manage scheduled and unscheduled downtime for this facility? | D116: No formal process to track scheduled or unscheduled downtime | E116: Scheduled downtime tracked Lack of detailed tracking of unscheduled downtime | F116: Scheduled and unscheduled downtime is tracked Lack of documented response to address unscheduled downtime Customer not notified if downtime anticipated to affect Customer | G116: Scheduled and unscheduled downtime is tracked Evidence of documented response to address and reduce unscheduled downtime Customer notified if downtime anticipated to affect Customer | H116: 3 | I116: =IF(H116="NA","",IF(H116>2,"Low",IF(H116>0,"Med","High"))) -> Low | K116: 0
A117: 3 | C117: Does this Supplier have an up-to-date plant layout that shows current product flow? | D117: No layout or mapping of production flow, available | E117: Plant layout available Current production flow differs from existing plant layout | F117: Plant layout available Current layout matches existing production flow | G117: Plant layout available Current layout matches existing production flow System in place to ensure Customer notified when production process/flow is changed | H117: 3 | I117: Low | K117: 0
A118: 4 | C118: Does the supplier has a procedure in place for Temporary change of process controls? (1.7 / 8.5.6.1.1) | D118: No procedure in place to addresses Temporary change of process controls. | E118: No procedure in place, some work instructions in place for Temporary change of process controls. | F118: Procedure in place to addresses Temporary change of process controls. Full traceability of the product manufactured in the respective conditions. | G118: Procedure for Temporary change of process controls. Work instructions posted at respective station. Full traceability of the product mfg in these conditions. Customer informed and customer approval for shipment of the respective products. | H118: 3 | I118: Low | K118: 0
A119: 5 | C119: Is there a process to address absenteeism? | D119: No formal tracking of absenteeism | E119: Absenteeism is tracked to a defined target Lack of documented plans to address absenteeism above target | F119: Absenteeism is tracked to a defined target Documented plans to address absenteeism above target | G119: Absenteeism is tracked to a defined target Documented plans to address absenteeism above target Evidence of sufficient cross-training to prevent absenteeism presenting risk to customer | H119: 3 | I119: Low | K119: 0
A120: 6 | C120: Does this Supplier have a process / system in place to train new employees? Are job responsibilities clearly defined through the use of job descriptions, at all levels of the organization? | D120: No formal training program Job descriptions available only for operators on the manufacturing floor | E120: Evidence of training for new employees Training includes health and safety training Training is sufficient to ensure job requirements can be met Job descriptions available for operators on the manufacturing floor and specialized/technical jobs | F120: Evidence of training program for new employees Training includes health and safety training Training is sufficient to ensure job requirements can be met Evidence of cross-training Job descriptions for all areas of responsibility throughout the organization | G120: Evidence of training program for new employees Training includes health and safety training Job descriptions for all levels and functions Training is sufficient to ensure job requirements can be met Evidence of cross-training Training effectiveness is monitored Evidence of training needs analysis on regular basis | H120: 3 | I120: Low | K120: 0
A121: 7 | C121: Does the supplier utilize part-time or temporary work force? What is the training or orientation process for temporary labor? | D121: No formal training or orientation process. Percentage of part time or temporary labor used is in excess of 30% | E121: No formal training or orientation process. Percentage of part time or temporary labor used is between 20% and 30% | F121: Formal training or orientation process is in place for all temporary labor. Percentage of part time or temporary labor used is between 20% and 30% | G121: Formal training or orientation process is in place for all temporary labor. Percentage of part time or temporary labor used is below 20% Temp labour undergoes orientation program | H121: 3 | I121: =IF(H121="NA","",IF(H121>2,"Low",IF(H121>0,"Med","High"))) -> Low | K121: 0
A122: Total | H122: =SUM(H115:H121) -> 21 | K122: 0
A123: Total High Risk elements for Operations = | I123: =COUNTIF(I115:I121,"High") -> 0 | K123: 0
A124: No. | B124: Critical | C124: Engineering | D124: Score | H124: Score | I124: Risk | J124: Notes/Comments | K124: 0
D125: High Risk | E125: Moderate to High Risk | F125: Low to Moderate Risk | G125: Negligible to No Risk | K125: 0
C126: ITEM | D126: 0 | E126: 1 | F126: 2 | G126: 3 | K126: 0
A127: 1 | C127: Does this Supplier have the latest Customer drawings and specifications for all parts in the program? Does the system ensure drawing/specifications are at the latest level? | D127: No formal tracking system in place Informal system in place but high potential for obsolete drawings/specifications in the system | E127: Informal or manual system in place System is fairly robust with minimal opportunity for mistakes | F127: Formal system in place to track drawing and specification levels All appropriate documentation and control plans reference latest drawings available | G127: Formal system in place to track drawing and specification levels All appropriate documentation and control plans reference latest drawings available System ensures annual review/validation with customer | H127: 3 | I127: =IF(H127="NA","",IF(H127>2,"Low",IF(H127>0,"Med","High"))) -> Low | K127: 0
A128: 2 | C128: If required by Customer and/or Government regulations is there proof of annual recertification testing and compliance to DOT regulations, FMVSS standards, PPAP submission, etc. | D128: No system to track validation requirements | E128: System in place to track validation requirements Some validations completed as per schedule, but numerous validations delinquent | F128: System in place to track validation requirements Validations completed as per requirement, including (but not limited to): - PPAP - Annual layout - FMVSS/Regulatory - CQI | G128: System in place to track validation requirements Validations completed as per requirement, including (but not limited to): - PPAP - Annual layout - FMVSS/Regulatory - CQI System is proactive and issues notices of due validations | H128: 3 | I128: =IF(H128="NA","",IF(H128>2,"Low",IF(H128>0,"Med","High"))) -> Low | K128: 0
A129: 3 | C129: Is the electronic design program (software) used by the supplier (with design / Tool design responsibilities) appropriate and compatible with MatcorMatsu systems? | D129: Supplier unable to communicate engineering data, internally | E129: Supplier has system to communicate engineering data Majority of service is out sourced to a 3rd party | F129: Supplier has system to communicate engineering data Majority of communication is via internal systems Portion of service is out sourced to a 3rd party | G129: Supplier has system to communicate engineering data All communication is via internal systems | H129: 3 | I129: =IF(H129="NA","",IF(H129>2,"Low",IF(H129>0,"Med","High"))) -> Low | K129: =IF(H129="NA",1,0) -> 0
A130: Total | H130: =SUM(H127:H129) -> 9 | K130: =SUM(K10:K129) -> 0
A131: Total High Risk elements for Engineering = | I131: =COUNTIF(I127:I129,"High") -> 0 | L131: =COUNTIF(L10:L129, "Fail") -> 0

Sheet SS PDCA Tracker
A1: PDCA PLANNING WORKSHEET | J1: Issue Date:
A2: Assessment Concerns & Corrective Action
A3: PLAN | E3: DO | J3: Check / Measure / Actions Effective?
A4: Section Number | B4: Item No. | C4: Critical Item | D4: Issue Description | E4: Proposed Actions Taken | F4: Responsibility | G4: Task Timing | J4: Results/Conclusions | K4: Comments
G5: Start Date (Supplier) | H5: Complete Date (Supplier) | I5: Verified Date (MatcorMatsu)
A7: Quality Management System
A8: 1 | B8: 1
B9: 2
B10: 3 | C10: *
B11: 4
B12: 5 | C12: *
B13: 6
B14: 7
B15: 8 | C15: *
B16: 9
A17: Planning
A18: 2 | B18: 1 | C18: *
B19: 2
B20: 3
B21: 4
B22: 5
B23: 6
B24: 7
B25: 8
B26: 9
B27: 10
B28: 11
B29: 12
B30: 13
B31: 14
B32: 15
A33: Quality
A34: 3 | B34: 1
B35: 2
B36: 3
B37: 4
B38: 5
B39: 6 | C39: *
B40: 7
B41: 8
B42: 9
B43: 10
B44: 11
B45: 12
B46: 13
B47: 14
B48: 15
A49: Materials / Logistics
A50: 4 | B50: 1
B51: 2
B52: 3
B53: 4
B54: 5
B55: 6
B56: 7
B57: 8
B58: 9
B59: 10
A60: Equipment / Tooling
A61: 5 | B61: 1
B62: 2
B63: 3
B64: 4
B65: 5
B66: 6
B67: 7 | C67: *
A68: Purchasing
A69: 6 | B69: 1
B70: 2
B71: 3
B72: 4
B73: 5
B74: 6
B75: 7
A76: Operations
A77: 7 | B77: 1 | C77: *
B78: 2
B79: 3
B80: 4
B81: 5
B82: 6
A83: Engineering
A84: 8 | B84: 1
B85: 2
B86: 3

Sheet Assessment VW Suppliers only
A1: SUPPLIER ASSESSMENT FORM | D1: NOTES:
D2: 1. If a particular element is currently not applicable, enter NA into the comments section and "3" into Score Column. The Risk section will be adjusted accordingly.
D3: 2. * Indicates a critical or high risk element.
D4: 3. If any high risk element scores a "0" or "1", the overall assessment is "Red" regardless of final score.
D5: 4. All Red and Yellow items must be added on the PDCA Tracker.
JM6: Overall | JN6: Quality Management System | JO6: Advance Product Quality Planning | JP6: Quality | JQ6: Material & Logistics | JR6: Equipment / Tooling | JS6: Purchasing | JT6: Operations | JU6: Engineering
A7: No. | B7: Critical | C7: Advance Product Quality Planning | D7: Score | H7: Score | I7: Risk | J7: Notes/Comments
D8: High Risk | E8: Medium to High Risk | F8: Low to Medium Risk | G8: Negligible to No Risk
C9: ITEM | D9: 0 | E9: 1 | F9: 2 | G9: 3
A10: P2 | B10: VDA 6.3-Project Management (VW Suppliers only)
A11: 2.1 | C11: Is a project management established with a project organization? | D11: No project management established. | E11: Project management established with a project organization. Minor exceptions noted. | F11: Project management established with a project organization. No exceptions noted. | G11: Project management established with a project organization. Organization chart in place. No exceptions noted. | H11: 3 | I11: =IF(H11="NA","",IF(H11>2,"Low",IF(H11>0,"Med","High"))) -> Low | K11: =IF(H11="NA",1,0) -> 0 | Q11: =IF(AND(B11="*", OR(H11=1, H11=0)), "Fail", "") -> 
A12: 2.2 | C12: Are all resources required for the project development planned and available and are changes shown? | D12: Resources required for the project development not planned and not available at the audit time. | E12: Resources required for the project development planned but not available at the audit time. No evidence in place to support. | F12: Resources required for the project development planned and available at the audit time. Minor exceptions noted. | G12: Resources required for the project development planned but available. Training program in place, evidence available. No exceptions noted. | H12: 3 | I12: =IF(H12="NA","",IF(H12>2,"Low",IF(H12>0,"Med","High"))) -> Low | K12: 0 | Q12: =IF(AND(B12="*", OR(H12=1, H12=0)), "Fail", "") -> 
A13: 2.3 | C13: Is there a project plan and has this been coordinated with the customer? | D13: No project plan in place and has not been coordinated with the customer. | E13: Project plan in place but not been coordinated with the customer. | F13: Project plan in place but not been coordinated with the customer. Minor exceptions noted. | G13: Project plan established and in use, coordinated with the customer. MH 041 Program Mgmt_Gate Review_Process used. Supplier project plan documentation used. No exceptions noted. | H13: 3 | I13: =IF(H13="NA","",IF(H13>2,"Low",IF(H13>0,"Med","High"))) -> Low | K13: 0
A14: 2.4 | C14: Is the advanced product quality planning implemented within the project and monitored for compliance? | D14: The advanced product quality planning is not implemented within the project and not monitored for compliance. | E14: The advanced product quality planning is implemented within the project but not monitored for compliance. | F14: The advanced product quality planning is implemented within the project and monitored for compliance. No measurables available for review at the audit time. | G14: The advanced product quality planning is implemented within the project and monitored for compliance. Specific APQP measurables in place and available for review. | H14: 3 | I14: =IF(H14="NA","",IF(H14>2,"Low",IF(H14>0,"Med","High"))) -> Low | K14: 0
A15: 2.5* | B15: * | C15: Are the procurement activities of the project implemented and monitored for compliance? | D15: The procurement activities of the project not implemented and not monitored for compliance. | E15: The procurement activities of the project are implemented but not monitored for compliance. | F15: The procurement activities of the project are implemented and are monitored for compliance. No measurables available for review at the audit time to demonstrate the compliance. | G15: The procurement activities of the project are implemented and are monitored for compliance. Specific Measurables in place and available for review at the audit time. Compliance demonstrated through the review of the specific measurables. | H15: 3 | I15: =IF(H15="NA","",IF(H15>2,"Low",IF(H15=2,"Med","High"))) -> Low | K15: 0
A16: 2.6* | B16: * | C16: Is change management within the project ensured by the project organization? | D16: No change management procedure, process in place. | E16: Change management process, procedure in place, no evidence of implementation and performances. | F16: Change management process, procedure in place, implemented with evidence of implementation. No performances monitoring. | G16: Change management process, procedure in place, implemented with evidence of implementation. Change management performances monitored with evidence. | H16: 3 | I16: =IF(H16="NA","",IF(H16>2,"Low",IF(H16=2,"Med","High"))) -> Low | K16: 0
A17: 2.7 | C17: Is there an escalation process established and is this effectively implemented? | D17: No escalation process established. | E17: Escalation process established but not effectively implemented. | F17: Escalation process established and effectively implemented. No evidence of the specific training. | G17: Escalation process established and effectively implemented. Evidence of the specific training in place. | H17: 3 | I17: =IF(H17="NA","",IF(H17>2,"Low",IF(H17>0,"Med","High"))) -> Low | K17: 0
A18: Total: | H18: =SUMIF(H11:H17,"<>#N/A") -> 21 | K18: 0
A19: Total High Risk elements for P2 = | I19: =COUNTIF(I11:I17,"High") -> 0 | K19: 0 | LC19: =I19 -> 0
A20: P3 | B20: VDA 6.3-Planning the product and process development (VW Suppliers only) | K20: 0
A21: 3.1 | C21: Are the specific product and process requirements available? | D21: The specific product and process requirements are not available. | E21: The specific product and process requirements are available, not communicated to the rest of Departments. | F21: The specific product and process requirements are available, communicated to the rest of Departments, no evidence of implementation / compliance. | G21: The specific product and process requirements are available, communicated to the rest of Departments. Evidence of implementation, compliance with the requirements in all departments. | H21: 3 | I21: =IF(H21="NA","",IF(H21>2,"Low",IF(H21>0,"Med","High"))) -> Low | K21: 0 | LC21: =I21 -> Low
A22: 3.2* | B22: * | C22: Can the manufacturing feasibility be evaluated according to the product and process requirements?* | D22: No manufacturing feasibility form, procedure available. | E22: Manufacturing feasibility form and procedure available, implemented. | F22: Manufacturing feasibility form and procedure available, implemented. No evidence of the manufacturing feasibility for the actual program. | G22: Manufacturing feasibility form and procedure available, implemented. Evidence of the manufacturing feasibility for the actual program available. | H22: 3 | I22: =IF(H22="NA","",IF(H22>2,"Low",IF(H22=2,"Med","High"))) -> Low | K22: 0 | LC22: Low
A23: 3.3 | C23: Are the activities for the product and process development planned in detail? | D23: No procedure, work instruction, flow chart available for product and process development planning details. | E23: Procedure, work instruction, flow diagram available for product and process development planning details, no evidence of implementation. | F23: Procedure, work instruction, flow diagram available for product and process development planning details, evidence of implementation in place. | G23: Procedure, work instruction, flow diagram available for product and process development planning details. Specific planning details in place and up to date for the program. | H23: 3 | I23: =IF(H23="NA","",IF(H23>2,"Low",IF(H23>0,"Med","High"))) -> Low | K23: 0 | LC23: Low
A24: 3.4 | C24: Are the activities for customer support / customer satisfaction / customer service planned? | D24: No procedure, work instruction, flow chart available for planning of the following activities: customer support / customer satisfaction / customer service. | E24: Procedure, work instruction, flow chart available for planning of the following activities: customer support / customer satisfaction / customer service. No evidence of implementation. | F24: Procedure, work instruction, flow chart available for planning of the following activities: customer support / customer satisfaction / customer service. Evidence of implementation available for review. | G24: Procedure, work instruction, flow chart available for planning of customer support / customer satisfaction / customer service. Evidence of implementation available for review. Measurables in place, up to date and reviewed as per requirements. | H24: 3 | I24: =IF(H24="NA","",IF(H24>2,"Low",IF(H24>0,"Med","High"))) -> Low | K24: 0 | LC24: Low
A25: 3.5 | C25: Have the necessary resources been taken into account for the product and process development? | D25: No evidence of resources been taken into account for the product and process development. | E25: Some evidence of resources been taken into account for the product and process development. | F25: Evidence of resources been taken into account for the product and process development, available for other programs, nothing for respective program. | G25: Evidence of resources been taken into account for the product and process development, available and up to date. Specific measurables in place with evidence for review and action. | H25: 3 | I25: =IF(H25="NA","",IF(H25>2,"Low",IF(H25>0,"Med","High"))) -> Low | K25: 0 | LC25: Low
A26: Total: | H26: =SUMIF(H19:H25,"<>#N/A") -> 15 | K26: 0
A27: Total High Risk elements for P3 = | I27: =COUNTIF(I21:I25,"High") -> 0 | K27: 0 | LC27: 0
A28: P4 | B28: VDA 6.3-Implementation of the product and process development (VW Suppliers only) | K28: 0
A29: 4.1* | B29: * | C29: Are the actions which were defined in the product and process development phases implemented? | D29: There is no evidence that the actions which were defined in the product and process development phases have been implemented. | E29: Some evidence that the actions which were defined in the product and process development phases have been implemented. | F29: Evidence that the actions which were defined in the product and process development phases have been implemented in place. Minor exceptions noted. | G29: Evidence that the actions which were defined in the product and process development phases have been implemented in place. No exceptions noted. | H29: 3 | I29: =IF(H29="NA","",IF(H29>2,"Low",IF(H29=2,"Med","High"))) -> Low | K29: 0 | LC29: Low
A30: 4.2 | C30: Are human resources available and are they qualified to ensure the start of the series? | D30: There is no evidence that the human resources are available and are they qualified to ensure the start of the series. | E30: Some evidence that the human resources are available but no evidence for training, qualification to ensure the start of the series. Minor exceptions noted. | F30: Evidence that the human resources are available and trained, fully qualified to ensure the start of the series. Minor exceptions noted. | G30: Evidence that the human resources are available and trained, fully qualified to ensure the start of the series. No exceptions noted. | H30: 3 | I30: =IF(H30="NA","",IF(H30>2,"Low",IF(H30>0,"Med","High"))) -> Low | K30: 0 | LC30: Low
A31: 4.3 | C31: Are the material resources available and suitable to ensure the start of the series? | D31: There are no material resources available to ensure the start of the series. | E31: Plan for material resources available and suitable to ensure the start of the series. Minor exceptions noted. | F31: Plan for material resources available and suitable to ensure the start of the series, no evidence of implementation, ordering. Minor exceptions noted. | G31: Plan for material resources available and suitable to ensure the start of the series. No exceptions noted. | H31: 3 | I31: =IF(H31="NA","",IF(H31>2,"Low",IF(H31>0,"Med","High"))) -> Low | K31: 0 | LC31: Low
A32: 4.4* | B32: * | C32: Are the required approvals and releases for the product and process development available?* | D32: No approvals available for product and process. | E32: Some approvals available for product and process. | F32: Some approvals available for product and process. No evidence of planning to achieve all approval before SOP. | G32: All product and processes approved, ready for MP. | H32: 3 | I32: =IF(H32="NA","",IF(H32>2,"Low",IF(H32=2,"Med","High"))) -> Low | K32: 0 | LC32: Low
A33: 4.5 | C33: Are the manufacturing and inspection specifications derived from the product and process development and are they implemented? | D33: The manufacturing and inspection specifications derived from the product and process development are not implemented. | E33: Not all manufacturing and inspection specifications derived from the product and process development are implemented. | F33: The manufacturing and inspection specifications, derived from the product and process development, are implemented. Minor exceptions noted. | G33: The manufacturing and inspection specifications, derived from the product and process development, are fully implemented. No exceptions noted. | H33: 3 | I33: =IF(H33="NA","",IF(H33>2,"Low",IF(H33>0,"Med","High"))) -> Low | K33: 0 | LC33: Low
A34: 4.6 | C34: Is a performance test carried out under series conditions for the series release? | D34: No performance test carried out under series conditions for the series release. The process documentation does not mention any performance testing. | E34: The process documentation includes the performance testing, no performance testing available for review. | F34: The process documentation includes the performance testing. The performance testing performed and available for review. Minor exceptions noted. | G34: The process documentation includes the performance testing. The performance testing performed and available for review. No exceptions noted. | H34: 3 | I34: =IF(H34="NA","",IF(H34>2,"Low",IF(H34>0,"Med","High"))) -> Low | K34: 0 | LC34: Low
A35: 4.7* | B35: * | C35: Is there a controlled method for the product handover from development to serial production? | D35: No procedure, work instruction, flow chart for product handover from development to serial production. | E35: Procedure, work instruction, flow chart for product handover from development to serial production available, no evidence of implementation. | F35: Procedure, work instruction, flow chart for product handover from development to serial production available, evidence of implementation available for review. Minor exceptions noted. | G35: Procedure, work instruction, flow chart for product handover from development to serial production available, evidence of implementation available for review. No exceptions noted. | H35: 3 | I35: =IF(H35="NA","",IF(H35>2,"Low",IF(H35=2,"Med","High"))) -> Low | K35: 0 | LC35: Low
A36: Total | H36: =SUMIF(H29:H35,"<>#N/A") -> 21 | K36: 0
A37: Total High Risk elements for P4 = | I37: =COUNTIF(I29:I35,"High") -> 0 | K37: 0 | LC37: 0
A38: No. | B38: Critical | C38: Purchasing | D38: Score | H38: Score | I38: Risk | J38: Notes/Comments | K38: 0
D39: High Risk | E39: Medium to High Risk | F39: Low to Medium Risk | G39: Negligible to No Risk | K39: 0
C40: ITEM | D40: 0 | E40: 1 | F40: 2 | G40: 3 | K40: 0
A41: P5 | B41: VDA 6.3-Supplier Management (VW Suppliers only) | K41: 0
A42: 5.1 | C42: Are only approved and quality-capable suppliers used? | D42: No procedure, work instruction, flow chart for Supplier selection and evaluation. | E42: Procedure, work instruction, flow chart for Supplier selection and evaluation in place but not followed. | F42: Procedure, work instruction, flow chart for Supplier selection and evaluation in place and followed. Minor exceptions noted. | G42: Procedure, work instruction, flow chart for Supplier selection and evaluation in place and followed. No exceptions noted. | H42: 3 | I42: =IF(H42="NA","",IF(H42>2,"Low",IF(H42>0,"Med","High"))) -> Low | K42: 0 | LC42: Low
A43: 5.2 | C43: Are customer requirements taken into account in the supply chain? | D43: No procedure, work instruction, flow chart for Customer Specific Requirements. | E43: Procedure, work instruction, flow chart for Customer Specific Requirements in place not followed. | F43: Procedure, work instruction, flow chart for Customer Specific Requirements in place and followed. Minor exceptions noted. | G43: Procedure, work instruction, flow chart for Customer Specific Requirements in place and followed. No exceptions noted. | H43: 3 | I43: =IF(H43="NA","",IF(H43>2,"Low",IF(H43>0,"Med","High"))) -> Low | K43: 0 | LC43: Low
A44: 5.3 | C44: Have target agreements for supplier performance been agreed upon and implemented? | D44: No agreement for targets and supplier performance. | E44: Target agreements for supplier performance been agreed but not implemented. | F44: Target agreements for supplier performance been agreed but not fully implemented. Minor exceptions noted. | G44: Target agreements for supplier performance been agreed and fully implemented. No exceptions noted. | H44: 3 | I44: =IF(H44="NA","",IF(H44>2,"Low",IF(H44>0,"Med","High"))) -> Low | K44: 0 | LC44: Low
A45: 5.4* | B45: * | C45: Are the necessary releases available for out sourced products and services? | D45: No procedure, work instruction, flow chart for out sourced products and services. | E45: Procedure, work instruction, flow chart for out sourced products and services available not followed. | F45: Procedure, work instruction, flow chart for out sourced products and services available not fully followed. Minor exceptions noted. | G45: Procedure, work instruction, flow chart for out sourced products and services available, fully implemented and followed. No exceptions noted. | H45: 3 | I45: =IF(H45="NA","",IF(H45>2,"Low",IF(H45=2,"Med","High"))) -> Low | K45: 0 | LC45: Low
A46: 5.5* | B46: * | C46: Is the quality of the out-sourced products and services ensured? | D46: No procedure, work instruction, flow chart for quality of the out-sourced products, services and Customer Specific Requirements. | E46: Procedure, work instruction, flow chart for quality of the out-sourced products, services and Customer Specific Requirements in place but not followed. | F46: Procedure, work instruction, flow chart for quality of the out-sourced products, services and Customer Specific Requirements in place but not fully followed. Minor exceptions noted. | G46: Procedure, work instruction, flow chart for quality of the out-sourced products, services and Customer Specific Requirements in place and fully followed. No exceptions noted. | H46: 3 | I46: =IF(H46="NA","",IF(H46>2,"Low",IF(H46=2,"Med","High"))) -> Low | K46: 0 | LC46: Low
A47: 5.6 | C47: Are incoming goods stored appropriately? | D47: No procedure, work instruction, flow chart for storage of incoming goods. | E47: Storage of incoming goods procedure, work instruction, flow chart in place but not followed. | F47: Storage of incoming goods procedure, work instruction, flow chart in place but not fully implemented and followed. Minor exceptions noted. | G47: Storage of incoming goods procedure, work instruction, flow chart in place and followed. No exceptions noted. | H47: 3 | I47: =IF(H47="NA","",IF(H47>2,"Low",IF(H47>0,"Med","High"))) -> Low | K47: 0 | LC47: Low
A48: 5.7 | C48: Are personnel qualified for their respective tasks and are responsibilities defined? | D48: No procedure, work instruction, flow chart for personnel qualification. Tasks and responsibilities are not defined. | E48: Procedure, work instruction, flow chart for personnel qualification in place but not followed. Tasks and responsibilities are defined. | F48: Procedure, work instruction, flow chart for personnel qualification in place and followed. Tasks and responsibilities are defined. Minor exceptions noted. | G48: Procedure, work instruction, flow chart for personnel qualification in place and followed. Tasks and responsibilities are defined. No exceptions noted. | H48: 3 | I48: =IF(H48="NA","",IF(H48>2,"Low",IF(H48>0,"Med","High"))) -> Low | K48: 0 | LC48: Low
A49: Total | H49: =SUMIF(H42:H48,"<>#N/A") -> 21 | K49: 0
A50: Total High Risk elements for P5 = | I50: =COUNTIF(I42:I48,"High") -> 0 | K50: 0 | LC50: 0
A51: No. | B51: Critical | C51: Operations | D51: Score | H51: Score | I51: Risk | J51: Notes/Comments | K51: 0
D52: High Risk | E52: Medium to High Risk | F52: Low to Medium Risk | G52: Negligible to No Risk | K52: 0
C53: ITEM | D53: 0 | E53: 1 | F53: 2 | G53: 3 | K53: 0
A54: P6 | B54: VDA 6.3-Process analysis / production (VW Suppliers only) | K54: 0
A55: 6.1 | B55: VDA 6.3-What goes into the process? Process input (VW Suppliers only) | K55: 0
A56: 6.1.1 | C56: Has the project been transferred from development to serial production and is a reliable start guaranteed? | D56: No procedure, work instruction, flow chart for project been transferred from development to serial production. | E56: Procedure, work instruction, flow chart for project been transferred from development to serial production in place, not followed. | F56: Procedure, work instruction, flow chart for project been transferred from development to serial production in place, not fully followed. Minor exceptions noted. | G56: Procedure, work instruction, flow chart for project been transferred from development to serial production in place, & followed. No exceptions noted. | H56: 3 | I56: =IF(H56="NA","",IF(H56>2,"Low",IF(H56>0,"Med","High"))) -> Low | K56: 0 | LC56: Low
A57: 6.1.2 | C57: Are the necessary quantities / production batch sizes of incoming materials available at the agreed upon time and at the right location (storage / workstation)? | D57: No work instruction, flow chart for incoming materials available at the agreed upon time and at the right location (storage / workstation). | E57: Work instruction, flow chart for incoming materials available at the agreed upon time and at the right location (storage / workstation) available, not followed. | F57: Work instruction, flow chart for incoming materials available at the agreed upon time and at the right location (storage / workstation) available, not fully followed. Minor exceptions noted. | G57: Work instruction, flow chart for incoming materials available at the agreed upon time and at the right location (storage / workstation) available and followed. No exceptions noted. | H57: 3 | I57: =IF(H57="NA","",IF(H57>2,"Low",IF(H57>0,"Med","High"))) -> Low | K57: 0 | LC57: Low
A58: 6.1.3 | C58: Are incoming materials stored appropriately and are the means of transport / packing facilities suitable for the special characteristics of the incoming materials? | D58: No work instruction, flow chart for the storage of incoming materials and transport / packing of the incoming materials. | E58: Work instruction, flow chart for storage of incoming materials and transport / packing of the incoming materials available not implemented and followed. | F58: Work instruction, flow chart for storage of incoming materials and transport / packing of the incoming materials available implemented and followed. Minor exceptions noted. | G58: Work instruction, flow chart for storage of incoming materials and transport / packing of the incoming materials available implemented and followed. No exceptions noted. | H58: 3 | I58: =IF(H58="NA","",IF(H58>2,"Low",IF(H58>0,"Med","High"))) -> Low | K58: 0 | LC58: Low
A59: 6.1.4 | C59: Are the necessary identifications / records / releases available and allocated appropriately to the incoming materials? | D59: No work instruction, flow chart for identifications / records / releases of the incoming materials? | E59: Work instruction, flow chart for identifications / records / releases of the incoming materials available, not followed. | F59: Work instruction, flow chart for identifications / records / releases of the incoming materials available, not fully followed. Minor exceptions noted. | G59: Work instruction, flow chart for identifications / records / releases of the incoming materials available and followed. No exceptions noted. | H59: 3 | I59: =IF(H59="NA","",IF(H59>2,"Low",IF(H59>0,"Med","High"))) -> Low | K59: 0 | LC59: Low
A60: 6.1.5* | B60: * | C60: Are changes to the product or process made during the serial production tracked and documented? | D60: No procedure, work instruction, flow chart for tracking and documenting the changes to the product or process made during the serial production. | E60: Procedure, work instruction, flow chart for tracking and documenting the changes to the product or process made during the serial production available not followed. | F60: Procedure, work instruction, flow chart for tracking and documenting the changes to the product or process made during the serial production available partially followed. Minor exceptions noted. | G60: Procedure, work instruction, flow chart for tracking and documenting the changes to the product or process made during the serial production available followed. No exceptions noted. | H60: 3 | I60: =IF(H60="NA","",IF(H60>2,"Low",IF(H60=2,"Med","High"))) -> Low | K60: 0 | LC60: Low
A61: Total | H61: =SUMIF(H56:H60,"<>#N/A") -> 15 | K61: 0
A62: Total High Risk elements for Operations 6.1 = | I62: =COUNTIF(I56:I60,"High") -> 0 | K62: 0 | LC62: 0
A63: 6.2 | B63: VDA 6.3-Are all production processes controlled? (VW Suppliers only) (process management) | K63: 0
A64: 6.2.1 | C64: Are the specification of the control plan complete and have they been effectively implemented? | D64: No procedure, work instruction, flow chart for control plan, PFMEA, process flow diagram. | E64: Procedure, work instruction, flow chart for control plan, PFMEA, process flow diagram in place not followed. | F64: Procedure, work instruction, flow chart for control plan, PFMEA, process flow diagram in place not fully followed. Minor exceptions noted. | G64: Procedure, work instruction, flow chart for control plan, PFMEA, process flow diagram in place and followed. No exceptions noted. | H64: 3 | I64: =IF(H64="NA","",IF(H64>2,"Low",IF(H64>0,"Med","High"))) -> Low | K64: 0 | LC64: Low
A65: 6.2.2* | B65: * | C65: Is there a restart of production of manufacturing processes? | D65: No procedure, work instruction, flow chart for restart of production of manufacturing processes. | E65: Procedure, work instruction, flow chart for restart of production of manufacturing processes in place not followed. | F65: Procedure, work instruction, flow chart for restart of production of manufacturing processes in place not fully followed. Minor exceptions noted. | G65: Procedure, work instruction, flow chart for restart of production of manufacturing processes in place and followed. No exceptions noted. | H65: 3 | I65: =IF(H65="NA","",IF(H65>2,"Low",IF(H65=2,"Med","High"))) -> Low | K65: 0 | LC65: Low
A66: 6.2.3* | B66: * | C66: Are special characteristics managed in the production? | D66: No procedure, work instruction, flow chart for managing of the special characteristics in production. | E66: Procedure, work instruction, flow chart for managing of the special characteristics in production in place not followed. | F66: Procedure, work instruction, flow chart for managing of the special characteristics in production in place not fully followed. Minor exceptions noted. | G66: Procedure, work instruction, flow chart for managing of the special characteristics in production in place and followed. No exceptions noted. | H66: 3 | I66: =IF(H66="NA","",IF(H66>2,"Low",IF(H66=2,"Med","High"))) -> Low | K66: 0 | LC66: Low
A67: 6.2.4* | B67: * | C67: Are non-released and / or defective parts managed? | D67: No procedure, work instruction, flow chart for managing the non-released and / or defective parts. | E67: Procedure, work instruction, flow chart for managing the non-released and / or defective parts in place, not followed. | F67: Procedure, work instruction, flow chart for managing the non-released and / or defective parts in place, not fully followed. Minor exceptions noted. | G67: Procedure, work instruction, flow chart for managing the non-released and / or defective parts in place and followed. No exceptions noted. | H67: 3 | I67: =IF(H67="NA","",IF(H67>2,"Low",IF(H67=2,"Med","High"))) -> Low | K67: 0 | LC67: Low
A68: 6.2.5 | C68: Is the flow of materials and parts secured against mixing / wrong items? | D68: No procedure, work instruction, flow chart for securing the flow of materials and parts against mixing / wrong items. | E68: Procedure, work instruction, flow chart for securing the flow of materials and parts against mixing / wrong items in place not followed. | F68: Procedure, work instruction, flow chart for securing the flow of materials and parts against mixing / wrong items in place not fully followed. Minor exceptions noted. | G68: Procedure, work instruction, flow chart for securing the flow of materials and parts against mixing / wrong items in place and followed. No exceptions noted. | H68: 3 | I68: =IF(H68="NA","",IF(H68>2,"Low",IF(H68>0,"Med","High"))) -> Low | K68: 0 | LC68: Low
A69: Total | H69: =SUMIF(H64:H68,"<>#N/A") -> 15 | K69: 0
A70: Total High Risk elements for Operations 6.2 = | I70: =COUNTIF(I64:I68,"High") -> 0 | K70: 0 | LC70: 0
A71: 6.3 | B71: VDA 6.3-What functions support the process? (personnel resources) (VW Suppliers only) | K71: 0
A72: 6.3.1* | B72: * | C72: Are the employees able to fulfil their given tasks? | D72: No procedure, work instruction, flow chart for monitoring of the tasks given to employees. | E72: Procedure, work instruction, flow chart for monitoring of the tasks given to employees in place not followed. | F72: Procedure, work instruction, flow chart for monitoring of the tasks given to employees in place not fully followed. Minor exceptions noted. | G72: Procedure, work instruction, flow chart for monitoring of the tasks given to employees in place and followed. No exceptions noted. | H72: 3 | I72: =IF(H72="NA","",IF(H72>2,"Low",IF(H72=2,"Med","High"))) -> Low | K72: 0 | LC72: Low
A73: 6.3.2 | C73: Do the employees know their responsibilities and authority in the monitoring of the quality of product and process quality? | D73: No procedure, work instruction, flow chart for communicating to the employees the responsibilities and authority in the monitoring the quality of product and process quality. | E73: Procedure, work instruction, flow chart for communicating to the employees the responsibilities and authority in the monitoring the quality of product and process quality in place not followed. | F73: Procedure, work instruction, flow chart for communicating to the employees the responsibilities and authority in the monitoring the quality of product and process quality in place not fully followed. Minor exceptions noted. | G73: Procedure, work instruction, flow chart for communicating to the employees the responsibilities and authority in the monitoring the quality of product and process quality in place and fully followed. No exceptions noted. | H73: 3 | I73: =IF(H73="NA","",IF(H73>2,"Low",IF(H73>0,"Med","High"))) -> Low | K73: 0 | LC73: Low
A74: 6.3.3 | C74: Are the necessary personnel resources available? | D74: No procedure, work instruction, flow chart for availability of the necessary personnel. | E74: Procedure, work instruction, flow chart for availability of the necessary personnel in place not followed. | F74: Procedure, work instruction, flow chart for availability of the necessary personnel in place, not fully followed. Minor exceptions noted. | G74: Procedure, work instruction, flow chart for availability of the necessary personnel in place and followed. No exceptions noted. | H74: 3 | I74: =IF(H74="NA","",IF(H74>2,"Low",IF(H74>0,"Med","High"))) -> Low | K74: 0 | LC74: Low
A75: Total | H75: =SUMIF(H72:H74,"<>#N/A") -> 9 | K75: =IF(H75="NA",1,0) -> 0
A76: Total High Risk elements for Operations 6.3 = | I76: =COUNTIF(I72:I74,"High") -> 0 | K76: 0 | Q76: =IF(AND(B76="*", OR(H76=1, H76=0)), "Fail", "") ->  | LC76: 0
A77: 6.4 | B77: VDA 6.3-What means are used to implement the process? (VW Suppliers only) (material resources) | K77: 0
A78: 6.4.1* | B78: * | C78: Can the product-specific requirements from the customer be met with the manufacturing equipment? | D78: No procedure, work instruction, flow chart to evaluate if the customer product-specific requirements can be met with the manufacturing equipment. | E78: Procedure, work instruction, flow chart to evaluate if the customer product-specific requirements can be met with the manufacturing equipment in place, not followed. | F78: Procedure, work instruction, flow chart to evaluate if the customer product-specific requirements can be met with the manufacturing equipment in place, not fully followed. Minor exceptions noted. | G78: Procedure, work instruction, flow chart to evaluate if the customer product-specific requirements can be met with the manufacturing equipment in place and followed. No exceptions noted. | H78: 3 | I78: =IF(H78="NA","",IF(H78>2,"Low",IF(H78=2,"Med","High"))) -> Low | K78: 0 | LC78: Low
A79: 6.4.2 | C79: Is the maintenance of the manufacturing equipment and tools controlled? | D79: No procedure, work instruction, flow chart for maintenance of the manufacturing equipment and tools. | E79: Procedure, work instruction, flow chart for maintenance of the manufacturing equipment and tools in place not followed. | F79: Procedure, work instruction, flow chart for maintenance of the manufacturing equipment and tools in place not fully followed. Minor exceptions noted. | G79: Procedure, work instruction, flow chart for maintenance of the manufacturing equipment and tools in place and followed. No exceptions noted. | H79: 3 | I79: =IF(H79="NA","",IF(H79>2,"Low",IF(H79>0,"Med","High"))) -> Low | K79: 0 | LC79: Low
A80: 6.4.3* | B80: * | C80: Can the quality requirements be effectively monitored with the measurement and testing facilities in use? | D80: No procedure, work instruction, flow chart for measurement and testing quality requirements. | E80: Procedure, work instruction, flow chart for measurement and testing quality requirements in place not followed. | F80: Procedure, work instruction, flow chart for measurement and testing quality requirements in place not followed. Minor exceptions noted. | G80: Procedure, work instruction, flow chart for measurement and testing quality requirements in place not fully followed. No exceptions noted. | H80: 3 | I80: =IF(H80="NA","",IF(H80>2,"Low",IF(H80=2,"Med","High"))) -> Low | K80: 0 | LC80: Low
A81: 6.4.4 | C81: Are the work and inspection stations appropriate for the needs? | D81: No procedure, work instruction, flow chart for work /inspections stations. | E81: Procedure, work instruction, flow chart for work /inspections stations in place not followed. | F81: Procedure, work instruction, flow chart for work /inspections stations in place not fully followed. Minor exceptions noted. | G81: Procedure, work instruction, flow chart for work /inspections stations in place and followed. No exceptions noted. | H81: 3 | I81: =IF(H81="NA","",IF(H81>2,"Low",IF(H81>0,"Med","High"))) -> Low | K81: 0 | LC81: Low
A82: 6.4.5 | C82: Are tools, equipment and testing equipment stored properly? | D82: No procedure, work instruction, flow chart for storage of the tools, equipment and testing equipment. | E82: Procedure, work instruction, flow chart for storage of the tools, equipment and testing equipment in place not followed. | F82: Procedure, work instruction, flow chart for storage of the tools, equipment and testing equipment in place not fully followed. Minor exceptions noted. | G82: Procedure, work instruction, flow chart for storage of the tools, equipment and testing equipment in place and followed. No exceptions noted. | H82: 3 | I82: =IF(H82="NA","",IF(H82>2,"Low",IF(H82>0,"Med","High"))) -> Low | K82: 0 | LC82: Low
A83: Total | H83: =SUMIF(H78:H82,"<>#N/A") -> 15 | K83: 0
A84: Total High Risk elements for Operations 6.4 = | I84: =COUNTIF(I78:I82,"High") -> 0 | K84: 0 | LC84: =I84 -> 0
A85: 6.5 | B85: VDA 6.3-How effective is the process being carried out? (VW Suppliers only) Effectiveness, efficiency, waste avoidance | K85: 0
A86: 6.5.1 | C86: Are there targets set for the manufacturing process? | D86: No procedure, work instruction, flow chart, matrix for setting the targets for various measurables. | E86: Procedure, work instruction, flow chart, matrix for setting the targets for various measurables in place not followed. | F86: Procedure, work instruction, flow chart, matrix for setting the targets for various measurables in place not fully followed. Minor exceptions noted. | G86: Procedure, work instruction, flow chart, matrix for setting the targets for various measurables in place and followed. No exceptions noted. | H86: 3 | I86: =IF(H86="NA","",IF(H86>2,"Low",IF(H86>0,"Med","High"))) -> Low | K86: 0 | LC86: Low
A87: 6.5.2 | C87: Is quality and process data collected in a way that allows analysis? | D87: No procedure, work instruction, flow chart for analysis of the quality and process data. | E87: Procedure, work instruction, flow chart for analysis of the quality and process data in place not followed. | F87: Procedure, work instruction, flow chart for analysis of the quality and process data in place not fully followed. Minor exceptions noted. | G87: Procedure, work instruction, flow chart for analysis of the quality and process data in place and followed. No exceptions noted. | H87: 3 | I87: =IF(H87="NA","",IF(H87>2,"Low",IF(H87>0,"Med","High"))) -> Low | K87: 0 | LC87: Low
A88: 6.5.3 | C88: In the case of deviations from product and process requirements, are the causes analyzed and the corrective actions checked for effectiveness? | D88: No procedure, work instruction, flow chart for causes analyzed and the corrective actions checked for effectiveness in case of deviations from product and process requirements. | E88: Procedure, work instruction, flow chart for causes analyzed and the corrective actions checked for effectiveness in case of deviations from product and process requirements in place not followed. | F88: Procedure, work instruction, flow chart for causes analyzed and the corrective actions checked for effectiveness in case of deviations from product and process requirements in place not fully followed. Minor exceptions noted. | G88: Procedure, work instruction, flow chart for causes analyzed and the corrective actions checked for effectiveness in case of deviations from product and process requirements in place and followed. No exceptions noted. | H88: 3 | I88: =IF(H88="NA","",IF(H88>2,"Low",IF(H88>0,"Med","High"))) -> Low | K88: 0 | LC88: Low
A89: 6.5.4 | C89: Are processes and products audited regularly? | D89: No procedure, work instruction, flow chart for regularly auditing the processes and products. | E89: Procedure, work instruction, flow chart for regularly auditing the processes and products in place not followed. | F89: Procedure, work instruction, flow chart for regularly auditing the processes and products in place not fully followed. Minor exceptions noted. | G89: Procedure, work instruction, flow chart for regularly auditing the processes and products in place and followed. No exceptions noted. | H89: 3 | I89: =IF(H89="NA","",IF(H89>2,"Low",IF(H89>0,"Med","High"))) -> Low | K89: 0 | LC89: Low
A90: Total | H90: =SUMIF(H86:H89,"<>#N/A") -> 12 | K90: 0
A91: Total High Risk elements for Operations 6.5 = | I91: =COUNTIF(I86:I89,"High") -> 0 | K91: 0 | LC91: 0
A92: 6.6 | B92: VDA 6.3-What should the process produce? (process result / output) (VW Suppliers only) | K92: 0
A93: 6.6.1 | C93: Do the quantities / production batch sizes match needs and are they systematically directed to the next process step? | D93: No procedure, work instruction, flow chart for process flow needs based on requirements (quantities / production batch sizes match the production needs & are systematically directed to the next process). | E93: Procedure, work instruction, flow chart for process flow needs based on requirements (quantities / production batch sizes match the production needs & are systematically directed to the next process) in place not followed. | F93: Procedure, work instruction, flow chart for process flow needs based on requirements (quantities / production batch sizes match the production needs & are systematically directed to the next process) in place not fully followed. Minor exceptions noted. | G93: Procedure, work instruction, flow chart for process flow needs based on requirements (quantities / production batch sizes match the production needs & are systematically directed to the next process) in place and followed. No exceptions noted. | H93: 3 | I93: =IF(H93="NA","",IF(H93>2,"Low",IF(H93>0,"Med","High"))) -> Low | K93: 0 | LC93: Low
A94: 6.6.2 | C94: Are products / components stored in an appropriate manner and are transport facilities / packing arrangements suitable for the special characteristics of the products / components ? | D94: No procedure, work instruction, flow chart for appropriate storage of products / components and suitable transport / packaging to ensure the special characteristics of the product. | E94: Procedure, work instruction, flow chart for appropriate storage of products / components and suitable transport / packaging to ensure the special characteristics of the product in place not followed. | F94: Procedure, work instruction, flow chart for appropriate storage of products / components and suitable transport / packaging to ensure the special characteristics of the product in place not fully followed. Minor exceptions noted. | G94: Procedure, work instruction, flow chart for appropriate storage of products / components and suitable transport / packaging to ensure the special characteristics of the product in place and followed. No exceptions noted. | H94: 3 | I94: =IF(H94="NA","",IF(H94>2,"Low",IF(H94>0,"Med","High"))) -> Low | K94: 0 | LC94: Low
A95: 6.6.3 | C95: Are the necessary records / releases documented? | D95: No procedure, work instruction, flow chart for documents / records control. | E95: Procedure, work instruction, flow chart for documents / records control in place not followed. | F95: Procedure, work instruction, flow chart for documents / records control in place not fully followed. Minor exceptions noted. | G95: Procedure, work instruction, flow chart for documents / records control in place and followed. No exceptions noted. | H95: 3 | I95: =IF(H95="NA","",IF(H95>2,"Low",IF(H95>0,"Med","High"))) -> Low | K95: 0 | LC95: Low
A96: 6.6.4* | B96: * | C96: Are customer requirements met at the delivery of the final product? | D96: No procedure, work instruction, flow chart ensure the final product customer requiremetns are met at delivery. | E96: Procedure, work instruction, flow chart ensure the final product customer requiremetns are met at delivery in place not followed. | F96: Procedure, work instruction, flow chart ensure the final product customer requiremetns are met at delivery in place not fully followed. Minor exceptions noted. | G96: Procedure, work instruction, flow chart ensure the final product customer requiremetns are met at delivery in place and followed. No exceptions noted. | H96: 3 | I96: =IF(H96="NA","",IF(H96>2,"Low",IF(H96=2,"Med","High"))) -> Low | K96: 0 | LC96: Low
A97: Total | H97: =SUMIF(H93:H96,"<>#N/A") -> 12 | K97: 0
A98: Total High Risk elements for Operations 6.6 = | I98: =COUNTIF(I93:I96,"High") -> 0 | K98: 0 | LC98: 0 | LD98: =I19 -> 0
A99: P7 | B99: VDA 6.3-Customer care / customer satisfaction / service (VW Suppliers only) | K99: 0 | LD99: =I27 -> 0
A100: 7.1 | C100: Are all requirements related to QM-System, product and process fulfilled? | D100: No procedure(s) in place for Quality Management System. | E100: Quality Management System Procedure(s) in place not followed. | F100: Quality Management System Procedure(s) in place not fully followed. Minor exceptions noted. | G100: Quality Management System Procedure(s) in place and followed. No exceptions noted. | H100: 3 | I100: =IF(H100="NA","",IF(H100>2,"Low",IF(H100>0,"Med","High"))) -> Low | K100: 0 | LC100: Low | LD100: =I37 -> 0
A101: 7.2 | C101: Is customer service guaranteed? | D101: No procedure, work instruction, flow chart for customer service. | E101: Procedure, work instruction, flow chart for customer service in place not followed. | F101: Procedure, work instruction, flow chart for customer service in place not fully followed. Minor exceptions noted. | G101: Procedure, work instruction, flow chart for customer service in place and followed. No exceptions noted. | H101: 3 | I101: =IF(H101="NA","",IF(H101>2,"Low",IF(H101>0,"Med","High"))) -> Low | K101: 0 | LC101: =LC50 -> 0 | LD101: =LC50 -> 0
A102: 7.3* | B102: * | C102: Is the supply of parts guaranteed? | D102: No procedure, work instruction, flow chart for Supplier selection and management. | E102: Procedure, work instruction, flow chart for Supplier selection and management in place not followed. | F102: Procedure, work instruction, flow chart for Supplier selection and management in place not fully followed. Minor exceptions noted. | G102: Procedure, work instruction, flow chart for Supplier selection and management in place and followed. No exceptions noted. | H102: 3 | I102: =IF(H102="NA","",IF(H102>2,"Low",IF(H102=2,"Med","High"))) -> Low | K102: 0 | LC102: =LC62 -> 0 | LD102: =LC62 -> 0
A103: 7.4* | B103: * | C103: If there are deviations from quality requirements, are failure analyses carried out and corrective actions implemented effectively? | D103: No procedure, work instruction, flow chart for failure analysis and corrective action. | E103: Procedure, work instruction, flow chart for failure analysis and corrective action in place not followed. | F103: Procedure, work instruction, flow chart for failure analysis and corrective action in place not fully followed. Minor exceptions noted. | G103: Procedure, work instruction, flow chart for failure analysis and corrective action in place and followed. No exceptions noted. | H103: 3 | I103: =IF(H103="NA","",IF(H103>2,"Low",IF(H103=2,"Med","High"))) -> Low | K103: 0 | LC103: =LC70 -> 0 | LD103: =LC70 -> 0
A104: 7.5 | C104: Are personnel qualified for the various tasks and are responsibilities defined? | D104: No procedure, work instruction, flow chart for personnel responsibilities and qualification. | E104: Procedure, work instruction, flow chart for personnel responsibilities and qualification in place not followed. | F104: Procedure, work instruction, flow chart for personnel responsibilities and qualification in place not fully followed. Minor exceptions noted. | G104: Procedure, work instruction, flow chart for personnel responsibilities and qualification in place and followed. No exceptions noted. | H104: 3 | I104: =IF(H104="NA","",IF(H104>2,"Low",IF(H104>0,"Med","High"))) -> Low | K104: 0 | LC104: =LC76 -> 0 | LD104: =LC76 -> 0
A105: Total | H105: =SUMIF(H100:H104,"<>#N/A") -> 15 | K105: =SUM(K11:K104) -> 0 | LC105: =LC84 -> 0 | LD105: =LC84 -> 0
A106: Total High Risk elements for CC/CS/Service P7 = | I106: =COUNTIF(I100:I104,"High") -> 0 | LC106: =LC91 -> 0 | LD106: =LC91 -> 0
G107: Grand total | H107: =SUM(H18+H26+H36+H49+H61+H69+H75+H83+H90+H97+H105) -> 171 | LC107: =LC98 -> 0 | LD107: =LC98 -> 0
A108: Total High Risk elements for Operations = | I108: =COUNTIF(LD98:LD107,"High") -> 0 | LC108: =COUNTIF(I11:I104,"High") -> 0 | LD108: =COUNTIF(LD98:LD107,"High") -> 0
A109: 8.0 Process Audit Services (VW Suppliers only)
A110: 8.1 Overview Questionnaire for Services (VW Suppliers only)
A111: D2. Project Management (VW Suppliers only)
A112: No. | B112: Critical | C112: D2. Project Management | D112: Score | H112: Score | I112: Risk | J112: Notes/Comments
D113: High Risk | E113: Medium to High Risk | F113: Low to Medium Risk | G113: Negligible to No Risk
C114: ITEM | D114: 0 | E114: 1 | F114: 2 | G114: 3
A115: 2.1 | C115: Is a project management established with a project organisation? | D115: No procedure, work instruction, flow chart in place and implemented for project management. | E115: Procedure, work instruction, flow chart in place for project management not followed. | F115: Procedure, work instruction, flow chart in place for project management not fully followed. Minor exceptions noted. | G115: Procedure, work instruction, flow chart in place for project management fully followed. No exceptions noted. | H115: 3 | I115: =IF(H115="NA","",IF(H115>2,"Low",IF(H115>0,"Med","High"))) -> Low | K115: 0 | LC115: Low
A116: 2.2 | B116: * | C116: Are all resources required for the project development planned and available and are changes shown? | D116: No procedure, work instruction, flow chart for managing the resources required for project development. | E116: Procedure, work instruction, flow chart for managing the resources required for project development in place not followed. | F116: Procedure, work instruction, flow chart for managing the resources required for project development in place not fully followed. Minor exceptions noted. | G116: Procedure, work instruction, flow chart for managing the resources required for project development in place and fully followed. No exceptions noted. | H116: 3 | I116: =IF(H116="NA","",IF(H116>2,"Low",IF(H116=2,"Med","High"))) -> Low | K116: 0 | LC116: Low
A117: 2.3 | C117: Is there a project plan and has this been coordinated with the customer? | D117: No procedure, work instruction, flow chart for developing a project plan and no coordination with the customer. | E117: Procedure, work instruction, flow chart for developing a project plan and coordination with the customer in place not followed. | F117: Procedure, work instruction, flow chart for developing a project plan and coordination with the customer in place not fully followed. Minor exceptions noted. | G117: Procedure, work instruction, flow chart for developing a project plan and coordination with the customer in place and fully followed. No exceptions noted. | H117: 3 | I117: =IF(H117="NA","",IF(H117>2,"Low",IF(H117>0,"Med","High"))) -> Low | K117: 0 | LC117: Low
A118: 2.4 | C118: Are all activities of the project implemented and monitored regularly for compliance? | D118: No procedure, work instruction, flow chart for implementing and monitoring for compliance of all activities of the project. | E118: Procedure, work instruction, flow chart for implementing and monitoring for compliance of all activities of the project in place not followed. | F118: Procedure, work instruction, flow chart for implementing and monitoring for compliance of all activities of the project in place not fully followed. Minor exceptions noted. | G118: Procedure, work instruction, flow chart for implementing and monitoring for compliance of all activities of the project in place and fully followed. No exceptions noted. | H118: 3 | I118: =IF(H118="NA","",IF(H118>2,"Low",IF(H118>0,"Med","High"))) -> Low | K118: 0 | LC118: Low
A119: 2.5 | C119: Are the procurement activities of the project implemented and monitored for compliance? | D119: No procedure, work instruction, flow chart for implementing and monitoring for compliance of all procurement activities. | E119: Procedure, work instruction, flow chart for implementing and monitoring for compliance of all procurement activities in place not followed. | F119: Procedure, work instruction, flow chart for implementing and monitoring for compliance of all procurement activities in place not fully followed. Minor exceptions noted. | G119: Procedure, work instruction, flow chart for implementing and monitoring for compliance of all procurement activities in place and fully followed. No exceptions noted. | H119: 3 | I119: =IF(H119="NA","",IF(H119>2,"Low",IF(H119>0,"Med","High"))) -> Low | K119: 0 | LC119: Low
A120: 2.6 | C120: Is change management within the project ensured by the project organisation? | D120: No procedure, work instruction, flow chart for change management. | E120: Procedure, work instruction, flow chart for change management in place not followed. | F120: Procedure, work instruction, flow chart for change management in place not fully followed. Minor exceptions noted. | G120: Procedure, work instruction, flow chart for change management in place and fully followed. No exceptions noted. | H120: 3 | I120: =IF(H120="NA","",IF(H120>2,"Low",IF(H120>0,"Med","High"))) -> Low | K120: 0 | LC120: Low
A121: 2.7 | C121: Is there an escalation process established and is this effectively implemented? | D121: No procedure, work instruction, flow chart for escalation process. | E121: Procedure, work instruction, flow chart for escalation process in place not followed. | F121: Procedure, work instruction, flow chart for escalation process in place not fully followed. Minor exceptions noted. | G121: Procedure, work instruction, flow chart for escalation process in place and fully followed. No exceptions noted. | H121: 3 | I121: =IF(H121="NA","",IF(H121>2,"Low",IF(H121>0,"Med","High"))) -> Low | K121: 0 | LC121: Low
A122: Total | H122: =SUMIF(H115:H121,"<>#N/A") -> 21 | K122: 0 | LC122: 0
A123: Total High Risk elements for D2. Project Management = | I123: =COUNTIF(I115:I121,"High") -> 0 | K123: 0 | LC123: 0
A124: D3. Planning service development (VW Suppliers only) | K124: 0 | LC124: 0
A125: No. | B125: Critical | C125: D3. Planning service development | D125: Score | H125: Score | I125: Risk | J125: Notes/Comments | K125: 0 | LC125: Risk
D126: High Risk | E126: Medium to High Risk | F126: Low to Medium Risk | G126: Negligible to No Risk | K126: 0 | LC126: 0
C127: ITEM | D127: 0 | E127: 1 | F127: 2 | G127: 3 | K127: 0 | LC127: 0
A128: 3.1 | B128: * | C128: Is a process established for determining the service requirements? | D128: No procedure, work instruction, flow chart for service requirements. | E128: Procedure, work instruction, flow chart for service requirements in place not followed. | F128: Procedure, work instruction, flow chart for service requirements in place not fully followed. Minor exceptions noted. | G128: Procedure, work instruction, flow chart for service requirements in place and followed. No exceptions noted. | H128: 3 | I128: =IF(H128="NA","",IF(H128>2,"Low",IF(H128=2,"Med","High"))) -> Low | K128: 0 | LC128: Low
A129: 3.2 | B129: * | C129: Can the feasibility of the service be evaluated according to the requirements? | D129: No procedure, work instruction, flow chart for evaluation of service feasibility according with the requirements. | E129: Procedure, work instruction, flow chart for evaluation of service feasibility according with the requirements in place not followed. | F129: Procedure, work instruction, flow chart for evaluation of service feasibility according with the requirements in place not fully followed. Minor exceptions noted. | G129: Procedure, work instruction, flow chart for evaluation of service feasibility according with the requirements in place and followed. No exceptions noted. | H129: 3 | I129: =IF(H129="NA","",IF(H129>2,"Low",IF(H129=2,"Med","High"))) -> Low | K129: 0 | LC129: Low
A130: 3.3 | C130: Are the activities in preparation for the service / service process planned in detail and coordinated with the customer? | D130: No procedure, work instruction, flow chart for the service / service process planned in detail and coordinated with the customer. | E130: Procedure, work instruction, flow chart for the service / service process planned in detail and coordinated with the customer in place not followed. | F130: Procedure, work instruction, flow chart for the service / service process planned in detail and coordinated with the customer in place not fully followed. Minor exceptions noted. | G130: Procedure, work instruction, flow chart for the service / service process planned in detail and coordinated with the customer in place and followed. No exceptions noted. | H130: 3 | I130: =IF(H130="NA","",IF(H130>2,"Low",IF(H130>0,"Med","High"))) -> Low | K130: 0 | LC130: Low
A131: 3.4 | C131: Are the resources necessary to carry out the service available? | D131: No procedure, work instruction, flow chart to check the availability of the resources necessary to carry out the service. | E131: Procedure, work instruction, flow chart to check the availability of the resources necessary to carry out the service in place not followed. | F131: Procedure, work instruction, flow chart to check the availability of the resources necessary to carry out the service in place not fully followed. Minor exceptions noted. | G131: Procedure, work instruction, flow chart to check the availability of the resources necessary to carry out the service in place and followed. No exceptions noted. | H131: 3 | I131: =IF(H131="NA","",IF(H131>2,"Low",IF(H131>0,"Med","High"))) -> Low | K131: 0 | LC131: Low
A132: Total | H132: =SUMIF(H128:H131,"<>#N/A") -> 12 | K132: 0 | LC132: 0
A133: Total High Risk elements for D3. Planning service development = | I133: =COUNTIF(I128:I131,"High") -> 0 | K133: 0 | LC133: 0
A134: D4. Implementation of the service / service development (VW Suppliers only) | K134: 0 | LC134: 0
A135: No. | B135: Critical | C135: D4. Implementation of the service / service development | D135: Score | H135: Score | I135: Risk | J135: Notes/Comments | K135: 0 | LC135: Risk
D136: High Risk | E136: Medium to High Risk | F136: Low to Medium Risk | G136: Negligible to No Risk | K136: 0 | LC136: 0
C137: ITEM | D137: 0 | E137: 1 | F137: 2 | G137: 3 | K137: 0 | LC137: 0
A138: 4.1 | B138: * | C138: Are the actions which were defined in the development plan for the service implemented? | D138: No procedure, work instruction, flow chart for the implementation of the actions defined in the development plan for service. | E138: Procedure, work instruction, flow chart for the implementation of the actions defined in the development plan for service in place not followed. | F138: Procedure, work instruction, flow chart for the implementation of the actions defined in the development plan for service in place not fully followed. Minor exceptions noted. | G138: Procedure, work instruction, flow chart for the implementation of the actions defined in the development plan for service in place and followed. No exceptions noted. | H138: 3 | I138: =IF(H138="NA","",IF(H138>2,"Low",IF(H138=2,"Med","High"))) -> Low | K138: 0 | LC138: Low
A139: 4.2 | B139: * | C139: Are human resources available and are they qualified to ensure the start of the series? | D139: No procedure, work instruction, flow chart to ensure the resources availability and qualification at start of series. | E139: Procedure, work instruction, flow chart to ensure the resources availability and qualification at start of series in place not followed. | F139: Procedure, work instruction, flow chart to ensure the resources availability and qualification at start of series in place not fully followed. Minor exceptions noted. | G139: Procedure, work instruction, flow chart to ensure the resources availability and qualification at start of series in place and followed. No exceptions noted. | H139: 3 | I139: =IF(H139="NA","",IF(H139>2,"Low",IF(H139=2,"Med","High"))) -> Low | K139: =IF(H139="NA",1,0) -> 0 | LC139: Low
A140: 4.3 | C140: Are the material resources available and suitable to ensure the start of the series? | D140: No procedure, work instruction, flow chart to ensure the material resources availability and suitability at start of series. | E140: Procedure, work instruction, flow chart to ensure the material resources availability and suitability at start of series in place not followed. | F140: Procedure, work instruction, flow chart to ensure the material resources availability and suitability at start of series in place not fully followed. Minor exceptions noted. | G140: Procedure, work instruction, flow chart to ensure the material resources availability and suitability at start of series in place and followed. No exceptions noted. | H140: 3 | I140: =IF(H140="NA","",IF(H140>2,"Low",IF(H140>0,"Med","High"))) -> Low | K140: 0 | Q140: =IF(AND(B140="*", OR(H140=1, H140=0)), "Fail", "") ->  | LC140: Low
A141: 4.4 | B141: * | C141: Are the required approvals and releases for the service / service development available?* | D141: No procedure, work instruction, flow chart to availability of required approvals and releases for the service / service development. | E141: Procedure, work instruction, flow chart to availability of required approvals and releases for the service / service development in place not followed. | F141: Procedure, work instruction, flow chart to availability of required approvals and releases for the service / service development in place not fully followed. Minor exceptions noted. | G141: Procedure, work instruction, flow chart to availability of required approvals and releases for the service / service development in place and followed. No exceptions noted. | H141: 3 | I141: =IF(H141="NA","",IF(H141>2,"Low",IF(H141=2,"Med","High"))) -> Low | K141: 0 | LC141: Low
A142: 4.5 | C142: Are the service specifications derived from the product and process development and are they implemented? | D142: No procedure, work instruction, flow chart for availability and implementation of service specifications derived from the product and process development. | E142: Procedure, work instruction, flow chart for availability and implementation of service specifications derived from the product and process development in place not followed. | F142: Procedure, work instruction, flow chart for availability and implementation of service specifications derived from the product and process development in place not fully followed. Minor exceptions noted. | G142: Procedure, work instruction, flow chart for availability and implementation of service specifications derived from the product and process development in place and followed. No exceptions noted. | H142: 3 | I142: =IF(H142="NA","",IF(H142>2,"Low",IF(H142>0,"Med","High"))) -> Low | K142: 0 | LC142: Low
A143: 4.6 | C143: Is a performance test for the developed service defined and performed to ensure that the service will withstand the stress of working conditions? | D143: No procedure, work instruction, flow chart for performance test of the developed service. | E143: Procedure, work instruction, flow chart for performance test of the developed service in place not followed. | F143: Procedure, work instruction, flow chart for performance test of the developed service in place not fully followed. Minor exceptions noted. | G143: Procedure, work instruction, flow chart for performance test of the developed service in place and followed. No exceptions noted. | H143: 3 | I143: =IF(H143="NA","",IF(H143>2,"Low",IF(H143>0,"Med","High"))) -> Low | K143: 0 | LC143: Low
A144: 4.7 | B144: * | C144: Is there a controlled method for the product handover from development to serial production? | D144: No procedure, work instruction, flow chart for product handover from development to serial production. | E144: Procedure, work instruction, flow chart for product handover from development to serial production available not followed. | F144: Procedure, work instruction, flow chart for product handover from development to serial production available not fully followed. Minor exceptions noted. | G144: Procedure, work instruction, flow chart for product handover from development to serial production available and followed. No exceptions noted. | H144: 3 | I144: =IF(H144="NA","",IF(H144>2,"Low",IF(H144=2,"Med","High"))) -> Low | K144: 0 | LC144: Low
A145: Total | H145: =SUMIF(H138:H144,"<>#N/A") -> 21 | K145: 0 | LC145: 0
A146: Total High Risk elements for D4. Implementation of the service / service development = | I146: =COUNTIF(I138:I144,"High") -> 0 | K146: 0 | LC146: 0
A147: D5. Supplier Management (VW Suppliers only) | K147: 0 | LC147: 0
A148: No. | B148: Critical | C148: D5. Supplier Management | D148: Score | H148: Score | I148: Risk | J148: Notes/Comments | K148: 0 | LC148: =I148 -> Risk
D149: High Risk | E149: Medium to High Risk | F149: Low to Medium Risk | G149: Negligible to No Risk | K149: 0 | LC149: 0
C150: ITEM | D150: 0 | E150: 1 | F150: 2 | G150: 3 | K150: 0 | LC150: 0
A151: 5.1 | C151: Are only approved and quality-capable suppliers and subcontractors used? | D151: No procedure, work instruction, flow chart for approval and use of qualified suppliers and subcontractors. | E151: Procedure, work instruction, flow chart for approval and use of qualified suppliers and subcontractors in place not followed. | F151: Procedure, work instruction, flow chart for approval and use of qualified suppliers and subcontractors in place not fully followed. Minor exceptions noted. | G151: Procedure, work instruction, flow chart for approval and use of qualified suppliers and subcontractors in place not fully followed. Minor exceptions noted. | H151: 3 | I151: =IF(H151="NA","",IF(H151>2,"Low",IF(H151>0,"Med","High"))) -> Low | K151: 0 | LC151: Low
A152: 5.2 | C152: Are customer requirements taken into account in the supply chain? | D152: No procedure, work instruction, flow chart to take into account the customer requirements in the supply chain. | E152: Procedure, work instruction, flow chart to take into account the customer requirements in the supply chain in place not followed. | F152: Procedure, work instruction, flow chart to take into account the customer requirements in the supply chain in place not fully followed. Minor exceptions noted. | G152: Procedure, work instruction, flow chart to take into account the customer requirements in the supply chain in place and followed. No exceptions noted. | H152: 3 | I152: =IF(H152="NA","",IF(H152>2,"Low",IF(H152>0,"Med","High"))) -> Low | K152: 0 | LC152: Low
A153: 5.3 | B153: * | C153: Have target agreements for supplier performance been agreed upon and implemented? | D153: No procedure, work instruction, flow chart for setting and implementing supplier KPIs. | E153: Procedure, work instruction, flow chart for setting and implementing supplier KPIs in place not followed. | F153: Procedure, work instruction, flow chart for setting and implementing supplier KPIs in place not fully followed. Minor exceptions noted. | G153: Procedure, work instruction, flow chart for setting and implementing supplier KPIs in place and followed. No exceptions noted. | H153: 3 | I153: =IF(H153="NA","",IF(H153>2,"Low",IF(H153=2,"Med","High"))) -> Low | K153: 0 | LC153: Low
A154: 5.4 | B154: * | C154: Are the necessary releases available for out sourced products and services? | D154: No procedure, work instruction, flow chart for out sourced products and service releases. | E154: Procedure, work instruction, flow chart for out sourced products and service releases in place not followed. | F154: Procedure, work instruction, flow chart for out sourced products and service releases in place not fully followed. Minor exceptions noted. | G154: Procedure, work instruction, flow chart for out sourced products and service releases in place and followed. No exceptions noted. | H154: 3 | I154: =IF(H154="NA","",IF(H154>2,"Low",IF(H154=2,"Med","High"))) -> Low | K154: 0 | LC154: Low
A155: 5.5 | B155: * | C155: Is the quality of the out-sourced products and services ensured? | D155: No procedure, work instruction, flow chart to ensure the quality of the out-sourced products and services. | E155: Procedure, work instruction, flow chart to ensure the quality of the out-sourced products and services in place not followed. | F155: Procedure, work instruction, flow chart to ensure the quality of the out-sourced products and services in place not fully followed. Minor exceptions noted. | G155: Procedure, work instruction, flow chart to ensure the quality of the out-sourced products and services in place and followed. No exceptions noted. | H155: 3 | I155: =IF(H155="NA","",IF(H155>2,"Low",IF(H155=2,"Med","High"))) -> Low | K155: 0 | LC155: Low
A156: 5.6 | C156: Are personnel qualified for their respective tasks and are responsibilities defined? | D156: No procedure, work instruction, flow chart to ensure the personnel qualification and responsibilities. | E156: Procedure, work instruction, flow chart to ensure the personnel qualification and responsibilities in place not followed. | F156: Procedure, work instruction, flow chart to ensure the personnel qualification and responsibilities in place not fully followed. Minor exceptions noted. | G156: Procedure, work instruction, flow chart to ensure the personnel qualification and responsibilities in place and followed. No exceptions noted. | H156: 3 | I156: =IF(H156="NA","",IF(H156>2,"Low",IF(H156>0,"Med","High"))) -> Low | K156: 0 | LC156: Low
A157: Total | H157: =SUMIF(H151:H156,"<>#N/A") -> 18 | K157: 0 | LC157: 0
A158: Total High Risk elements for D5. Supplier Management = | I158: =COUNTIF(I151:I156,"High") -> 0 | K158: 0 | LC158: 0
A159: D6 Providing the service (VW Suppliers only) | K159: 0 | LC159: 0
A160: No. | B160: Critical | C160: 6.1 What goes into the process? Process input | D160: Score | H160: Score | I160: Risk | J160: Notes/Comments | K160: 0 | LC160: Risk
D161: High Risk | E161: Medium to High Risk | F161: Low to Medium Risk | G161: Negligible to No Risk | K161: 0 | LC161: 0
C162: ITEM | D162: 0 | E162: 1 | F162: 2 | G162: 3 | K162: 0 | LC162: 0
A163: 6.1.1 | C163: Has the project been transferred from development to the provision of service and is a reliable start guaranteed? | D163: No procedure, work instruction, flow chart to ensure the project transfer from development to provision of service and a reliable start. | E163: Procedure, work instruction, flow chart to ensure the project transfer from development to provision of service and a reliable start in place not followed. | F163: Procedure, work instruction, flow chart to ensure the project transfer from development to provision of service and a reliable start in place not fully followed. Minor exceptions noted. | G163: Procedure, work instruction, flow chart to ensure the project transfer from development to provision of service and a reliable start in place and followed. No exceptions noted. | H163: 3 | I163: =IF(H163="NA","",IF(H163>2,"Low",IF(H163>0,"Med","High"))) -> Low | K163: 0 | LC163: Low
A164: 6.1.2 | C164: Are the necessary materials for providing the service available at the agreed upon time and at the right location? | D164: No procedure, work instruction, flow chart to ensure the material availability, at agreed time and location for service. | E164: Procedure, work instruction, flow chart to ensure the material availability, at agreed time and location for service in place not followed. | F164: Procedure, work instruction, flow chart to ensure the material availability, at agreed time and location for service in place not fully followed. Minor exceptions noted. | G164: Procedure, work instruction, flow chart to ensure the material availability, at agreed time and location for service in place and followed. No exceptions noted. | H164: 3 | I164: =IF(H164="NA","",IF(H164>2,"Low",IF(H164>0,"Med","High"))) -> Low | K164: 0 | LC164: Low
A165: 6.1.3 | C165: Are incoming materials necessary to provide the service stored appropriately and are the means of transport / packing facilities suitable for the special characteristics of the incoming materials? | D165: No procedure, work instruction, flow chart to ensure proper storage and transportation of the materials for service parts. | E165: Procedure, work instruction, flow chart to ensure proper storage and transportation of the materials for service parts in place not followed. | F165: Procedure, work instruction, flow chart to ensure proper storage and transportation of the materials for service parts in place not fully followed. Minor exceptions noted. | G165: Procedure, work instruction, flow chart to ensure proper storage and transportation of the materials for service parts in place and followed. No exceptions noted. | H165: 3 | I165: =IF(H165="NA","",IF(H165>2,"Low",IF(H165>0,"Med","High"))) -> Low | K165: 0 | LC165: Low
A166: 6.1.4 | B166: * | C166: Are changes to the service made during the provision of the service tracked and documented? | D166: No procedure, work instruction, flow chart to track and document the changes, made during the provision of service, to the service parts. | E166: Procedure, work instruction, flow chart to track and document the changes, made during the provision of service, to the service parts in place not followed. | F166: Procedure, work instruction, flow chart to track and document the changes, made during the provision of service, to the service parts in place not fully followed. Minor exceptions noted. | G166: Procedure, work instruction, flow chart to track and document the changes, made during the provision of service, to the service parts in place and followed. No exceptions noted. | H166: 3 | I166: =IF(H166="NA","",IF(H166>2,"Low",IF(H166=2,"Med","High"))) -> Low | K166: 0 | LC166: Low
A167: Total | H167: =SUMIF(H163:H166,"<>#N/A") -> 12 | K167: 0 | LC167: 0
A168: Total High Risk elements for 6.1 What goes into the process? Process input = | I168: =COUNTIF(I163:I166,"High") -> 0 | K168: 0 | LC168: 0
A169: D6 Providing the service (VW Suppliers only) | K169: 0 | LC169: 0
A170: No. | B170: Critical | C170: 6.2 Are all processes necessary to provide the service determined? | D170: Score | H170: Score | I170: Risk | J170: Notes/Comments | K170: 0 | LC170: Risk
D171: High Risk | E171: Medium to High Risk | F171: Low to Medium Risk | G171: Negligible to No Risk | K171: 0 | LC171: 0
C172: ITEM | D172: 0 | E172: 1 | F172: 2 | G172: 3 | K172: 0 | LC172: 0
A173: 6.2.1 | B173: * | C173: Are the employees able to fulfil their given tasks and ensure that the service is provided? | D173: No procedure, work instruction, flow chart to evaluate if the employees are able to fullfill their given tasks as per documented process in place and ensure the service is provided. | E173: Procedure, work instruction, flow chart to evaluate if the employees are able to fullfill their given tasks as per documented process in place and ensure the service is provided is available not followed. | F173: Procedure, work instruction, flow chart to evaluate if the employees are able to fullfill their given tasks as per documented process in place and ensure the service is provided is available not fully followed. Minor exceptions noted. | G173: Procedure, work instruction, flow chart to evaluate if the employees are able to fullfill their given tasks as per documented process in place and ensure the service is provided is available and followed. No exceptions noted. | H173: 3 | I173: =IF(H173="NA","",IF(H173>2,"Low",IF(H173=2,"Med","High"))) -> Low | K173: 0 | LC173: Low
A174: 6.2.2 | B174: * | C174: Do the employees know their responsibilities and authority in the monitoring of the quality of the service process and the service? | D174: No procedure, work instruction, flow chart to evaluate the employees knowledge, responsibility and authority for monitoring the quality of the service process and the service. | E174: Procedure, work instruction, flow chart to evaluate the employees knowledge, responsibility and authority for monitoring the quality of the service process and the service in place not followed. | F174: Procedure, work instruction, flow chart to evaluate the employees knowledge, responsibility and authority for monitoring the quality of the service process and the service in place not fully followed. Minor exceptions noted. | G174: Procedure, work instruction, flow chart to evaluate the employees knowledge, responsibility and authority for monitoring the quality of the service process and the service in place and followed. No exceptions noted. | H174: 3 | I174: =IF(H174="NA","",IF(H174>2,"Low",IF(H174=2,"Med","High"))) -> Low | K174: 0 | LC174: Low
A175: 6.2.3 | B175: * | C175: Are the necessary personnel resources available? | D175: No procedure, work instruction, flow chart to evaluate the availability of personnel resources for service. | E175: Procedure, work instruction, flow chart to evaluate the availability of personnel resources for service in place not followed. | F175: Procedure, work instruction, flow chart to evaluate the availability of personnel resources for service in place not fully followed. Minor exceptions noted. | G175: Procedure, work instruction, flow chart to evaluate the availability of personnel resources for service in place and followed. No exceptions noted. | H175: 3 | I175: =IF(H175="NA","",IF(H175>2,"Low",IF(H175=2,"Med","High"))) -> Low | K175: 0 | LC175: Low
A176: Total | H176: =SUMIF(H173:H175,"<>#N/A") -> 9 | K176: 0 | LC176: 0
A177: Total High Risk elements for 6.2 Are all processes necessary to provide the service determined = | I177: =COUNTIF(I173:I175,"High") -> 0 | K177: 0 | LC177: 0
A178: D6 Providing the service (VW Suppliers only) | K178: 0 | LC178: 0
A179: No. | B179: Critical | C179: 6.3 What functions support the provision of the service? (personnel resources) | D179: Score | H179: Score | I179: Risk | J179: Notes/Comments | K179: 0 | LC179: Risk
D180: High Risk | E180: Medium to High Risk | F180: Low to Medium Risk | G180: Negligible to No Risk | K180: 0 | LC180: 0
C181: ITEM | D181: 0 | E181: 1 | F181: 2 | G181: 3 | K181: 0 | LC181: 0
A182: 6.3.1 | B182: * | C182: Are the employees able to fulfil their given tasks and ensure that the service is provided? | D182: No procedure, work instruction, flow chart to evaluate if the employees are able to fullfill their given tasks and ensure that the service is provided. | E182: Procedure, work instruction, flow chart to evaluate if the employees are able to fullfill their given tasks and ensure that the service is provided in place not followed. | F182: Procedure, work instruction, flow chart to evaluate if the employees are able to fullfill their given tasks and ensure that the service is provided in place not fully followed. Minor exceptions noted. | G182: Procedure, work instruction, flow chart to evaluate if the employees are able to fullfill their given tasks and ensure that the service is provided in place and followed. No exceptions noted. | H182: 3 | I182: =IF(H182="NA","",IF(H182>2,"Low",IF(H182=2,"Med","High"))) -> Low | K182: 0 | LC182: Low
A183: 6.3.2 | C183: Do the employees know their responsibilities and authority in the monitoring of the quality of the service process and the service? | D183: No procedure, work instruction, flow chart to evaluate the employees knowledge, responsibility and authority for monitoring the quality of the service process and the service. | E183: Procedure, work instruction, flow chart to evaluate the employees knowledge, responsibility and authority for monitoring the quality of the service process and the service in place not followed. | F183: Procedure, work instruction, flow chart to evaluate the employees knowledge, responsibility and authority for monitoring the quality of the service process and the service in place not fully followed. Minor exceptions noted. | G183: Procedure, work instruction, flow chart to evaluate the employees knowledge, responsibility and authority for monitoring the quality of the service process and the service in place and followed. No exceptions noted. | H183: 3 | I183: =IF(H183="NA","",IF(H183>2,"Low",IF(H183>0,"Med","High"))) -> Low | K183: 0 | LC183: Low
A184: 6.3.3 | B184: * | C184: Are the necessary personnel resources available? | D184: No procedure, work instruction, flow chart to evaluate the availability of personnel resources for service. | E184: Procedure, work instruction, flow chart to evaluate the availability of personnel resources for service in place not followed. | F184: Procedure, work instruction, flow chart to evaluate the availability of personnel resources for service in place not fully followed. Minor exceptions noted. | G184: Procedure, work instruction, flow chart to evaluate the availability of personnel resources for service in place and followed. No exceptions noted. | H184: 3 | I184: =IF(H184="NA","",IF(H184>2,"Low",IF(H184=2,"Med","High"))) -> Low | K184: 0 | LC184: Low
A185: Total | H185: =SUMIF(H182:H184,"<>#N/A") -> 9 | K185: 0 | LC185: 0
A186: Total High Risk elements for 6.3 What functions support the provision of the service? (personnel resources) = | I186: =COUNTIF(I182:I184,"High") -> 0 | K186: 0 | LC186: 0
A187: D6 Providing the service (VW Suppliers only) | K187: 0 | LC187: 0
A188: No. | B188: Critical | C188: 6.4 What means are used to provide the service? (material resources) | D188: Score | H188: Score | I188: Risk | J188: Notes/Comments | K188: 0 | LC188: Risk
D189: High Risk | E189: Medium to High Risk | F189: Low to Medium Risk | G189: Negligible to No Risk | K189: 0 | LC189: 0
C190: ITEM | D190: 0 | E190: 1 | F190: 2 | G190: 3 | K190: 0 | LC190: 0
A191: 6.4.1 | C191: Can the specific requirements from the customer be met with the equipment used for the provision of the service? | D191: No procedure, work instruction, flow chart to ensure that the equipment used for service provision can met the customer specific requirements. | E191: Procedure, work instruction, flow chart to ensure that the equipment used for service provision can met the customer specific requirements in place not followed. | F191: Procedure, work instruction, flow chart to ensure that the equipment used for service provision can met the customer specific requirements in place not fully followed. Minor exceptions noted. | G191: Procedure, work instruction, flow chart to ensure that the equipment used for service provision can met the customer specific requirements in place and followed. No exceptions noted. | H191: 3 | I191: =IF(H191="NA","",IF(H191>2,"Low",IF(H191>0,"Med","High"))) -> Low | K191: 0 | LC191: Low
A192: 6.4.2 | C192: Is the maintenance of the equipment required for the provision of the service controlled? | D192: No procedure, work instruction, flow chart to control the maintenance of the equipment required for the provision of the service. | E192: Procedure, work instruction, flow chart to control the maintenance of the equipment required for the provision of the service in place not followed. | F192: Procedure, work instruction, flow chart to control the maintenance of the equipment required for the provision of the service in place not fully followed. Minor exceptions noted. | G192: Procedure, work instruction, flow chart to control the maintenance of the equipment required for the provision of the service in place and followed. No exceptions noted. | H192: 3 | I192: Low | K192: 0 | LC192: Low
A193: 6.4.3 | B193: * | C193: Can the quality requirements of the service be effectively monitored with the measurement and testing facilities in use? | D193: No procedure, work instruction, flow chart to evaluate the effectiveness of the quality requirements for service with the measurement and testing facilities. | E193: Procedure, work instruction, flow chart to evaluate the effectiveness of the quality requirements for service with the measurement and testing facilities in place not followed. | F193: Procedure, work instruction, flow chart to evaluate the effectiveness of the quality requirements for service with the measurement and testing facilities in place not fully followed. Minor exceptions noted. | G193: Procedure, work instruction, flow chart to evaluate the effectiveness of the quality requirements for service with the measurement and testing facilities in place and followed. No exceptions noted. | H193: 3 | I193: =IF(H193="NA","",IF(H193>2,"Low",IF(H193=2,"Med","High"))) -> Low | K193: 0 | LC193: Low
A194: 6.4.4 | C194: Are the work stations for the provision of the service appropriate for the needs? | D194: No procedure, work instruction, flow chart to evaluate the effectiveness of the work stations for service. | E194: Procedure, work instruction, flow chart to evaluate the effectiveness of the work stations for service in place not followed. | F194: Procedure, work instruction, flow chart to evaluate the effectiveness of the work stations for service in place not fully followed. Minor exceptions noted. | G194: Procedure, work instruction, flow chart to evaluate the effectiveness of the work stations for service in place and followed. No exceptions noted. | H194: 3 | I194: =IF(H194="NA","",IF(H194>2,"Low",IF(H194>0,"Med","High"))) -> Low | K194: 0 | LC194: Low
A195: 6.4.5 | C195: Are tools, equipment and testing equipment stored properly? | D195: No procedure, work instruction, flow chart to ensure the proper storage of the tools, equipment and testing equipment. | E195: Procedure, work instruction, flow chart to ensure the proper storage of the tools, equipment and testing equipment, in place not followed. | F195: Procedure, work instruction, flow chart to ensure the proper storage of the tools, equipment and testing equipment, in place not fully followed. Minor exceptions noted. | G195: Procedure, work instruction, flow chart to ensure the proper storage of the tools, equipment and testing equipment, in place and followed. No exceptions noted. | H195: 3 | I195: Low | K195: 0 | LC195: Low
A196: Total | H196: =SUMIF(H191:H195,"<>#N/A") -> 15 | K196: 0 | LC196: 0
A197: Total High Risk elements for 6.4 What means are used to provide the service? (material resources) = | I197: =COUNTIF(I191:I195,"High") -> 0 | K197: 0 | LC197: 0
A198: D6 Providing the service (VW Suppliers only) | K198: 0 | LC198: 0
A199: No. | B199: Critical | C199: 6.5 How effective is the process for the provision of the service being carried out? Effectiveness, efficiency, waste avoidance | D199: Score | H199: Score | I199: Risk | J199: Notes/Comments | K199: 0 | LC199: Risk
D200: High Risk | E200: Medium to High Risk | F200: Low to Medium Risk | G200: Negligible to No Risk | K200: 0 | LC200: 0
... 67 more rows

Sheet AVWS PDCA Tracker
A1: PDCA PLANNING WORKSHEET | J1: Issue Date:
A2: Assessment Concerns & Corrective Action
A3: PLAN | E3: DO | J3: Check / Measure / Actions Effective?
A4: Section Number | B4: Item No. | C4: Critical Item | D4: Issue Description | E4: Proposed Actions Taken | F4: Responsibility | G4: Task Timing | J4: Results/Conclusions | K4: Comments
G5: Start Date (Supplier) | H5: Complete Date (Supplier) | I5: Verified Date (MatcorMatsu)
A7: Advance Product Quality Planning
A8: VDA 6.3-Project Management (VW Suppliers only)
A9: P2 | B9: 2.1
B10: 2.2
B11: 2.3
B12: 2.4
B13: 2.5* | C13: *
B14: 2.6* | C14: *
B15: 2.7
A16: VDA 6.3-Planning the product and process development (VW Suppliers only)
A17: P3 | B17: 3.1
B18: 3.2* | C18: *
B19: 3.3
B20: 3.4
B21: 3.5
A22: VDA 6.3-Implementation of the product and process development (VW Suppliers only)
A23: P4 | B23: 4.1* | C23: *
B24: 4.2
B25: 4.3
B26: 4.4* | C26: *
B27: 4.5
B28: 4.6
B29: 4.7* | C29: *
A30: Purchasing
A31: VDA 6.3-Supplier Management (VW Suppliers only)
A32: P5 | B32: 5.1
B33: 5.2
B34: 5.3
B35: 5.4* | C35: *
B36: 5.5* | C36: *
B37: 5.6
B38: 5.7
A39: Operations
A40: VDA 6.3-Process analysis / production (VW Suppliers only)
A41: 6.1 | B41: VDA 6.3-What goes into the process? Process input (VW Suppliers only)
A42: P6 | B42: 6.1.1
B43: 6.1.2
B44: 6.1.3
B45: 6.1.4
B46: 6.1.5* | C46: *
A47: 6.2 | B47: VDA 6.3-Are all production processes controlled? (VW Suppliers only) (process management)
A48: P6 | B48: 6.2.1
B49: 6.2.2* | C49: *
B50: 6.2.3* | C50: *
B51: 6.2.4* | C51: *
B52: 6.2.5
A53: 6.3 | B53: VDA 6.3-What functions support the process? (personnel resources) (VW Suppliers only)
A54: P6 | B54: 6.3.1* | C54: *
B55: 6.3.2
B56: 6.3.3
A57: 6.4 | B57: VDA 6.3-What means are used to implement the process? (VW Suppliers only) (material resources)
A58: P6 | B58: 6.4.1* | C58: *
B59: 6.4.2
B60: 6.4.3* | C60: *
B61: 6.4.4
B62: 6.4.5
A63: 6.5 | B63: VDA 6.3-How effective is the process being carried out? (VW Suppliers only)
A64: P6 | B64: 6.5.1
B65: 6.5.2
B66: 6.5.3
B67: 6.5.4
A68: 6.6 | B68: VDA 6.3-What should the process produce? (process result / output) (VW Suppliers only)
A69: P6 | B69: 6.6.1
B70: 6.6.2
B71: 6.6.3
B72: 6.6.4* | C72: *
A73: VDA 6.3-Customer care / customer satisfaction / service (VW Suppliers only)
A74: P7 | B74: 7.1
B75: 7.2
B76: 7.3* | C76: *
B77: 7.4* | C77: *
B78: 7.5
A79: 8.0 Process Audit Services (VW Suppliers only)
A80: 8.1 Overview Questionnaire for Services (VW Suppliers only)
A81: D2. Project Management (VW Suppliers only)
A82: D2 | B82: 2.1
B83: 2.2 | C83: *
B84: 2.3
B85: 2.4
B86: 2.5
B87: 2.6
B88: 2.7
A89: D3. Planning service development (VW Suppliers only)
A90: D3 | B90: 3.1 | C90: *
B91: 3.2 | C91: *
B92: 3.3
B93: 3.4
A94: Implementation of the service / service development (VW Suppliers only)
A95: D4 | B95: 4.1 | C95: *
B96: 4.2 | C96: *
B97: 4.3
B98: 4.4 | C98: *
B99: 4.5
B100: 4.6
B101: 4.7 | C101: *
A102: Supplier Management (VW Suppliers only)
A103: D5 | B103: 5.1
B104: 5.2
B105: 5.3 | C105: *
B106: 5.4 | C106: *
B107: 5.5 | C107: *
B108: 5.6
A109: D6 Providing the service (VW Suppliers only)
A110: What goes into the process? Process input
A111: 6.1 | B111: 6.1.1
B112: 6.1.2
B113: 6.1.3
B114: 6.1.4 | C114: *
A115: D6 Providing the service (VW Suppliers only)
A116: Are all processes necessary to provide the service determined?
A117: 6.2 | B117: 6.2.1 | C117: *
B118: 6.2.2 | C118: *
B119: 6.2.3 | C119: *
A120: D6 Providing the service (VW Suppliers only)
A121: What functions support the provision of the service? (personnel resources)
A122: 6.3 | B122: 6.3.1 | C122: *
B123: 6.3.2
B124: 6.3.3 | C124: *
A125: D6 Providing the service (VW Suppliers only)
A126: What means are used to provide the service? (material resources)
A127: 6.4 | B127: 6.4.1
B128: 6.4.2
B129: 6.4.3 | C129: *
B130: 6.4.4
B131: 6.4.5
A132: D6 Providing the service (VW Suppliers only)
A133: How effective is the process for the provision of the service being carried out? Effectiveness, efficiency, waste avoidance
A134: 6.5 | B134: 6.5.1 | C134: *
B135: 6.5.2
B136: 6.5.3 | C136: *
B137: 6.5.4
A138: D6 Providing the service (VW Suppliers only)
A139: What should the process produce? Process result (output)
A140: 6.6 | B140: 6.6.1
B141: 6.6.2 | C141: *
A142: D7 Customer care / customer satisfaction / service (VW Suppliers only)
A143: D7 | B143: 7.1
B144: 7.2 | C144: *
B145: 7.3 | C145: *
B146: 7.4 | C146: *
B147: 7.5

Sheet Sustainability Assessment
A1: SUSTAINABILITY ASSESSMENT FORM | C1: NOTES:
C2: 1. If a particular element is currently not applicable, enter NA into the comments section and "1" into Score Column. The Risk section will be adjusted accordingly.
C3: 2. All Red items must be added on the PDCA Tracker.
AA4: Overall | AB4: Quality Management System | AC4: Advance Product Quality Planning | AD4: Quality | AE4: Material & Logistics | AF4: Equipment / Tooling | AG4: Purchasing | AH4: Operations | AI4: Engineering
A5: No. | B5: Company Management | D5: Score | F5: Score | G5: Risk | H5: Notes/Comments | AA5: =SUM(AB5*0.1)+(AC5*0.2)+(AD5*0.2)+(AE5*0.15)+(AF5*0.1)+(AG5*0.05)+(AH5*0.15)+(AI5*0.05) -> 117.0714286 | AB5: =SUM(F8:F40)/(27-AB9)*100 -> 122.2222222 | AC5: =SUM(F46:F60)/(45-AC9)*100 -> 33.33333333 | AD5: =SUM(F66:F75)/(45-AD9)*100 -> 22.22222222 | AE5: =SUM(F81:F92)/(30-AE9)*100 -> 40 | AF5: =SUM(F98:F143)/(21-AF9)*100 -> 219.047619 | AG5: =SUM(F149:F197)/(21-AG9)*100 -> 233.3333333 | AH5: =SUM(F203:F261)/(18-AH9)*100 -> 327.7777778 | AI5: =SUM(F267:F275)/(9-AI9)*100 -> 100
D6: High Risk | E6: Low Risk
B7: ITEM | C7: ITEM DETAILS | D7: 0 | E7: 1 | AA7: High Risk | AB7: High Risk | AC7: High Risk | AD7: High Risk | AE7: High Risk | AF7: High Risk | AG7: High Risk | AH7: High Risk | AI7: High Risk
A8: 1 | B8: Has your company appointed senior management representation for environmental, social, ethics or human rights? | C8: N/A | D8: No appointed senior management representation for environmental, social, ethics or human rights. | E8: Appointed senior management representation for environmental, social, ethics or human rights. | F8: 1 | G8: =IF(F8="NA","",IF(F8=1,"Low","High")) -> Low | I8: =IF(F8="NA",1,0) -> 0 | J8: =IF(AND(B8="*", OR(F8=1, F8=0)), "Fail", "") ->  | AA8: =SUM(AB8:AI8) -> 0 | AB8: =G42 -> 0 | AC8: =G62 -> 0 | AD8: =G77 -> 0 | AE8: =G94 -> 0 | AF8: =G145 -> 0 | AG8: =G199 -> 0 | AH8: =G263 -> 0 | AI8: =G277 -> 0
A9: 2 | B9: Does your company have a management person responsible for Social Sustainability? | C9: N/A | D9: No appointed management person responsible for Social Sustainability. | E9: Appointed management person responsible for Social Sustainability. | F9: 1 | G9: =IF(F9="NA","",IF(F9=1,"Low","High")) -> Low | I9: 0 | AB9: =COUNTIF(F8:F40,"NA")*3 -> 0 | AC9: =COUNTIF(F46:F60,"NA")*3 -> 0 | AD9: =COUNTIF(F66:F75,"NA")*3 -> 0 | AE9: =COUNTIF(F81:F92,"NA")*3 -> 0 | AF9: =COUNTIF(F98:F143,"NA")*3 -> 0 | AG9: =COUNTIF(F149:F197,"NA")*3 -> 0 | AH9: =COUNTIF(F203:F261,"NA")*3 -> 0 | AI9: =COUNTIF(F267:F275,"NA")*3 -> 0
A10: 3 | B10: Does your company have a management person responsible for Compliance/Business Ethics? | C10: N/A | D10: No appointed management person responsible for Compliance/Business Ethics. | E10: Appointed management person responsible for Compliance/Business Ethics. | F10: 1 | G10: Low | I10: 0
A11: 4 | B11: Does your company have a management person responsible for Environmental Sustainability? | C11: N/A | D11: No appointed management person responsible for Environmental Sustainability. | E11: Appointed management person responsible for Environmental Sustainability. | F11: 1 | G11: Low | I11: 0
A12: 5 | B12: Does your company have a management person responsible for monitoring sustainability risks (e.g. a Human Rights Officer)? | C12: N/A | D12: No appointed management person responsible for monitoring sustainability risks (e.g. a Human Rights Officer) | E12: Appointed management person responsible for monitoring sustainability risks (e.g. a Human Rights Officer) | F12: 1 | G12: Low | I12: 0
A13: 6 | B13: Does your company publish a Corporate Social Responsibility (CSR)/Sustainability Report? Recommendations: -Your company should publish a Corporate Social Responsibility (CSR)/Sustainability Report -Your Corporate Social Responsibility (CSR)/Sustainability Report should be assured by a third party -Your Corporate Social Responsibility (CSR)/Sustainability Report should disclose: Identified human rights risks Existing measures that your company has already taken to address human rights risks and review of their effectiveness Future measures that your company plans to take to manage your human rights risks -Your Corporate Social Responsibility (CSR)/Sustainability Report should disclose: Identified environmental risks Existing measures that your company has already taken to address environmental risks and review of their effectiveness Future measures that your company plans to take to manage your environmental risks -Your company should report annually on the fulfilment of statutory due diligence obligations. | C13: N/A | D13: No | E13: Yes | F13: 1 | G13: Low | I13: 0
A14: 7 | B14: Does your company have a Code of Conduct? | C14: N/A | D14: No | E14: Yes | F14: 1 | G14: Low | I14: 0
A15: 8 | B15: Does your company organise training for your employees on the Code of Conduct? | C15: N/A | D15: No | E15: Yes | F15: 1 | G15: Low | I15: 0
A16: 9 | B16: Does your company have a grievance mechanism or documented complaints procedure established at this location? | C16: N/A | D16: No | E16: Yes | F16: 1 | G16: Low | I16: =IF(F16="NA",1,0) -> 0
A17: 10a | B17: What are the characteristics of your company's grievance mechanism or complaints procedure? | C17: -The responsible person(s) entrusted by the enterprise is impartial, independent and not bound by instructions | D17: No | E17: Yes | F17: 1 | G17: Low | I17: 0
A18: 10b | C18: -The written rules of the complaints procedure outline the ways in which a complaint may proceed and may indicate the approximate time each step may take | D18: No | E18: Yes | F18: 1 | G18: Low
A19: 10c | C19: -The written rules of the complaints procedure are publicly made available in relevant local languages in all countries i which we operate | D19: No | E19: Yes | F19: 1 | G19: Low
A20: 10d | C20: -Complainant is provided confirmation of receipt upon reporting the complaint | D20: No | E20: Yes | F20: 1 | G20: Low
A21: 10e | C21: -The complainant's identity is treated confidentially | D21: No | E21: Yes | F21: 1 | G21: Low
A22: 10f | C22: -Commitment to non-retaliation against complainants | D22: No | E22: Yes | F22: 1 | G22: Low
A23: 10g | C23: -Complaints can be reported anonymously | D23: No | E23: Yes | F23: 1 | G23: Low
A24: 10h | C24: -The complainant or their representative is consulted during remediation/resolution | D24: No | E24: Yes | F24: 1 | G24: Low
A25: 11a | B25: What kind of complaints can be submitted? | C25: -Human rights complaints | D25: No | E25: Yes | F25: 1 | G25: Low
A26: 11b | C26: -Environmental complaints | D26: No | E26: Yes | F26: 1 | G26: Low
A27: 11c | C27: -Unethical business practices | D27: No | E27: Yes | F27: 1 | G27: Low
A28: 12a | B28: Which stakeholder groups is the complaints mechanism available to? | C28: -Internal Stakeholders (company/non-permanent employees, direct suppliers, service providers, etc) | D28: No | E28: Yes | F28: 1 | G28: Low
A29: 12b | C29: -External Stakeholders (contractors, indirect suppliers, local communities etc.) | D29: No | E29: Yes | F29: 1 | G29: Low
A30: 12c | C30: -Others | D30: No | E30: Yes | F30: 1 | G30: Low
A31: 13a | B31: How does your company optimise accessibility of the complaints procedure for all the stakeholder groups that are entitled to use it? | C31: -By carrying out training | D31: No | E31: Yes | F31: 1 | G31: Low
A32: 13b | C32: -By different media - online | D32: No | E32: Yes | F32: 1 | G32: Low
A33: 13c | C33: -By different media - phone | D33: No | E33: Yes | F33: 1 | G33: Low
A34: 13d | C34: -By different media - email | D34: No | E34: Yes | F34: 1 | G34: Low
A35: 13e | C35: -By different media - App | D35: No | E35: Yes | F35: 1 | G35: =IF(F35="NA","",IF(F35=1,"Low","High")) -> Low
A36: 14a | B36: The grievance mechanism/complaints procedure has any of the following characteristics? | C36: Outlines who is responsible for the complaints procedure | D36: No | E36: Yes | F36: 1 | G36: Low
A37: 14b | C37: Outlines the ways in which a complaint may proceed and indicates the approximate time each step may take | D37: No | E37: Yes | F37: 1 | G37: Low
A38: 14c | C38: The complainant is provided confirmation of receipt upon reporting the complaint | D38: No | E38: Yes | F38: 1 | G38: Low
A39: 14d | C39: Evaluation of the effectiveness of the complaints procedure at least once every 12 months | D39: No | E39: Yes | F39: 1
A40: 14e | C40: An appeal procedure | D40: No | E40: Yes | F40: 1 | G40: Low
A41: Total | F41: =SUMIF(F8:F40,"<>#NA") -> 33 | I41: 0 | J41: =IF(AND(B41="*", OR(F41=1, F41=0)), "Fail", "") -> 
A43: No. | B43: Human Rights and Working Conditions | D43: Score | F43: Score | G43: Risk | H43: Notes/Comments | I43: 0 | J43: =IF(AND(#REF!="*", OR(F43=1, F43=0)), "Fail", "") -> 
D44: High Risk | E44: Low Risk | I44: 0 | J44: =IF(AND(B44="*", OR(F44=1, F44=0)), "Fail", "") -> 
B45: ITEM | C45: ITEM DETAILS | D45: 0 | E45: 1 | I45: 0
A46: 1 | B46: Does your company have a formal policy covering human rights and working conditions? | C46: N/A | D46: No | E46: Yes | F46: 1 | G46: =IF(F46="NA","",IF(F46=1,"Low","High")) -> Low | I46: 0
A47: 2a | B47: Which of the following areas are covered by the human rights and working conditions policy? | C47: Child labour and young workers | D47: No | E47: Yes | F47: 1 | G47: Low | I47: 0
A48: 2b | C48: Wages and benefits | D48: No | E48: Yes | F48: 1 | G48: Low | I48: 0
A49: 2c | C49: Working hours | D49: No | E49: Yes | F49: 1 | G49: Low | I49: 0
A50: 2d | C50: Modern slavery (i.e. slavery, servitude and forced or compulsory labour and human trafficking) | D50: No | E50: Yes | F50: 1 | G50: Low | I50: 0
A51: 2e | C51: Ethical recruiting | D51: No | E51: Yes | F51: 1 | G51: Low | I51: 0
A52: 2f | C52: Freedom of association and collective bargaining | D52: No | E52: Yes | F52: 1 | G52: Low | I52: 0
A53: 2g | C53: Non-discrimination and harassment | D53: No | E53: Yes | F53: 1 | G53: Low | I53: 0
A54: 2h | C54: Women's Rights | D54: No | E54: Yes | F54: 1 | G54: Low | I54: 0
A55: 2i | C55: Diversity, Equity, and Inclusion | D55: No | E55: Yes | F55: 1 | G55: Low | I55: 0
A56: 2j | C56: Rights of Minorities and Indigenous Peoples | D56: No | E56: Yes | F56: 1 | G56: Low | I56: 0
A57: 2k | C57: Land, Forest and Water Rights and Forced Eviction | D57: No | E57: Yes | F57: 1 | G57: Low | I57: 0
A58: 2l | C58: Use of Private or Public Security Forces | D58: No | E58: Yes | F58: 1 | G58: Low | I58: 0
A59: 3 | B59: Does your company organise training for your employees on your human rights and working conditions policy? | C59: N/A | D59: No | E59: Yes | F59: 1 | G59: Low | I59: 0
A60: 4 | B60: Does your site have a management system in place to manage the human rights and working conditions issues? | C60: N/A | D60: No | E60: Yes | F60: 1 | G60: Low
A61: Total | F61: =SUMIF(F46:F60,"<>#NA") -> 15 | I61: 0 | J61: =IF(AND(B61="*", OR(F61=1, F61=0)), "Fail", "") -> 
A63: No. | B63: Health and Safety | D63: Score | F63: Score | G63: Risk | H63: Notes/Comments | I63: 0 | J63: =IF(AND(B63="*", OR(F63=1, F63=0)), "Fail", "") -> 
D64: High Risk | E64: Low Risk | I64: 0
B65: ITEM | C65: ITEM DETAILS | D65: 0 | E65: 1 | I65: 0
A66: 1 | B66: Does your company have a formal written health and safety policy in place, which complies with local law, industry requirements and international standards? | C66: N/A | D66: No | E66: Yes | F66: 1 | G66: =IF(F66="NA","",IF(F66=1,"Low","High")) -> Low | I66: 0
A67: 2a | B67: Which of the following areas are covered by this policy? Please tick all that apply. | C67: Personal protective equipment | D67: No | E67: Yes | F67: 1 | G67: Low | I67: 0
A68: 2b | C68: Machine safety | D68: No | E68: Yes | F68: 1 | G68: Low | I68: 0
A69: 2c | C69: Emergency preparedness | D69: No | E69: Yes | F69: 1 | G69: Low | I69: 0
A70: 2d | C70: Incident and accident management | D70: No | E70: Yes | F70: 1 | G70: Low | I70: 0
A71: 2e | C71: Workplace ergonomics | D71: No | E71: Yes | F71: 1 | G71: Low | I71: 0
A72: 2f | C72: Handling of chemical and/or biological substances | D72: No | E72: Yes | F72: 1 | G72: Low | I72: 0
A73: 2g | C73: Fire protection | D73: No | E73: Yes | F73: 1 | G73: Low | I73: 0
A74: 3 | B74: Does your company organise training for your employees on your health and safety policy? | C74: N/A | D74: No | E74: Yes | F74: 1 | G74: Low | I74: 0
A75: 4 | B75: Does your site have a health and safety management system in place? | C75: N/A | D75: No | E75: Yes | F75: 1 | G75: Low | I75: 0
A76: Total | F76: =SUM(F66:F75) -> 10 | I76: 0
A78: No. | B78: Business Ethics | D78: Score | F78: Score | G78: Risk | H78: Notes/Comments | I78: 0 | J78: =IF(AND(B78="*", OR(F78=1, F78=0)), "Fail", "") -> 
D79: High Risk | E79: Low Risk | I79: =IF(F79="NA",1,0) -> 0
B80: ITEM | C80: ITEM DETAILS | D80: 0 | E80: 1 | I80: 0
A81: 1 | B81: Does your company have a formal policy covering business ethics? | C81: N/A | D81: No | E81: Yes | F81: 1 | G81: =IF(F81="NA","",IF(F81=1,"Low","High")) -> Low | I81: 0
A82: 2a | B82: Which of the following areas are covered by this policy? | C82: Anti-Corruption and Anti-Money Laundering | D82: No | E82: Yes | F82: 1 | G82: Low | I82: 0
A83: 2b | C83: Data Protection and Data Security | D83: No | E83: Yes | F83: 1 | G83: Low | I83: 0
A84: 2c | C84: Financial responsibility (Accurate Records) | D84: No | E84: Yes | F84: 1 | G84: Low | I84: 0
A85: 2d | C85: Disclosure of Information | D85: No | E85: Yes | F85: 1 | G85: Low | I85: 0
A86: 2e | C86: Fair competition and anti-trust | D86: No | E86: Yes | F86: 1 | G86: Low | I86: 0
A87: 2f | C87: Conflicts of interest | D87: No | E87: Yes | F87: 1 | G87: Low | I87: 0
A88: 2g | C88: Counterfeit parts | D88: No | E88: Yes | F88: 1 | G88: Low | I88: 0
A89: 2h | C89: Intellectual property | D89: No | E89: Yes | F89: 1 | G89: Low | I89: 0
A90: 2i | C90: Export controls and economic sanctions | D90: No | E90: Yes | F90: 1 | G90: Low
A91: 2j | C91: Whistleblowing and protection against retaliation | D91: No | E91: Yes | F91: 1 | G91: Low
A92: 3 | B92: Does your company organise training for your employees on your business ethics policy? | C92: N/A | D92: No | E92: Yes | F92: 1 | G92: Low
A93: Total | F93: =SUM(F81:F92) -> 12 | I93: 0 | J93: =IF(AND(B93="*", OR(F93=1, F93=0)), "Fail", "") -> 
A95: No. | B95: Environment | D95: Score | F95: Score | G95: Risk | H95: Notes/Comments | I95: 0 | J95: =IF(AND(B95="*", OR(F95=1, F95=0)), "Fail", "") -> 
D96: High Risk | E96: Low Risk | I96: 0
B97: ITEM | C97: ITEM DETAILS | D97: 0 | E97: 1 | I97: 0
A98: 1 | B98: Does your company have a formal environmental policy, which includes a commitment to legal compliance, continuous measurement and continuous improvements in environmental performance? | C98: N/A | D98: No | E98: Yes | F98: 1 | G98: =IF(F98="NA","",IF(F98=1,"Low","High")) -> Low | I98: 0
A99: 2a | B99: Which of the following areas are covered by this policy? | C99: GHG emissions | D99: No | E99: Yes | F99: 1 | G99: Low | I99: 0
A100: 2b | C100: Energy efficiency | D100: No | E100: Yes | F100: 1 | G100: Low | I100: 0
A101: 2c | C101: Renewable energy | D101: No | E101: Yes | F101: 1 | G101: Low | I101: 0
A102: 2d | C102: Decarbonisation | D102: No | E102: Yes | F102: 1 | G102: Low | I102: 0
A103: 2e | C103: Water quality and consumption & management | D103: No | E103: Yes | F103: 1 | G103: Low | I103: 0
A104: 2f | C104: Air quality | D104: No | E104: Yes | F104: 1 | G104: Low
A105: 2g | C105: Responsible chemical management | D105: No | E105: Yes | F105: 1 | G105: Low
A106: 2h | C106: Sustainable resources management | D106: No | E106: Yes | F106: 1 | G106: Low
A107: 2i | C107: Waste reduction | D107: No | E107: Yes | F107: 1 | G107: Low
A108: 2j | C108: Reuse and recycling | D108: No | E108: Yes | F108: 1 | G108: Low
A109: 2k | C109: Animal welfare | D109: No | E109: Yes | F109: 1 | G109: Low
A110: 2l | C110: Biodiversity, land use and deforestation | D110: No | E110: Yes | F110: 1 | G110: Low
A111: 2m | C111: Soil quality | D111: No | E111: Yes | F111: 1 | G111: Low
A112: 2n | C112: Noise emissions | D112: No | E112: Yes | F112: 1 | G112: Low
A113: 2o | C113: Other areas | D113: No | E113: Yes | F113: 1 | G113: Low
A114: 3 | B114: Does your company organise training for your employees on your environmental policy? | C114: N/A | D114: No | E114: Yes | F114: 1 | G114: Low
A115: 4 | B115: Does your site have an environmental management system in place? | C115: N/A | D115: No | E115: Yes | F115: 1 | G115: Low
A116: 5 | B116: Does your site have an energy management system? | C116: N/A | D116: No | E116: Yes | F116: 1 | G116: Low
A117: 6a | B117: What percentage of electricity used at your site in the last calendar year came from renewable sources? | C117: 91%-100% | D117: No | E117: Yes | F117: 1 | G117: Low
A118: 6b | C118: 81%-90% | D118: No | E118: Yes | F118: 1 | G118: Low
A119: 6c | C119: 71%-80% | D119: No | E119: Yes | F119: 1 | G119: Low
A120: 6d | C120: 61%-70% | D120: No | E120: Yes | F120: 1 | G120: Low
A121: 6e | C121: 51-60% | D121: No | E121: Yes | F121: 1 | G121: Low
A122: 6f | C122: 41%-50% | D122: No | E122: Yes | F122: 1 | G122: Low
A123: 6g | C123: 31%-40% | D123: No | E123: Yes | F123: 1 | G123: Low
A124: 6h | C124: 21%-30% | D124: No | E124: Yes | F124: 1 | G124: Low
A125: 6i | C125: 11%-20% | D125: No | E125: Yes | F125: 1 | G125: Low
A126: 6j | C126: 1%-10% | D126: No | E126: Yes | F126: 1 | G126: Low
A127: 6k | C127: Not known | D127: No | E127: Yes | F127: 1 | G127: Low
A128: 6l | C128: N/A | D128: No | E128: Yes | F128: 1 | G128: Low
A129: 7a | B129: What percentage of heating/cooling used at your site in the last calendar year came from renewable sources? | C129: 91%-100% | D129: No | E129: Yes | F129: 1 | G129: Low
A130: 7b | C130: 81%-90% | D130: No | E130: Yes | F130: 1 | G130: Low
A131: 7c | C131: 71%-80% | D131: No | E131: Yes | F131: 1 | G131: Low
A132: 7d | C132: 61%-70% | D132: No | E132: Yes | F132: 1 | G132: Low
A133: 7e | C133: 51-60% | D133: No | E133: Yes | F133: 1 | G133: Low
A134: 7f | C134: 41%-50% | D134: No | E134: Yes | F134: 1 | G134: Low
A135: 7g | C135: 31%-40% | D135: No | E135: Yes | F135: 1 | G135: Low
A136: 7h | C136: 21%-30% | D136: No | E136: Yes | F136: 1 | G136: Low
A137: 7i | C137: 11%-20% | D137: No | E137: Yes | F137: 1 | G137: Low
A138: 7j | C138: 1%-10% | D138: No | E138: Yes | F138: 1 | G138: Low
A139: 7k | C139: Not known | D139: No | E139: Yes | F139: 1 | G139: Low
A140: 7l | C140: N/A | D140: No | E140: Yes | F140: 1 | G140: Low
A141: 8 | B141: Does your company set Greenhouse Gas reduction targets? | C141: N/A | D141: No | E141: Yes | F141: 1 | G141: Low
A142: 9 | B142: Does your site use any substances with restrictions under any national or international statutory provision in production or operations? | C142: N/A | D142: No | E142: Yes | F142: 1 | G142: Low
A143: 10 | B143: Does your company have a current CDP score? | C143: N/A | D143: No | E143: Yes | F143: 1 | G143: Low
A144: Total | F144: =SUM(F98:F143) -> 46 | I144: 0 | J144: =IF(AND(B144="*", OR(F144=1, F144=0)), "Fail", "") -> 
A146: No. | B146: Responsible Supply Chain Management | D146: Score | F146: Score | G146: Risk | H146: Notes/Comments | I146: 0 | J146: =IF(AND(B146="*", OR(F146=1, F146=0)), "Fail", "") -> 
D147: High Risk | E147: Low Risk | I147: 0 | J147: =IF(AND(B147="*", OR(F147=1, F147=0)), "Fail", "") -> 
B148: ITEM | C148: ITEM DETAILS | D148: 0 | E148: 1 | I148: 0 | J148: =IF(AND(B148="*", OR(F148=1, F148=0)), "Fail", "") -> 
A149: 1 | B149: Does your company have set CSR/Sustainability requirements towards suppliers? | C149: N/A | D149: No | E149: Yes | F149: 1 | G149: =IF(F149="NA","",IF(F149=1,"Low","High")) -> Low | I149: 0 | J149: =IF(AND(B149="*", OR(F149=1, F149=0)), "Fail", "") -> 
A150: 2a | B150: Which areas are covered by these CSR/Sustainability requirements? | C150: Child labour and young workers | D150: No | E150: Yes | F150: 1 | G150: Low | I150: 0 | J150: =IF(AND(B150="*", OR(F150=1, F150=0)), "Fail", "") -> 
A151: 2b | C151: Wages and benefits | D151: No | E151: Yes | F151: 1 | G151: Low
A152: 2c | C152: Working hours | D152: No | E152: Yes | F152: 1 | G152: Low
A153: 2d | C153: Modern slavery (i.e. slavery, servitude and forced or compulsory labour and human trafficking) | D153: No | E153: Yes | F153: 1 | G153: Low
A154: 2e | C154: Ethical recruiting | D154: No | E154: Yes | F154: 1 | G154: Low
A155: 2f | C155: Freedom of association and collective bargaining | D155: No | E155: Yes | F155: 1 | G155: Low
A156: 2g | C156: Non-discrimination and harassment | D156: No | E156: Yes | F156: 1 | G156: Low
A157: 2h | C157: Women's Rights | D157: No | E157: Yes | F157: 1 | G157: Low
A158: 2i | C158: Diversity, equity, and inclusion | D158: No | E158: Yes | F158: 1 | G158: Low
A159: 2j | C159: Rights of minorities and indigenous peoples | D159: No | E159: Yes | F159: 1 | G159: Low
A160: 2k | C160: Land, forest and water rights and forced eviction | D160: No | E160: Yes | F160: 1 | G160: Low
A161: 2l | C161: Health and safety | D161: No | E161: Yes | F161: 1 | G161: Low
A162: 2m | C162: Anti-corruption and anti-money laundering | D162: No | E162: Yes | F162: 1 | G162: Low
A163: 2n | C163: Data protection and data security | D163: No | E163: Yes | F163: 1 | G163: Low
A164: 2o | C164: Financial responsibility (Accurate Records) | D164: No | E164: Yes | F164: 1 | G164: Low
A165: 2p | C165: Disclosure of information | D165: No | E165: Yes | F165: 1 | G165: Low
A166: 2q | C166: Fair competition and anti-trust | D166: No | E166: Yes | F166: 1 | G166: Low
A167: 2r | C167: Conflicts of interest | D167: No | E167: Yes | F167: 1 | G167: Low
A168: 2s | C168: Counterfeit parts | D168: No | E168: Yes | F168: 1 | G168: Low
A169: 2t | C169: Intellectual property | D169: No | E169: Yes | F169: 1 | G169: Low
A170: 2u | C170: Export controls and economic sanctions | D170: No | E170: Yes | F170: 1 | G170: Low
A171: 2v | C171: Whistleblowing and protection against retaliation | D171: No | E171: Yes | F171: 1 | G171: Low
A172: 2w | C172: GHG emissions | D172: No | E172: Yes | F172: 1 | G172: Low
A173: 2x | C173: Energy efficiency | D173: No | E173: Yes | F173: 1 | G173: Low
A174: 2y | C174: Renewable energy | D174: No | E174: Yes | F174: 1 | G174: Low
A175: 2z | C175: Decarbonisation | D175: No | E175: Yes | F175: 1 | G175: Low
A176: 2aa | C176: Water quality, consumption & management | D176: No | E176: Yes | F176: 1 | G176: Low
A177: 2ab | C177: Air quality | D177: No | E177: Yes | F177: 1 | G177: Low
A178: 2ac | C178: Responsible chemical management | D178: No | E178: Yes | F178: 1 | G178: Low
A179: 2ad | C179: Sustainable resources management | D179: No | E179: Yes | F179: 1 | G179: Low
A180: 2ae | C180: Waste reduction | D180: No | E180: Yes | F180: 1 | G180: Low
A181: 2af | C181: Reuse and recycling | D181: No | E181: Yes | F181: 1 | G181: Low | I181: 0 | J181: =IF(AND(B181="*", OR(F181=1, F181=0)), "Fail", "") -> 
A182: 2ag | C182: Biodiversity, land use and deforestation | D182: No | E182: Yes | F182: 1 | G182: Low | I182: 0 | J182: =IF(AND(B182="*", OR(F182=1, F182=0)), "Fail", "") -> 
A183: 2ah | C183: Soil quality | D183: No | E183: Yes | F183: 1 | G183: Low | I183: 0 | J183: =IF(AND(B183="*", OR(F183=1, F183=0)), "Fail", "") -> 
A184: 2ai | C184: Noise emissions | D184: No | E184: Yes | F184: 1 | G184: Low | I184: 0 | J184: =IF(AND(B184="*", OR(F184=1, F184=0)), "Fail", "") -> 
A185: 2aj | C185: Other areas | D185: No | E185: Yes | F185: 1 | G185: Low
A186: 2ak | C186: Definition and implementation of similar standards towards own tier-1 suppliers | D186: No | E186: Yes | F186: 1 | G186: Low
A187: 2al | C187: Binding requirements towards tier-1 suppliers to pass on standards along the supply chain | D187: No | E187: Yes | F187: 1 | G187: Low
A188: 3a | B188: Does your company use any of the following channels to communicate its Supplier CSR/Sustainability requirements to your suppliers? | C188: Included in terms and conditions | D188: No | E188: Yes | F188: 1 | G188: Low
A189: 3b | C189: Supplier training | D189: No | E189: Yes | F189: 1 | G189: Low
A190: 3c | C190: Supplier code of conduct/supplier sustainability policy | D190: No | E190: Yes | F190: 1 | G190: Low
A191: 3d | C191: Company website/supplier portal | D191: No | E191: Yes | F191: 1 | G191: Low
A192: 3e | C192: None | D192: No | E192: Yes | F192: 1 | G192: Low
A193: 4a | B193: Which processes does your company have in place to review if suppliers fulfil your sustainability requirements? | C193: 3rd party audits conducted by a certified audit body | D193: No | E193: Yes | F193: 1 | G193: Low
A194: 4b | C194: 2nd party audits conducted by your company | D194: No | E194: Yes | F194: 1 | G194: Low
A195: 4c | C195: Self-assessment questionnaire | D195: No | E195: Yes | F195: 1 | G195: Low
A196: 4d | C196: None | D196: No | E196: Yes | F196: 1 | G196: Low
A197: 5 | B197: Does your company perform sustainability risk assessments as part of the due diligence activities? | C197: N/A | D197: No | E197: Yes | F197: 1 | G197: Low
A198: Total | F198: =SUM(F149:F197) -> 49 | I198: 0 | J198: =IF(AND(B198="*", OR(F198=1, F198=0)), "Fail", "") -> 
A200: No. | B200: Responsible Sourcing of Raw Materials | D200: Score | F200: Score | G200: Risk | H200: Notes/Comments | I200: 0 | J200: =IF(AND(B200="*", OR(F200=1, F200=0)), "Fail", "") -> 
D201: High Risk | E201: Low Risk | I201: 0 | J201: =IF(AND(B201="*", OR(F201=1, F201=0)), "Fail", "") -> 
B202: ITEM | C202: ITEM DETAILS | D202: 0 | E202: 1 | I202: 0 | J202: =IF(AND(B202="*", OR(F202=1, F202=0)), "Fail", "") -> 
A203: 1a | B203: Are any of the following materials contained in your products? | C203: Aluminium/Bauxite | D203: No | E203: Yes | F203: 1 | G203: =IF(F203="NA","",IF(F203=1,"Low","High")) -> Low | I203: 0 | J203: =IF(AND(B203="*", OR(F203=1, F203=0)), "Fail", "") -> 
A204: 1b | C204: Chromium | D204: No | E204: Yes | F204: 1 | G204: Low
A205: 1c | C205: Cobalt | D205: No | E205: Yes | F205: 1 | G205: Low
A206: 1d | C206: Copper | D206: No | E206: Yes | F206: 1 | G206: Low
... 85 more rows

Sheet SA PDCA Tracker
J1: Issue Date:
A2: Assessment Concerns & Corrective Action
A3: PLAN | E3: DO | J3: Check / Measure / Actions Effective?
A4: Section Number | B4: Item No. | C4: Critical Item | D4: Issue Description | E4: Proposed Actions Taken | F4: Responsibility | G4: Task Timing | J4: Results/Conclusions | K4: Comments
G5: Start Date (Supplier) | H5: Complete Date (Supplier) | I5: Verified Date (MatcorMatsu)
A7: Company Management
A8: NA | B8: 1
B9: 2
B10: 3
B11: 4
B12: 5
B13: 6
B14: 7
B15: 8
B16: 9
B17: 10a
B18: 10b
B19: 10c
B20: 10d
B21: 10e
B22: 10f
B23: 10g
B24: 10h
B25: 11a
B26: 11b
B27: 11c
B28: 12a
B29: 12b
B30: 12c
B31: 13a
B32: 13b
B33: 13c
B34: 13d
B35: 13e
B36: 14a
B37: 14b
B38: 14c
B39: 14d
B40: 14e
A41: Human Rights and Working Conditions
A42: NA | B42: 1
B43: 2a
B44: 2b
B45: 2c
B46: 2d
B47: 2e
B48: 2f
B49: 2g
B50: 2h
B51: 2i
B52: 2j
B53: 2k
B54: 2l
B55: 3
B56: 4
A57: Health and Safety
A58: NA | B58: 1
B59: 2a
B60: 2b
B61: 2c
B62: 2d
B63: 2e
B64: 2f
B65: 2g
B66: 3
B67: 4
A68: Business Ethics
A69: NA | B69: 1
B70: 2a
B71: 2b
B72: 2c
B73: 2d
B74: 2e
B75: 2f
B76: 2g
B77: 2h
B78: 2i
B79: 2j
B80: 3
A81: Environment
A82: NA | B82: 1
B83: 2a
B84: 2b
B85: 2c
B86: 2d
B87: 2e
B88: 2f
B89: 2g
B90: 2h
B91: 2i
B92: 2j
B93: 2k
B94: 2l
B95: 2m
B96: 2n
B97: 2o
B98: 3
B99: 4
B100: 5
B101: 6a
B102: 6b
B103: 6c
B104: 6d
B105: 6e
B106: 6f
B107: 6g
B108: 6h
B109: 6i
B110: 6j
B111: 6k
B112: 6l
B113: 7a
B114: 7b
B115: 7c
B116: 7d
B117: 7e
B118: 7f
B119: 7g
B120: 7h
B121: 7i
B122: 7j
B123: 7k
B124: 7l
B125: 8
B126: 9
B127: 10
A128: Responsible Supply Chain Management
A129: NA | B129: 1
B130: 2a
B131: 2b
B132: 2c
B133: 2d
B134: 2e
B135: 2f
B136: 2g
B137: 2h
B138: 2i
B139: 2j
B140: 2k
B141: 2l
B142: 2m
B143: 2n
B144: 2o
B145: 2p
B146: 2q
B147: 2r
B148: 2s
B149: 2t
B150: 2u
B151: 2v
B152: 2w
B153: 2x
B154: 2y
B155: 2z
B156: 2aa
B157: 2ab
B158: 2ac
B159: 2ad
B160: 2ae
B161: 2af
B162: 2ag
B163: 2ah
B164: 2ai
B165: 2aj
B166: 2ak
B167: 2al
B168: 3a
B169: 3b
B170: 3c
B171: 3d
B172: 3e
B173: 4a
B174: 4b
B175: 4c
B176: 4d
B177: 5
A178: Responsible Sourcing of Raw Materials
A179: NA | B179: 1a
B180: 1b
B181: 1c
B182: 1d
B183: 1e
B184: 1f
B185: 1g
B186: 1h
B187: 1i
B188: 1j
B189: 1k
B190: 1l
B191: 1m
B192: 1n
B193: 1o
B194: 1p
B195: 1q
B196: 1r
B197: 1s
B198: 1t
B199: 1u
B200: 1v
B201: 1w
... 56 more rows

Sheet Evidence
A2: Audit / Corrective Action Evidence

Sheet Revision History
A2: Revision History:
A6: Revision Level | B6: Revision Date | C6: Change | D6: Approved By:
A7: REL | B7: 2017-11-21 | C7: Initial Released | D7: David Rosenlund
A8: A | B8: 2018-11-21 | C8: Min. Revision | D8: David Rosenlund
A9: B | B9: 2021-07-20 | C9: Updated with Minimum-Automotive-Quality-Management-System-Requirements-for-Sub-tier-suppliers (2ndEd-rev2s/September 2017-sections of IATF 16949 selected for supplier QMS development). | D9: David Rosenlund
A10: C | B10: 2023-02-17 | C10: Updated with VDA 6.3 Requirements for VW suppliers only | D10: David Rosenlund
A11: D | B11: 2023-05-16 | C11: Macros updated | D11: David Rosenlund
A12: E | B12: 2024-02-22 | C12: Sustainability added, various updates | D12: David Rosenlund
A13: F | B13: 2024-03-04 | C13: Formating, macros finalized | D13: David Rosenlund

Sheet Sheet3 (hidden)
B2: Green
B3: Yellow
B4: Red
